{"text_format":"1","workbook":"xlsx","n_sheets":6,"sheets":["Imputations des activités","fBD","Generique","VIERGE","BILAN PC","Noms"],"not_rendered":{"charts":33,"images":0,"macros":1,"external_links":0,"defined_names":1,"comments":1,"pivot_tables":0},"unopened":[],"bounds":{"document_bytes":16777216,"sheet_cells":100000,"rows_first":2000,"rows_last":500,"rows_between":2000,"halvings":0,"cell_chars":16384,"cell_head_chars":4096},"cells_cut":0,"cells_raw":0,"read":"whole","date_system":"1900"}

{"sheet":"Imputations des activités","index":0,"n_rows":146,"n_cols":26,"rows_kept":146,"cut":false,"hidden":false,"merged":[]}
["Imputations des activités du CQ"]
[]
["JANVIER"]
[]
[null,"AC","MP","PSO","PFC","STA","ECH","ENV","NET","LIMS","PROJET","ESS","AQ","AQ BIL","AQ FORM","AQ INFO","AQ REDAC","AQ VERIF","AQ REACT","AQ LEAN","AQ MET","CAP REELLE","CONGE","ABSENCES","CAP. THEO.","HS"]
["PRELEV. AC",143,117.25,44.75,0,0,4,41.5,0,4,0,2,47,0,5,6,13,0,0,9.5,13.5,{"$f":"SUM(B6:M6)","v":403.5},54,10.5,{"$f":"SUM(V6:X6)-Z6","v":468}]
["PHYSICO-CHIMIE",11.75,480,488.5,0,205.5,0,0,2.75,55.25,110.75,181.75,992,33.75,33.75,278,40.75,231.5,100,39.5,234.75,{"$f":"SUM(B7:M7)","v":2528.25},133.5,10.75,{"$f":"SUM(V7:X7)-Z7","v":2672.5}]
["AGENT DE LAVERIE",0,0,0,0,0,0,0,47.75,0,0,0,95.75,2,12.5,10.75,0,0,49,2.75,18.75,143.5,16,0,159.5]
["MICROBIOLOGIE",0,55,197.55,0,7.5,16.75,142.25,38.25,17.75,0,99.8,477.9,64.5,96.25,44.75,21.75,73,102.65,19,56,1052.75,124,0,1176.75]
["CONT FINAL",0,0,0,118.5,0,0,0,0,0,0,0,26,7.25,0,1.75,0.25,0.75,0,14.5,1.5,144.5,11.5,0,156]
["TOTAL",{"$f":"SUM(B6:B10)","v":154.75},{"$f":"SUM(C6:C10)","v":652.25},730.8,118.5,213,20.75,183.75,88.75,77,110.75,283.55,1638.65,107.5,147.5,341.25,75.75,305.25,251.65,85.25,324.5,4272.5,339,21.25,4632.75,0]
["DISP. LABOS EN % :",{"$f":"100*B11/V11","v":3.6220011702750146},{"$f":"100*C11/V11","v":15.26623756582797},{"$f":"100*D11/V11","v":17.104739613809244},{"$f":"100*E11/V11","v":2.7735517846693973},{"$f":"100*F11/V11","v":4.9853715623171446},{"$f":"100*G11/V11","v":0.48566413107080164},{"$f":"100*H11/V11","v":4.3007606787595085},{"$f":"100*I11/V11","v":2.0772381509654769},{"$f":"100*J11/V11","v":1.8022235225277941},{"$f":"100*K11/V11","v":2.5921591574019893},{"$f":"100*L11/V11","v":6.6366296079578699},{"$f":"100*M11/V11","v":38.353423054417789},{"$f":"100*N11/V11","v":2.5160912814511409},{"$f":"100*O11/V11","v":3.4523112931538913},{"$f":"100*P11/V11","v":7.9871269748390876},{"$f":"100*Q11/V11","v":1.7729666471620831},{"$f":"100*R11/V11","v":7.1445289643066117},{"$f":"100*S11/V11","v":5.8899941486249272},{"$f":"100*T11/V11","v":1.9953188999414861},{"$f":"100*U11/V11","v":7.5950848449385608},{"$f":"100*V11/V11","v":100},{"$f":"100*W11/W11","v":100},{"$f":"100*X11/V11","v":0.497366881217086},{"$f":"100*Y11/V11","v":108.43183148039789},{"$f":"100*Z11/V11","v":0}]
[]
["FEVRIER"]
[]
[null,"AC","MP","PSO","PFC","STA","ECH","ENV","NET","LIMS","PROJET","ESS","AQ","AQ BIL","AQ FORM","AQ INFO","AQ REDAC","AQ VERIF","AQ REACT","AQ LEAN","AQ MET","CAP REELLE","CONGE","ABSENCES","CAP. THEO.","HS"]
["PRELEV. AC",153.5,134.5,79.5,0,0,4,57,0,6,0,2,47.5,0,0,4.5,20.5,0,0,5,17.5,{"$f":"SUM(B17:M17)","v":484},0,8,{"$f":"SUM(V17:X17)-Z17","v":492}]
["PHYSICO-CHIMIE",9.75,350.75,668.5,0,129.25,0,0,0,13,39.5,199.75,1010.25,38.25,21.25,308,96,265.5,72.25,34.5,174.5,2420.75,296.5,23.75,2741]
["AGENT DE LAVERIE",0,0,0,0,0,0,0,41.5,0,0,0,122,24.5,4,2.25,1.75,0,69.75,1.75,18,163.5,0,0,163.5]
["MICROBIOLOGIE",0,79.25,258.25,0,4,10.5,209.5,45,34.75,3,55,522.75,55,130.25,64,77.5,81,45.25,10.5,59.25,1222,92,10.5,1324.5]
["CONT FINAL",0,0,0,133,0,0,0,0,4,0,0,19,2,0,0.5,0,0,0,15.25,1.25,156,8,0,164]
["TOTAL",{"$f":"SUM(B17:B21)","v":163.25},{"$f":"SUM(C17:C21)","v":564.5},1006.25,133,133.25,14.5,266.5,86.5,57.75,42.5,256.75,1721.5,119.75,155.5,379.25,195.75,346.5,187.25,67,270.5,4446.25,396.5,42.25,4885,0]
["DISP. LABOS EN % :",{"$f":"100*B22/V22","v":3.6716333989316841},{"$f":"100*C22/V22","v":12.696092212538657},{"$f":"100*D22/V22","v":22.631430981163902},{"$f":"100*E22/V22","v":2.9912847905538373},{"$f":"100*F22/V22","v":2.996907506325555},{"$f":"100*G22/V22","v":0.32611751475962891},{"$f":"100*H22/V22","v":5.9938150126511101},{"$f":"100*I22/V22","v":1.9454596570143379},{"$f":"100*J22/V22","v":1.298847343266798},{"$f":"100*K22/V22","v":0.95586168119201576},{"$f":"100*L22/V22","v":5.7745290975541188},{"$f":"100*M22/V22","v":38.718020804048358},{"$f":"100*N22/V22","v":2.6932808546527971},{"$f":"100*O22/V22","v":3.4973292100084339},{"$f":"100*P22/V22","v":8.5296598256958109},{"$f":"100*Q22/V22","v":4.40258644925499},{"$f":"100*R22/V22","v":7.7930840596007869},{"$f":"100*S22/V22","v":4.2114141130165867},{"$f":"100*T22/V22","v":1.5068878268203543},{"$f":"100*U22/V22","v":6.083778464998594},{"$f":"100*V22/V22","v":100},{"$f":"100*W22/W22","v":100},{"$f":"100*X22/V22","v":0.95023896542029795},{"$f":"100*Y22/V22","v":109.86786617936464},{"$f":"100*Z22/V22","v":0}]
[]
["MARS"]
[]
[null,"AC","MP","PSO","PFC","STA","ECH","ENV","NET","LIMS","PROJET","ESS","AQ","AQ BIL","AQ FORM","AQ INFO","AQ REDAC","AQ VERIF","AQ REACT","AQ LEAN","AQ MET","CAP REELLE","CONGE","ABSENCES","CAP. THEO.","HS"]
["PRELEV. AC",164,135,65,0,0,0,54.5,0,12.5,0,0,29,0,0,3.25,13,0,0,5.75,7,{"$f":"SUM(B28:M28)","v":460},48,8,{"$f":"SUM(V28:X28)-Z28","v":516}]
["PHYSICO-CHIMIE",11,389,604,0,230.5,0,0,0,68,41.5,268.25,954.25,23.25,24.5,286.75,37.5,255.5,103.5,27,196.25,2566.5,316.25,9.5,2892.25]
["AGENT DE LAVERIE",0,0,0,0,0,0,0,27.5,0,0,0,129,0,12,17,0,0,64.25,3.75,32,156.5,0,0,156.5]
["MICROBIOLOGIE",0,64.75,270.75,0,13.25,17.25,239,38,43.5,0,48,500.75,21.75,96,69.5,106.75,86,88.25,5,27.5,1235.25,151,0,1386.25]
["CONT FINAL",0,0,0,114,0,0,0,0,0,0,0,16.5,1.75,0,1.5,0,1.75,0,10.75,0.75,130.5,43,0,173.5]
["TOTAL",{"$f":"SUM(B28:B32)","v":175},{"$f":"SUM(C28:C32)","v":588.75},939.75,114,243.75,17.25,293.5,65.5,124,41.5,316.25,1629.5,46.75,132.5,378,157.25,343.25,256,52.25,263.5,4548.75,558.25,17.5,5124.5,0]
["DISP. LABOS EN % :",{"$f":"100*B33/V33","v":3.8472107721901621},{"$f":"100*C33/V33","v":12.943116240725473},{"$f":"100*D33/V33","v":20.659521846661171},{"$f":"100*E33/V33","v":2.5061830173124484},{"$f":"100*F33/V33","v":5.3586150041220115},{"$f":"100*G33/V33","v":0.37922506183017313},{"$f":"100*H33/V33","v":6.452322066501786},{"$f":"100*I33/V33","v":1.4399560318768894},{"$f":"100*J33/V33","v":2.726023632866172},{"$f":"100*K33/V33","v":0.91233855454795276},{"$f":"100*L33/V33","v":6.9524594668865074},{"$f":"100*M33/V33","v":35.823028304479251},{"$f":"100*N33/V33","v":1.0277548777136576},{"$f":"100*O33/V33","v":2.9128881560868369},{"$f":"100*P33/V33","v":8.309975267930751},{"$f":"100*Q33/V33","v":3.4569936795823026},{"$f":"100*R33/V33","v":7.5460291288815613},{"$f":"100*S33/V33","v":5.6279197581753229},{"$f":"100*T33/V33","v":1.1486672162682054},{"$f":"100*U33/V33","v":5.7928002198406157},{"$f":"100*V33/V33","v":100},{"$f":"100*W33/W33","v":100},{"$f":"100*X33/V33","v":0.38472107721901622},{"$f":"100*Y33/V33","v":112.65732344050564},{"$f":"100*Z33/V33","v":0}]
[]
["AVRIL"]
[]
[null,"AC","MP","PSO","PFC","STA","ECH","ENV","NET","LIMS","PROJET","ESS","AQ","AQ BIL","AQ FORM","AQ INFO","AQ REDAC","AQ VERIF","AQ REACT","AQ LEAN","AQ MET","CAP REELLE","CONGE","ABSENCES","CAP. THEO.","HS"]
["PRELEV. AC",0,0,0,0,0,0,0,0,0,0,0,0,0,0,0,0,0,0,0,0,{"$f":"SUM(B39:M39)","v":0},0,0,{"$f":"SUM(V39:X39)-Z39","v":0}]
["PHYSICO-CHIMIE",1,2,3,0,4,0,0,5,6,7,8,100,9,10,11,12,13,14,15,16,136,17,18,171]
["AGENT DE LAVERIE",0,0,0,0,0,0,0,0,0,0,0,0,0,0,0,0,0,0,0,0,0,0,0,0]
["MICROBIOLOGIE",0,0,0,0,0,0,0,0,0,0,0,0,0,0,0,0,0,0,0,0,0,0,0,0]
["CONT FINAL",0,0,0,0,0,0,0,0,0,0,0,0,0,0,0,0,0,0,0,0,0,0,0,0]
["TOTAL",{"$f":"SUM(B39:B43)","v":1},{"$f":"SUM(C39:C43)","v":2},3,0,4,0,0,5,6,7,8,100,9,10,11,12,13,14,15,16,136,17,18,171,0]
["DISP. LABOS EN % :",{"$f":"100*B44/V44","v":0.73529411764705888},{"$f":"100*C44/V44","v":1.4705882352941178},{"$f":"100*D44/V44","v":2.2058823529411766},{"$f":"100*E44/V44","v":0},{"$f":"100*F44/V44","v":2.9411764705882355},{"$f":"100*G44/V44","v":0},{"$f":"100*H44/V44","v":0},{"$f":"100*I44/V44","v":3.6764705882352939},{"$f":"100*J44/V44","v":4.4117647058823533},{"$f":"100*K44/V44","v":5.1470588235294121},{"$f":"100*L44/V44","v":5.882352941176471},{"$f":"100*M44/V44","v":73.529411764705884},{"$f":"100*N44/V44","v":6.617647058823529},{"$f":"100*O44/V44","v":7.3529411764705879},{"$f":"100*P44/V44","v":8.0882352941176467},{"$f":"100*Q44/V44","v":8.8235294117647065},{"$f":"100*R44/V44","v":9.5588235294117645},{"$f":"100*S44/V44","v":10.294117647058824},{"$f":"100*T44/V44","v":11.029411764705882},{"$f":"100*U44/V44","v":11.764705882352942},{"$f":"100*V44/V44","v":100},{"$f":"100*W44/W44","v":100},{"$f":"100*X44/V44","v":13.235294117647058},{"$f":"100*Y44/V44","v":125.73529411764706},{"$f":"100*Z44/V44","v":0}]
[]
["MAI"]
[]
[null,"AC","MP","PSO","PFC","STA","ECH","ENV","NET","LIMS","PROJET","ESS","AQ","AQ BIL","AQ FORM","AQ INFO","AQ REDAC","AQ VERIF","AQ REACT","AQ LEAN","AQ MET","CAP REELLE","CONGE","ABSENCES","CAP. THEO.","HS"]
["PRELEV. AC",0,0,0,0,0,0,0,0,0,0,0,0,0,0,0,0,0,0,0,0,{"$f":"SUM(B50:M50)","v":0},0,0,{"$f":"SUM(V50:X50)-Z50","v":0}]
["PHYSICO-CHIMIE",0,0,0,0,0,0,0,0,0,0,0,0,0,0,0,0,0,0,0,0,0,0,0,0]
["AGENT DE LAVERIE",0,0,0,0,0,0,0,0,0,0,0,0,0,0,0,0,0,0,0,0,0,0,0,0]
["MICROBIOLOGIE",0,0,0,0,0,0,0,0,0,0,0,0,0,0,0,0,0,0,0,0,0,0,0,0]
["CONT FINAL",0,0,0,0,0,0,0,0,0,0,0,0,0,0,0,0,0,0,0,0,0,0,0,0]
["TOTAL",{"$f":"SUM(B50:B54)","v":0},{"$f":"SUM(C50:C54)","v":0},0,0,0,0,0,0,0,0,0,0,0,0,0,0,0,0,0,0,0,0,0,0,0]
["DISP. LABOS EN % :",{"$f":"100*B55/V55","v":{"$error":"#DIV/0!"}},{"$f":"100*C55/V55","v":{"$error":"#DIV/0!"}},{"$f":"100*D55/V55","v":{"$error":"#DIV/0!"}},{"$f":"100*E55/V55","v":{"$error":"#DIV/0!"}},{"$f":"100*F55/V55","v":{"$error":"#DIV/0!"}},{"$f":"100*G55/V55","v":{"$error":"#DIV/0!"}},{"$f":"100*H55/V55","v":{"$error":"#DIV/0!"}},{"$f":"100*I55/V55","v":{"$error":"#DIV/0!"}},{"$f":"100*J55/V55","v":{"$error":"#DIV/0!"}},{"$f":"100*K55/V55","v":{"$error":"#DIV/0!"}},{"$f":"100*L55/V55","v":{"$error":"#DIV/0!"}},{"$f":"100*M55/V55","v":{"$error":"#DIV/0!"}},{"$f":"100*N55/V55","v":{"$error":"#DIV/0!"}},{"$f":"100*O55/V55","v":{"$error":"#DIV/0!"}},{"$f":"100*P55/V55","v":{"$error":"#DIV/0!"}},{"$f":"100*Q55/V55","v":{"$error":"#DIV/0!"}},{"$f":"100*R55/V55","v":{"$error":"#DIV/0!"}},{"$f":"100*S55/V55","v":{"$error":"#DIV/0!"}},{"$f":"100*T55/V55","v":{"$error":"#DIV/0!"}},{"$f":"100*U55/V55","v":{"$error":"#DIV/0!"}},{"$f":"100*V55/V55","v":{"$error":"#DIV/0!"}},{"$f":"100*W55/W55","v":{"$error":"#DIV/0!"}},{"$f":"100*X55/V55","v":{"$error":"#DIV/0!"}},{"$f":"100*Y55/V55","v":{"$error":"#DIV/0!"}},{"$f":"100*Z55/V55","v":{"$error":"#DIV/0!"}}]
[]
["JUIN"]
[]
[null,"AC","MP","PSO","PFC","STA","ECH","ENV","NET","LIMS","PROJET","ESS","AQ","AQ BIL","AQ FORM","AQ INFO","AQ REDAC","AQ VERIF","AQ REACT","AQ LEAN","AQ MET","CAP REELLE","CONGE","ABSENCES","CAP. THEO.","HS"]
["PRELEV. AC",0,0,0,0,0,0,0,0,0,0,0,0,0,0,0,0,0,0,0,0,{"$f":"SUM(B61:M61)","v":0},0,0,{"$f":"SUM(V61:X61)-Z61","v":0}]
["PHYSICO-CHIMIE",0,0,0,0,0,0,0,0,0,0,0,0,0,0,0,0,0,0,0,0,0,0,0,0]
["AGENT DE LAVERIE",0,0,0,0,0,0,0,0,0,0,0,0,0,0,0,0,0,0,0,0,0,0,0,0]
["MICROBIOLOGIE",0,0,0,0,0,0,0,0,0,0,0,0,0,0,0,0,0,0,0,0,0,0,0,0]
["CONT FINAL",0,0,0,0,0,0,0,0,0,0,0,0,0,0,0,0,0,0,0,0,0,0,0,0]
["TOTAL",{"$f":"SUM(B61:B65)","v":0},{"$f":"SUM(C61:C65)","v":0},0,0,0,0,0,0,0,0,0,0,0,0,0,0,0,0,0,0,0,0,0,0,0]
["DISP. LABOS EN % :",{"$f":"100*B66/V66","v":{"$error":"#DIV/0!"}},{"$f":"100*C66/V66","v":{"$error":"#DIV/0!"}},{"$f":"100*D66/V66","v":{"$error":"#DIV/0!"}},{"$f":"100*E66/V66","v":{"$error":"#DIV/0!"}},{"$f":"100*F66/V66","v":{"$error":"#DIV/0!"}},{"$f":"100*G66/V66","v":{"$error":"#DIV/0!"}},{"$f":"100*H66/V66","v":{"$error":"#DIV/0!"}},{"$f":"100*I66/V66","v":{"$error":"#DIV/0!"}},{"$f":"100*J66/V66","v":{"$error":"#DIV/0!"}},{"$f":"100*K66/V66","v":{"$error":"#DIV/0!"}},{"$f":"100*L66/V66","v":{"$error":"#DIV/0!"}},{"$f":"100*M66/V66","v":{"$error":"#DIV/0!"}},{"$f":"100*N66/V66","v":{"$error":"#DIV/0!"}},{"$f":"100*O66/V66","v":{"$error":"#DIV/0!"}},{"$f":"100*P66/V66","v":{"$error":"#DIV/0!"}},{"$f":"100*Q66/V66","v":{"$error":"#DIV/0!"}},{"$f":"100*R66/V66","v":{"$error":"#DIV/0!"}},{"$f":"100*S66/V66","v":{"$error":"#DIV/0!"}},{"$f":"100*T66/V66","v":{"$error":"#DIV/0!"}},{"$f":"100*U66/V66","v":{"$error":"#DIV/0!"}},{"$f":"100*V66/V66","v":{"$error":"#DIV/0!"}},{"$f":"100*W66/W66","v":{"$error":"#DIV/0!"}},{"$f":"100*X66/V66","v":{"$error":"#DIV/0!"}},{"$f":"100*Y66/V66","v":{"$error":"#DIV/0!"}},{"$f":"100*Z66/V66","v":{"$error":"#DIV/0!"}}]
[]
["JUILLET"]
[]
[null,"AC","MP","PSO","PFC","STA","ECH","ENV","NET","LIMS","PROJET","ESS","AQ","AQ BIL","AQ FORM","AQ INFO","AQ REDAC","AQ VERIF","AQ REACT","AQ LEAN","AQ MET","CAP REELLE","CONGE","ABSENCES","CAP. THEO.","HS"]
["PRELEV. AC",0,0,0,0,0,0,0,0,0,0,0,0,0,0,0,0,0,0,0,0,{"$f":"SUM(B72:M72)","v":0},0,0,{"$f":"SUM(V72:X72)-Z72","v":0}]
["PHYSICO-CHIMIE",0,0,0,0,0,0,0,0,0,0,0,0,0,0,0,0,0,0,0,0,0,0,0,0]
["AGENT DE LAVERIE",0,0,0,0,0,0,0,0,0,0,0,0,0,0,0,0,0,0,0,0,0,0,0,0]
["MICROBIOLOGIE",0,0,0,0,0,0,0,0,0,0,0,0,0,0,0,0,0,0,0,0,0,0,0,0]
["CONT FINAL",0,0,0,0,0,0,0,0,0,0,0,0,0,0,0,0,0,0,0,0,0,0,0,0]
["TOTAL",{"$f":"SUM(B72:B76)","v":0},{"$f":"SUM(C72:C76)","v":0},0,0,0,0,0,0,0,0,0,0,0,0,0,0,0,0,0,0,0,0,0,0,0]
["DISP. LABOS EN % :",{"$f":"100*B77/V77","v":{"$error":"#DIV/0!"}},{"$f":"100*C77/V77","v":{"$error":"#DIV/0!"}},{"$f":"100*D77/V77","v":{"$error":"#DIV/0!"}},{"$f":"100*E77/V77","v":{"$error":"#DIV/0!"}},{"$f":"100*F77/V77","v":{"$error":"#DIV/0!"}},{"$f":"100*G77/V77","v":{"$error":"#DIV/0!"}},{"$f":"100*H77/V77","v":{"$error":"#DIV/0!"}},{"$f":"100*I77/V77","v":{"$error":"#DIV/0!"}},{"$f":"100*J77/V77","v":{"$error":"#DIV/0!"}},{"$f":"100*K77/V77","v":{"$error":"#DIV/0!"}},{"$f":"100*L77/V77","v":{"$error":"#DIV/0!"}},{"$f":"100*M77/V77","v":{"$error":"#DIV/0!"}},{"$f":"100*N77/V77","v":{"$error":"#DIV/0!"}},{"$f":"100*O77/V77","v":{"$error":"#DIV/0!"}},{"$f":"100*P77/V77","v":{"$error":"#DIV/0!"}},{"$f":"100*Q77/V77","v":{"$error":"#DIV/0!"}},{"$f":"100*R77/V77","v":{"$error":"#DIV/0!"}},{"$f":"100*S77/V77","v":{"$error":"#DIV/0!"}},{"$f":"100*T77/V77","v":{"$error":"#DIV/0!"}},{"$f":"100*U77/V77","v":{"$error":"#DIV/0!"}},{"$f":"100*V77/V77","v":{"$error":"#DIV/0!"}},{"$f":"100*W77/W77","v":{"$error":"#DIV/0!"}},{"$f":"100*X77/V77","v":{"$error":"#DIV/0!"}},{"$f":"100*Y77/V77","v":{"$error":"#DIV/0!"}},{"$f":"100*Z77/V77","v":{"$error":"#DIV/0!"}}]
[]
["AOUT"]
[]
[null,"AC","MP","PSO","PFC","STA","ECH","ENV","NET","LIMS","PROJET","ESS","AQ","AQ BIL","AQ FORM","AQ INFO","AQ REDAC","AQ VERIF","AQ REACT","AQ LEAN","AQ MET","CAP REELLE","CONGE","ABSENCES","CAP. THEO.","HS"]
["PRELEV. AC",0,0,0,0,0,0,0,0,0,0,0,0,0,0,0,0,0,0,0,0,{"$f":"SUM(B83:M83)","v":0},0,0,{"$f":"SUM(V83:X83)-Z83","v":0}]
["PHYSICO-CHIMIE",0,0,0,0,0,0,0,0,0,0,0,0,0,0,0,0,0,0,0,0,0,0,0,0]
["AGENT DE LAVERIE",0,0,0,0,0,0,0,0,0,0,0,0,0,0,0,0,0,0,0,0,0,0,0,0]
["MICROBIOLOGIE",0,0,0,0,0,0,0,0,0,0,0,0,0,0,0,0,0,0,0,0,0,0,0,0]
["CONT FINAL",0,0,0,0,0,0,0,0,0,0,0,0,0,0,0,0,0,0,0,0,0,0,0,0]
["TOTAL",{"$f":"SUM(B83:B87)","v":0},{"$f":"SUM(C83:C87)","v":0},0,0,0,0,0,0,0,0,0,0,0,0,0,0,0,0,0,0,0,0,0,0,0]
["DISP. LABOS EN % :",{"$f":"100*B88/V88","v":{"$error":"#DIV/0!"}},{"$f":"100*C88/V88","v":{"$error":"#DIV/0!"}},{"$f":"100*D88/V88","v":{"$error":"#DIV/0!"}},{"$f":"100*E88/V88","v":{"$error":"#DIV/0!"}},{"$f":"100*F88/V88","v":{"$error":"#DIV/0!"}},{"$f":"100*G88/V88","v":{"$error":"#DIV/0!"}},{"$f":"100*H88/V88","v":{"$error":"#DIV/0!"}},{"$f":"100*I88/V88","v":{"$error":"#DIV/0!"}},{"$f":"100*J88/V88","v":{"$error":"#DIV/0!"}},{"$f":"100*K88/V88","v":{"$error":"#DIV/0!"}},{"$f":"100*L88/V88","v":{"$error":"#DIV/0!"}},{"$f":"100*M88/V88","v":{"$error":"#DIV/0!"}},{"$f":"100*N88/V88","v":{"$error":"#DIV/0!"}},{"$f":"100*O88/V88","v":{"$error":"#DIV/0!"}},{"$f":"100*P88/V88","v":{"$error":"#DIV/0!"}},{"$f":"100*Q88/V88","v":{"$error":"#DIV/0!"}},{"$f":"100*R88/V88","v":{"$error":"#DIV/0!"}},{"$f":"100*S88/V88","v":{"$error":"#DIV/0!"}},{"$f":"100*T88/V88","v":{"$error":"#DIV/0!"}},{"$f":"100*U88/V88","v":{"$error":"#DIV/0!"}},{"$f":"100*V88/V88","v":{"$error":"#DIV/0!"}},{"$f":"100*W88/W88","v":{"$error":"#DIV/0!"}},{"$f":"100*X88/V88","v":{"$error":"#DIV/0!"}},{"$f":"100*Y88/V88","v":{"$error":"#DIV/0!"}},{"$f":"100*Z88/V88","v":{"$error":"#DIV/0!"}}]
[]
["SEPTEMBRE"]
[]
[null,"AC","MP","PSO","PFC","STA","ECH","ENV","NET","LIMS","PROJET","ESS","AQ","AQ BIL","AQ FORM","AQ INFO","AQ REDAC","AQ VERIF","AQ REACT","AQ LEAN","AQ MET","CAP REELLE","CONGE","ABSENCES","CAP. THEO.","HS"]
["PRELEV. AC",0,0,0,0,0,0,0,0,0,0,0,0,0,0,0,0,0,0,0,0,{"$f":"SUM(B94:M94)","v":0},0,0,{"$f":"SUM(V94:X94)-Z94","v":0}]
["PHYSICO-CHIMIE",0,0,0,0,0,0,0,0,0,0,0,0,0,0,0,0,0,0,0,0,0,0,0,0]
["AGENT DE LAVERIE",0,0,0,0,0,0,0,0,0,0,0,0,0,0,0,0,0,0,0,0,0,0,0,0]
["MICROBIOLOGIE",0,0,0,0,0,0,0,0,0,0,0,0,0,0,0,0,0,0,0,0,0,0,0,0]
["CONT FINAL",0,0,0,0,0,0,0,0,0,0,0,0,0,0,0,0,0,0,0,0,0,0,0,0]
["TOTAL",{"$f":"SUM(B94:B98)","v":0},{"$f":"SUM(C94:C98)","v":0},0,0,0,0,0,0,0,0,0,0,0,0,0,0,0,0,0,0,0,0,0,0,0]
["DISP. LABOS EN % :",{"$f":"100*B99/V99","v":{"$error":"#DIV/0!"}},{"$f":"100*C99/V99","v":{"$error":"#DIV/0!"}},{"$f":"100*D99/V99","v":{"$error":"#DIV/0!"}},{"$f":"100*E99/V99","v":{"$error":"#DIV/0!"}},{"$f":"100*F99/V99","v":{"$error":"#DIV/0!"}},{"$f":"100*G99/V99","v":{"$error":"#DIV/0!"}},{"$f":"100*H99/V99","v":{"$error":"#DIV/0!"}},{"$f":"100*I99/V99","v":{"$error":"#DIV/0!"}},{"$f":"100*J99/V99","v":{"$error":"#DIV/0!"}},{"$f":"100*K99/V99","v":{"$error":"#DIV/0!"}},{"$f":"100*L99/V99","v":{"$error":"#DIV/0!"}},{"$f":"100*M99/V99","v":{"$error":"#DIV/0!"}},{"$f":"100*N99/V99","v":{"$error":"#DIV/0!"}},{"$f":"100*O99/V99","v":{"$error":"#DIV/0!"}},{"$f":"100*P99/V99","v":{"$error":"#DIV/0!"}},{"$f":"100*Q99/V99","v":{"$error":"#DIV/0!"}},{"$f":"100*R99/V99","v":{"$error":"#DIV/0!"}},{"$f":"100*S99/V99","v":{"$error":"#DIV/0!"}},{"$f":"100*T99/V99","v":{"$error":"#DIV/0!"}},{"$f":"100*U99/V99","v":{"$error":"#DIV/0!"}},{"$f":"100*V99/V99","v":{"$error":"#DIV/0!"}},{"$f":"100*W99/W99","v":{"$error":"#DIV/0!"}},{"$f":"100*X99/V99","v":{"$error":"#DIV/0!"}},{"$f":"100*Y99/V99","v":{"$error":"#DIV/0!"}},{"$f":"100*Z99/V99","v":{"$error":"#DIV/0!"}}]
[]
["OCTOBRE"]
[]
[null,"AC","MP","PSO","PFC","STA","ECH","ENV","NET","LIMS","PROJET","ESS","AQ","AQ BIL","AQ FORM","AQ INFO","AQ REDAC","AQ VERIF","AQ REACT","AQ LEAN","AQ MET","CAP REELLE","CONGE","ABSENCES","CAP. THEO.","HS"]
["PRELEV. AC",0,0,0,0,0,0,0,0,0,0,0,0,0,0,0,0,0,0,0,0,{"$f":"SUM(B105:M105)","v":0},0,0,{"$f":"SUM(V105:X105)-Z105","v":0}]
["PHYSICO-CHIMIE",0,0,0,0,0,0,0,0,0,0,0,0,0,0,0,0,0,0,0,0,0,0,0,0]
["AGENT DE LAVERIE",0,0,0,0,0,0,0,0,0,0,0,0,0,0,0,0,0,0,0,0,0,0,0,0]
["MICROBIOLOGIE",0,0,0,0,0,0,0,0,0,0,0,0,0,0,0,0,0,0,0,0,0,0,0,0]
["CONT FINAL",0,0,0,0,0,0,0,0,0,0,0,0,0,0,0,0,0,0,0,0,0,0,0,0]
["TOTAL",{"$f":"SUM(B105:B109)","v":0},{"$f":"SUM(C105:C109)","v":0},0,0,0,0,0,0,0,0,0,0,0,0,0,0,0,0,0,0,0,0,0,0,0]
["DISP. LABOS EN % :",{"$f":"100*B110/V110","v":{"$error":"#DIV/0!"}},{"$f":"100*C110/V110","v":{"$error":"#DIV/0!"}},{"$f":"100*D110/V110","v":{"$error":"#DIV/0!"}},{"$f":"100*E110/V110","v":{"$error":"#DIV/0!"}},{"$f":"100*F110/V110","v":{"$error":"#DIV/0!"}},{"$f":"100*G110/V110","v":{"$error":"#DIV/0!"}},{"$f":"100*H110/V110","v":{"$error":"#DIV/0!"}},{"$f":"100*I110/V110","v":{"$error":"#DIV/0!"}},{"$f":"100*J110/V110","v":{"$error":"#DIV/0!"}},{"$f":"100*K110/V110","v":{"$error":"#DIV/0!"}},{"$f":"100*L110/V110","v":{"$error":"#DIV/0!"}},{"$f":"100*M110/V110","v":{"$error":"#DIV/0!"}},{"$f":"100*N110/V110","v":{"$error":"#DIV/0!"}},{"$f":"100*O110/V110","v":{"$error":"#DIV/0!"}},{"$f":"100*P110/V110","v":{"$error":"#DIV/0!"}},{"$f":"100*Q110/V110","v":{"$error":"#DIV/0!"}},{"$f":"100*R110/V110","v":{"$error":"#DIV/0!"}},{"$f":"100*S110/V110","v":{"$error":"#DIV/0!"}},{"$f":"100*T110/V110","v":{"$error":"#DIV/0!"}},{"$f":"100*U110/V110","v":{"$error":"#DIV/0!"}},{"$f":"100*V110/V110","v":{"$error":"#DIV/0!"}},{"$f":"100*W110/W110","v":{"$error":"#DIV/0!"}},{"$f":"100*X110/V110","v":{"$error":"#DIV/0!"}},{"$f":"100*Y110/V110","v":{"$error":"#DIV/0!"}},{"$f":"100*Z110/V110","v":{"$error":"#DIV/0!"}}]
[]
["NOVEMBRE"]
[]
[null,"AC","MP","PSO","PFC","STA","ECH","ENV","NET","LIMS","PROJET","ESS","AQ","AQ BIL","AQ FORM","AQ INFO","AQ REDAC","AQ VERIF","AQ REACT","AQ LEAN","AQ MET","CAP REELLE","CONGE","ABSENCES","CAP. THEO.","HS"]
["PRELEV. AC",0,0,0,0,0,0,0,0,0,0,0,0,0,0,0,0,0,0,0,0,{"$f":"SUM(B116:M116)","v":0},0,0,{"$f":"SUM(V116:X116)-Z116","v":0}]
["PHYSICO-CHIMIE",0,0,0,0,0,0,0,0,0,0,0,0,0,0,0,0,0,0,0,0,0,0,0,0]
["AGENT DE LAVERIE",0,0,0,0,0,0,0,0,0,0,0,0,0,0,0,0,0,0,0,0,0,0,0,0]
["MICROBIOLOGIE",0,0,0,0,0,0,0,0,0,0,0,0,0,0,0,0,0,0,0,0,0,0,0,0]
["CONT FINAL",0,0,0,0,0,0,0,0,0,0,0,0,0,0,0,0,0,0,0,0,0,0,0,0]
["TOTAL",{"$f":"SUM(B116:B120)","v":0},{"$f":"SUM(C116:C120)","v":0},0,0,0,0,0,0,0,0,0,0,0,0,0,0,0,0,0,0,0,0,0,0,0]
["DISP. LABOS EN % :",{"$f":"100*B121/V121","v":{"$error":"#DIV/0!"}},{"$f":"100*C121/V121","v":{"$error":"#DIV/0!"}},{"$f":"100*D121/V121","v":{"$error":"#DIV/0!"}},{"$f":"100*E121/V121","v":{"$error":"#DIV/0!"}},{"$f":"100*F121/V121","v":{"$error":"#DIV/0!"}},{"$f":"100*G121/V121","v":{"$error":"#DIV/0!"}},{"$f":"100*H121/V121","v":{"$error":"#DIV/0!"}},{"$f":"100*I121/V121","v":{"$error":"#DIV/0!"}},{"$f":"100*J121/V121","v":{"$error":"#DIV/0!"}},{"$f":"100*K121/V121","v":{"$error":"#DIV/0!"}},{"$f":"100*L121/V121","v":{"$error":"#DIV/0!"}},{"$f":"100*M121/V121","v":{"$error":"#DIV/0!"}},{"$f":"100*N121/V121","v":{"$error":"#DIV/0!"}},{"$f":"100*O121/V121","v":{"$error":"#DIV/0!"}},{"$f":"100*P121/V121","v":{"$error":"#DIV/0!"}},{"$f":"100*Q121/V121","v":{"$error":"#DIV/0!"}},{"$f":"100*R121/V121","v":{"$error":"#DIV/0!"}},{"$f":"100*S121/V121","v":{"$error":"#DIV/0!"}},{"$f":"100*T121/V121","v":{"$error":"#DIV/0!"}},{"$f":"100*U121/V121","v":{"$error":"#DIV/0!"}},{"$f":"100*V121/V121","v":{"$error":"#DIV/0!"}},{"$f":"100*W121/W121","v":{"$error":"#DIV/0!"}},{"$f":"100*X121/V121","v":{"$error":"#DIV/0!"}},{"$f":"100*Y121/V121","v":{"$error":"#DIV/0!"}},{"$f":"100*Z121/V121","v":{"$error":"#DIV/0!"}}]
[]
["DECEMBRE"]
[]
[null,"AC","MP","PSO","PFC","STA","ECH","ENV","NET","LIMS","PROJET","ESS","AQ","AQ BIL","AQ FORM","AQ INFO","AQ REDAC","AQ VERIF","AQ REACT","AQ LEAN","AQ MET","CAP REELLE","CONGE","ABSENCES","CAP. THEO.","HS"]
["PRELEV. AC",0,0,0,0,0,0,0,0,0,0,0,0,0,0,0,0,0,0,0,0,{"$f":"SUM(B127:M127)","v":0},0,0,{"$f":"SUM(V127:X127)-Z127","v":0}]
["PHYSICO-CHIMIE",0,0,0,0,0,0,0,0,0,0,0,0,0,0,0,0,0,0,0,0,0,0,0,0]
["AGENT DE LAVERIE",0,0,0,0,0,0,0,0,0,0,0,0,0,0,0,0,0,0,0,0,0,0,0,0]
["MICROBIOLOGIE",0,0,0,0,0,0,0,0,0,0,0,0,0,0,0,0,0,0,0,0,0,0,0,0]
["CONT FINAL",0,0,0,0,0,0,0,0,0,0,0,0,0,0,0,0,0,0,0,0,0,0,0,0]
["TOTAL",{"$f":"SUM(B127:B131)","v":0},{"$f":"SUM(C127:C131)","v":0},0,0,0,0,0,0,0,0,0,0,0,0,0,0,0,0,0,0,0,0,0,0,0]
["DISP. LABOS EN % :",{"$f":"100*B132/V132","v":{"$error":"#DIV/0!"}},{"$f":"100*C132/V132","v":{"$error":"#DIV/0!"}},{"$f":"100*D132/V132","v":{"$error":"#DIV/0!"}},{"$f":"100*E132/V132","v":{"$error":"#DIV/0!"}},{"$f":"100*F132/V132","v":{"$error":"#DIV/0!"}},{"$f":"100*G132/V132","v":{"$error":"#DIV/0!"}},{"$f":"100*H132/V132","v":{"$error":"#DIV/0!"}},{"$f":"100*I132/V132","v":{"$error":"#DIV/0!"}},{"$f":"100*J132/V132","v":{"$error":"#DIV/0!"}},{"$f":"100*K132/V132","v":{"$error":"#DIV/0!"}},{"$f":"100*L132/V132","v":{"$error":"#DIV/0!"}},{"$f":"100*M132/V132","v":{"$error":"#DIV/0!"}},{"$f":"100*N132/V132","v":{"$error":"#DIV/0!"}},{"$f":"100*O132/V132","v":{"$error":"#DIV/0!"}},{"$f":"100*P132/V132","v":{"$error":"#DIV/0!"}},{"$f":"100*Q132/V132","v":{"$error":"#DIV/0!"}},{"$f":"100*R132/V132","v":{"$error":"#DIV/0!"}},{"$f":"100*S132/V132","v":{"$error":"#DIV/0!"}},{"$f":"100*T132/V132","v":{"$error":"#DIV/0!"}},{"$f":"100*U132/V132","v":{"$error":"#DIV/0!"}},{"$f":"100*V132/V132","v":{"$error":"#DIV/0!"}},{"$f":"100*W132/W132","v":{"$error":"#DIV/0!"}},{"$f":"100*X132/V132","v":{"$error":"#DIV/0!"}},{"$f":"100*Y132/V132","v":{"$error":"#DIV/0!"}},{"$f":"100*Z132/V132","v":{"$error":"#DIV/0!"}}]
[]
[]
[]
[null,"AC","MP","PSO","PFC","STA","ECH","ENV","NET","LIMS","PROJET","ESS","AQ","AQ BIL","AQ FORM","AQ INFO","AQ REDAC","AQ VERIF","AQ REACT","AQ LEAN","AQ MET"]
["PRELEV. AC",{"$f":"SUM(B6+B17+B28+B39+B50+B61+B72+B83+B94+B105+B116+B127)","v":460.5},{"$f":"SUM(C6+C17+C28+C39+C50+C61+C72+C83+C94+C105+C116+C127)","v":386.75},189.25,0,0,8,153,0,22.5,0,4,123.5,0,5,13.75,46.5,0,0,20.25,38]
["PHYSICO-CHIMIE",{"$f":"SUM(B7+B18+B29+B40+B51+B62+B73+B84+B95+B106+B117+B128)","v":33.5},1221.75,1764,0,569.25,0,0,7.75,142.25,198.75,657.75,3056.5,104.25,89.5,883.75,186.25,765.5,289.75,116,621.5]
["AGENT DE LAVERIE",0,0,0,0,0,0,0,116.75,0,0,0,346.75,26.5,28.5,30,1.75,0,183,8.25,68.75]
["MICROBIOLOGIE",0,199,726.55,0,24.75,44.5,590.75,121.25,96,3,202.8,1501.4,141.25,322.5,178.25,206,240,236.15,34.5,142.75]
["CONT FINAL",0,0,0,365.5,0,0,0,0,4,0,0,61.5,11,0,3.75,0.25,2.5,0,40.5,3.5]
["TOTAL",{"$f":"SUM(B138:B142)","v":494},{"$f":"SUM(C138:C142)","v":1807.5},2679.8,365.5,594,52.5,743.75,245.75,264.75,201.75,864.55,5089.6499999999996,283,445.5,1109.5,440.75,1008,708.9,219.5,874.5]
[]
[]
[null,"Etat global 2016"]

{"sheet":"fBD","index":1,"n_rows":651,"n_cols":48,"rows_kept":651,"cut":false,"hidden":false,"merged":[]}
["Base de données imputation"]
["NOM","MOIS","Semaine","AC","Commentaire","MP","Commentaire","PSO","Commentaire","PFC","Commentaire","STA","Commentaire","ECH","Commentaire","ENV","Commentaire","NET","Commentaire","LIMS","Commentaire","PROJET","Commentaire","ESS","Commentaire","AQ BIL","Commentaire","AQ FORM","Commentaire","AQ INFO","Commentaire","AQ REDAC","Commentaire","AQ VERIF","Commentaire","AQ REACT","Commentaire","AQ LEAN","Commentaire","AQ MET","Commentaire","CONGE","ABSENCES","DONT HS\nindicatif","VISA/VALIDATION","AQ","CAPACITE\nREELLE","CAPACITE\nTHEORIQUE"]
["BONNEMORE","JANVIER","Semaine (04-08/01)",35,null,null,null,null,null,null,null,null,null,null,null,null,null,null,null,1,null,null,null,null,null,null,null,2,null,null,null,null,null,null,null,null,null,1,null,null,null,null,null,null,null,3,39,39]
["BONNEMORE","JANVIER","Semaine (11-15/01)",38,null,null,null,null,null,null,null,null,null,null,null,null,null,null,null,1,null,null,null,null,null,null,null,null,null,null,null,null,null,null,null,null,null,null,null,null,null,null,null,null,null,0,39,39]
["BONNEMORE","JANVIER","Semaine (18-22/01)",31,null,null,null,null,null,null,null,null,null,null,null,null,null,null,null,1,null,null,null,null,null,null,null,null,null,null,null,null,null,null,null,null,null,null,null,null,null,7,null,null,null,0,32,39]
["BONNEMORE","JANVIER","Semaine (25-29/01)",28,null,null,null,null,null,null,null,null,null,null,null,null,null,null,null,1,null,null,null,2,null,null,null,1,null,null,null,null,null,null,null,null,null,null,null,null,null,7,null,null,null,1,32,39]
["BONNEMORE","FEVRIER","Semaine (01-05/02)",38,null,null,null,null,null,null,null,null,null,null,null,null,null,null,null,1,null,null,null,null,null,null,null,null,null,null,null,null,null,null,null,null,null,null,null,null,null,null,null,null,null,0,39,39]
["BONNEMORE","FEVRIER","Semaine (81-12/02)",35.5,null,null,null,null,null,null,null,null,null,null,null,null,null,null,null,1,null,null,null,2,null,null,null,null,null,0.5,null,null,null,null,null,null,null,null,null,null,null,null,null,null,null,0.5,39,39]
["BONNEMORE","FEVRIER","Semaine (15-19/02)",38,null,null,null,null,null,null,null,null,null,null,null,null,null,null,null,1,null,null,null,null,null,null,null,null,null,null,null,null,null,null,null,null,null,null,null,null,null,null,null,null,null,0,39,39]
["BONNEMORE","FEVRIER","Semaine (22-26/02)",38,null,null,null,null,null,null,null,null,null,null,null,null,null,null,null,1,null,null,null,null,null,null,null,null,null,null,null,null,null,null,null,null,null,null,null,null,null,null,null,null,null,0,39,39]
["BONNEMORE","FEVRIER","Semaine (29/02)",4,null,null,null,null,null,null,null,null,null,null,null,null,null,null,null,1,null,null,null,null,null,null,null,null,null,null,null,1,null,null,null,null,null,null,null,2,null,null,null,null,null,3,8,8]
["BONNEMORE","MARS","Semaine (01-04/03)",30,null,null,null,null,null,null,null,null,null,null,null,null,null,null,null,1,null,null,null,null,null,null,null,null,null,null,null,null,null,null,null,null,null,null,null,null,null,null,null,null,null,0,31,31]
["BONNEMORE","MARS","Semaine (07-11/03)",38,null,null,null,null,null,null,null,null,null,null,null,null,null,null,null,1,null,null,null,null,null,null,null,null,null,null,null,null,null,null,null,null,null,null,null,null,null,null,null,null,null,0,39,39]
["BONNEMORE","MARS","Semaine (14-18/03)",38,null,null,null,null,null,null,null,null,null,null,null,null,null,null,null,1,null,null,null,null,null,null,null,null,null,null,null,null,null,null,null,null,null,null,null,null,null,null,null,null,null,0,39,39]
["BONNEMORE","MARS","Semaine (21-25/03)",38,null,null,null,null,null,null,null,null,null,null,null,null,null,null,null,1,null,null,null,null,null,null,null,null,null,null,null,null,null,null,null,null,null,null,null,null,null,null,null,null,null,0,39,39]
["BONNEMORE","MARS","Semaine (29-31/03)",null,null,null,null,null,null,null,null,null,null,null,null,null,null,null,null,null,null,null,null,null,null,null,null,null,null,null,null,null,null,null,null,null,null,null,null,null,null,24,null,null,null,0,0,24]
["EPRON","JANVIER","Semaine (04-08/01)",null,null,16,null,1,null,null,null,null,null,null,null,5.5,null,null,null,null,null,null,null,null,null,null,null,2,null,1,null,2,null,null,null,null,null,1,null,2.5,null,8,null,null,null,8.5,31,39]
["EPRON","JANVIER","Semaine (11-15/01)",2,null,20.5,null,5.75,null,null,null,null,null,null,null,5.75,null,null,null,null,null,null,null,null,null,null,null,null,null,null,null,2,null,null,null,null,null,0.5,null,2.5,null,null,null,null,null,5,39,39]
["EPRON","JANVIER","Semaine (18-22/01)",2,null,18.5,null,3.5,null,null,null,null,null,null,null,8,null,null,null,null,null,null,null,null,null,null,null,null,null,1,null,2,null,null,null,null,null,1.5,null,2.5,null,null,null,null,null,7,39,39]
["EPRON","JANVIER","Semaine (25-29/01)",7,null,8.25,null,2,null,null,null,null,null,null,null,8.25,null,null,null,null,null,null,null,null,null,null,null,null,null,null,null,3,null,null,null,null,null,0.5,null,2,null,8,null,null,null,5.5,31,39]
["EPRON","FEVRIER","Semaine (01-05/02)",null,null,16,null,12,null,null,null,null,null,null,null,5,null,null,null,null,null,null,null,null,null,null,null,null,null,null,null,3,null,null,null,null,null,0.5,null,2.5,null,null,null,null,null,6,39,39]
["EPRON","FEVRIER","Semaine (81-12/02)",null,null,16.5,null,6,null,null,null,null,null,null,null,9,null,null,null,null,null,null,null,null,null,null,null,null,null,2,null,3,null,null,null,null,null,0.5,null,2,null,null,null,null,null,7.5,39,39]
["EPRON","FEVRIER","Semaine (15-19/02)",null,null,18,null,5,null,null,null,null,null,null,null,9.5,null,null,null,null,null,null,null,null,null,null,null,null,null,null,null,3,null,null,null,null,null,1,null,2.5,null,null,null,null,null,6.5,39,39]
["EPRON","FEVRIER","Semaine (22-26/02)",null,null,11,null,11,null,null,null,null,null,null,null,11.5,null,null,null,null,null,null,null,null,null,null,null,null,null,null,null,2,null,null,null,null,null,null,null,3.5,null,null,null,null,null,5.5,39,39]
["EPRON","FEVRIER","Semaine (29/02)",null,null,2,null,3,null,null,null,null,null,null,null,0.5,null,null,null,null,null,null,null,null,null,null,null,null,null,null,null,2.5,null,null,null,null,null,null,null,null,null,null,null,null,null,2.5,8,8]
["EPRON","MARS","Semaine (01-04/03)",null,null,6,null,5,null,null,null,null,null,null,null,12.5,null,null,null,2,null,null,null,null,null,null,null,null,null,null,null,3,null,null,null,null,null,0.5,null,2,null,null,null,null,null,5.5,31,31]
["EPRON","MARS","Semaine (07-11/03)",3,null,16.5,null,8,null,null,null,null,null,null,null,6.5,null,null,null,null,null,null,null,null,null,null,null,null,null,0.75,null,null,null,null,null,null,null,0.25,null,null,null,4,null,null,null,1,35,39]
["EPRON","MARS","Semaine (14-18/03)",null,null,23.25,null,6,null,null,null,null,null,null,null,5.25,null,null,null,2.5,null,null,null,null,null,null,null,null,null,null,null,2,null,null,null,null,null,null,null,null,null,null,null,null,null,2,39,39]
["EPRON","MARS","Semaine (21-25/03)",null,null,20.25,null,3,null,null,null,null,null,null,null,5.25,null,null,null,2.5,null,null,null,null,null,null,null,null,null,1,null,2,null,null,null,null,null,1,null,null,null,4,null,null,null,4,35,39]
["EPRON","MARS","Semaine (29-31/03)",15,null,4,null,null,null,null,null,null,null,null,null,3,null,null,null,1.5,null,null,null,null,null,null,null,null,null,0.5,null,null,null,null,null,null,null,null,null,null,null,null,null,null,null,0.5,24,24]
["VEYSSIERE","JANVIER","Semaine (04-08/01)",null,null,18,null,3.5,null,null,null,null,null,4,null,5,null,null,null,null,null,null,null,null,null,null,null,null,null,3,null,1,null,null,null,null,null,1,null,1,null,null,2.5,null,null,6,36.5,39]
["VEYSSIERE","JANVIER","Semaine (11-15/01)",null,null,13,null,12,null,null,null,null,null,null,null,2,null,null,null,null,null,null,null,null,null,null,null,null,null,1,null,1,null,null,null,null,null,1,null,1,null,null,8,null,null,4,31,39]
["VEYSSIERE","JANVIER","Semaine (18-22/01)",null,null,10,null,8,null,null,null,null,null,null,null,1,null,null,null,null,null,null,null,null,null,null,null,null,null,null,null,1,null,null,null,null,null,2,null,1,null,16,null,null,null,4,23,39]
["VEYSSIERE","JANVIER","Semaine (25-29/01)",null,null,13,null,9,null,null,null,null,null,null,null,6,null,null,null,null,null,null,null,null,null,null,null,null,null,null,null,1,null,null,null,null,null,1,null,1,null,8,null,null,null,3,31,39]
["VEYSSIERE","FEVRIER","Semaine (01-05/02)",null,null,16,null,14,null,null,null,null,null,null,null,4,null,null,null,null,null,null,null,null,null,null,null,null,null,2,null,1,null,null,null,null,null,1,null,1,null,null,null,null,null,5,39,39]
["VEYSSIERE","FEVRIER","Semaine (81-12/02)",null,null,16,null,8,null,null,null,null,null,4,null,null,null,null,null,null,null,null,null,null,null,null,null,null,null,null,null,1,null,null,null,null,null,1,null,1,null,null,8,null,null,3,31,39]
["VEYSSIERE","FEVRIER","Semaine (15-19/02)",null,null,20,null,11,null,null,null,null,null,null,null,4,null,null,null,1,null,null,null,null,null,null,null,null,null,null,null,1,null,null,null,null,null,1,null,1,null,null,null,null,null,3,39,39]
["VEYSSIERE","FEVRIER","Semaine (22-26/02)",null,null,19,null,7.5,null,null,null,null,null,null,null,10.5,null,null,null,null,null,null,null,null,null,null,null,null,null,null,null,1,null,null,null,null,null,null,null,1,null,null,null,null,null,2,39,39]
["VEYSSIERE","FEVRIER","Semaine (29/02)",null,null,null,null,2,null,null,null,null,null,null,null,3,null,null,null,null,null,null,null,null,null,null,null,null,null,null,null,2,null,null,null,null,null,null,null,1,null,null,null,null,null,3,8,8]
["VEYSSIERE","MARS","Semaine (01-04/03)",null,null,4,null,7,null,null,null,null,null,null,null,7,null,null,null,null,null,null,null,null,null,null,null,null,null,null,null,2,null,null,null,null,null,2,null,1,null,null,8,null,null,5,23,31]
["VEYSSIERE","MARS","Semaine (07-11/03)",2,null,7,null,18,null,null,null,null,null,null,null,9,null,null,null,null,null,null,null,null,null,null,null,null,null,null,null,1,null,null,null,null,null,1,null,1,null,null,null,null,null,3,39,39]
["VEYSSIERE","MARS","Semaine (14-18/03)",null,null,20,null,9,null,null,null,null,null,null,null,null,null,null,null,null,null,null,null,null,null,null,null,null,null,null,null,1,null,null,null,null,null,null,null,1,null,8,null,null,null,2,31,39]
["VEYSSIERE","MARS","Semaine (21-25/03)",null,null,20,null,9,null,null,null,null,null,null,null,6,null,null,null,null,null,null,null,null,null,null,null,null,null,1,null,1,null,null,null,null,null,1,null,1,null,null,null,null,null,4,39,39]
["VEYSSIERE","MARS","Semaine (29-31/03)",null,null,14,null,null,null,null,null,null,null,null,null,null,null,null,null,null,null,null,null,null,null,null,null,null,null,null,null,1,null,null,null,null,null,null,null,1,null,8,null,null,null,2,16,24]
["ABAD","JANVIER","Semaine (04-08/01)",1.5,null,2,null,27,null,null,null,null,null,null,null,null,null,null,null,null,null,null,null,2.5,null,null,null,2,null,1,null,null,null,null,null,3,null,null,null,null,null,null,null,null,null,6,39,39]
["ABAD","JANVIER","Semaine (11-15/01)",0.5,null,2,null,27.5,null,null,null,null,null,null,null,null,null,null,null,null,null,null,null,2,null,null,null,null,null,1,null,null,null,null,null,3.5,null,null,null,1.5,null,null,1,null,null,6,38,39]
["ABAD","JANVIER","Semaine (18-22/01)",null,null,1.5,null,31,null,null,null,null,null,null,null,null,null,null,null,null,null,null,null,null,null,null,null,3,null,2,null,null,null,null,null,0.5,null,null,null,1,null,null,null,null,null,6.5,39,39]
["ABAD","JANVIER","Semaine (25-29/01)",null,null,1.5,null,34.5,null,null,null,null,null,null,null,null,null,null,null,null,null,null,null,null,null,null,null,null,null,1,null,null,null,null,null,null,null,1,null,1,null,null,null,null,null,3,39,39]
["ABAD","FEVRIER","Semaine (01-05/02)",null,null,2,null,31.75,null,null,null,null,null,null,null,null,null,null,null,null,null,null,null,null,null,null,null,1,null,1.25,null,null,null,null,null,null,null,null,null,3,null,null,null,null,null,5.25,39,39]
["ABAD","FEVRIER","Semaine (81-12/02)",null,null,3,null,28.5,null,null,null,null,null,null,null,null,null,null,null,null,null,null,null,null,null,null,null,null,null,1.5,null,null,null,null,null,4,null,null,null,2,null,null,null,null,null,7.5,39,39]
["ABAD","FEVRIER","Semaine (15-19/02)",null,null,2,null,24.75,null,null,null,null,null,null,null,null,null,null,null,null,null,null,null,null,null,null,null,null,null,1,null,null,null,null,null,null,null,1,null,3,null,null,7.25,null,null,5,31.75,39]
["ABAD","FEVRIER","Semaine (22-26/02)",null,null,null,null,14.75,null,null,null,null,null,null,null,null,null,null,null,null,null,null,null,null,null,null,null,null,null,0.25,null,null,null,null,null,null,null,null,null,null,null,null,null,null,null,0.25,15,15]
["ABAD","FEVRIER","Semaine (29/02)",null,null,null,null,7.75,null,null,null,null,null,null,null,null,null,null,null,null,null,null,null,null,null,null,null,null,null,0.25,null,null,null,null,null,null,null,null,null,null,null,null,null,null,null,0.25,8,8]
["ABAD","MARS","Semaine (01-04/03)",null,null,null,null,29,null,null,null,null,null,null,null,null,null,null,null,null,null,null,null,null,null,null,null,null,null,1,null,null,null,null,null,null,null,null,null,1,null,null,null,null,null,2,31,31]
["ABAD","MARS","Semaine (07-11/03)",null,null,0.5,null,33.5,null,null,null,0.5,null,null,null,null,null,null,null,null,null,null,null,2,null,null,null,0.5,null,1,null,null,null,null,null,null,null,null,null,1,null,null,null,null,null,2.5,39,39]
["ABAD","MARS","Semaine (14-18/03)",null,null,null,null,33.5,null,null,null,null,null,null,null,null,null,null,null,null,null,null,null,1,null,null,null,null,null,1,null,null,null,null,null,2.5,null,null,null,1,null,null,null,null,null,4.5,39,39]
["ABAD","MARS","Semaine (21-25/03)",null,null,null,null,33.5,null,null,null,null,null,null,null,null,null,null,null,null,null,null,null,null,null,null,null,null,null,1.5,null,null,null,null,null,2,null,1,null,1,null,null,null,null,null,5.5,39,39]
["ABAD","MARS","Semaine (29-31/03)",null,null,null,null,23,null,null,null,null,null,null,null,null,null,null,null,null,null,null,null,null,null,null,null,null,null,0.5,null,null,null,null,null,0.5,null,null,null,null,null,null,null,null,null,1,24,24]
["BAH","JANVIER","Semaine (04-08/01)",null,null,25.5,null,null,null,null,null,null,null,null,null,null,null,null,null,null,null,null,null,1,null,null,null,2.5,null,2.25,null,null,null,null,null,1,null,null,null,6.75,null,null,null,null,null,12.5,39,39]
["BAH","JANVIER","Semaine (11-15/01)",null,null,24.5,null,null,null,null,null,null,null,null,null,null,null,null,null,null,null,null,null,1.5,null,null,null,null,null,1.25,null,null,null,null,null,0.75,null,null,null,11,null,null,null,null,null,13,39,39]
["BAH","JANVIER","Semaine (18-22/01)",null,null,25,null,0.25,null,null,null,null,null,null,null,null,null,null,null,null,null,null,null,4.25,null,0.5,null,null,null,3.75,null,null,null,null,null,2.25,null,null,null,3,null,null,null,null,null,9.5,39,39]
["BAH","JANVIER","Semaine (25-29/01)",null,null,21.75,null,2,null,null,null,null,null,null,null,null,null,null,null,null,null,null,null,9.75,null,null,null,null,null,2,null,null,null,null,null,0.75,null,1,null,2.5,null,null,1.25,2,null,6.25,39.75,39]
["BAH","FEVRIER","Semaine (01-05/02)",null,null,9.75,null,null,null,null,null,null,null,null,null,null,null,null,null,null,null,null,null,7.75,null,null,null,null,null,1,null,7,null,null,null,0.75,null,null,null,4.75,null,8,null,null,null,13.5,31,39]
["BAH","FEVRIER","Semaine (81-12/02)",null,null,29.25,null,null,null,null,null,null,null,null,null,null,null,null,null,null,null,null,null,4,null,null,null,0.5,null,1.75,null,0.5,null,null,null,0.75,null,null,null,2.25,null,null,null,null,null,5.75,39,39]
["BAH","FEVRIER","Semaine (15-19/02)",null,null,25.75,null,0.5,null,null,null,null,null,null,null,null,null,null,null,null,null,null,null,null,null,3,null,null,null,1.5,null,0.25,null,4,null,null,null,null,null,4,null,null,null,null,null,12.75,39,39]
["BAH","FEVRIER","Semaine (22-26/02)",null,null,31,null,0.5,null,null,null,null,null,null,null,null,null,null,null,null,null,null,null,0.5,null,1.25,null,null,null,0.75,null,null,null,null,null,2.25,null,null,null,2.75,null,null,null,null,null,7,39,39]
["BAH","FEVRIER","Semaine (29/02)",null,null,null,null,null,null,null,null,null,null,null,null,null,null,null,null,null,null,null,null,null,null,null,null,null,null,null,null,null,null,null,null,null,null,null,null,null,null,8,null,null,null,0,0,8]
["BAH","MARS","Semaine (01-04/03)",null,null,18.75,null,null,null,null,null,null,null,null,null,null,null,null,null,null,null,null,null,null,null,null,null,null,null,1,null,null,null,null,null,0.5,null,null,null,2.75,null,8,null,null,null,4.25,23,31]
["BAH","MARS","Semaine (07-11/03)",null,null,9.25,null,2.5,null,null,null,null,null,null,null,null,null,null,null,null,null,2.25,null,13.25,null,1,null,0.75,null,1,null,null,null,null,null,0.75,null,null,null,8.25,null,null,null,null,null,11.75,39,39]
["BAH","MARS","Semaine (14-18/03)",null,null,27.75,null,3.75,null,null,null,null,null,null,null,null,null,null,null,null,null,null,null,0.75,null,0.25,null,0.5,null,0.75,null,null,null,null,null,0.75,null,null,null,4.5,null,null,null,null,null,6.75,39,39]
["BAH","MARS","Semaine (21-25/03)",null,null,29.5,null,1,null,null,null,null,null,null,null,null,null,null,null,null,null,null,null,1.5,null,null,null,null,null,2,null,null,null,null,null,1.5,null,1,null,0.5,null,null,null,1,null,5,37,36]
["BAH","MARS","Semaine (29-31/03)",null,null,24,null,0.5,null,null,null,null,null,null,null,null,null,null,null,null,null,null,null,null,null,null,null,null,null,null,null,null,null,null,null,0.75,null,null,null,1,null,null,null,2.25,null,1.75,26.25,24]
["BERNADOU","JANVIER","Semaine (04-08/01)",0.5,null,null,null,0.5,null,null,null,null,null,null,null,null,null,null,null,null,null,10.25,null,null,null,null,null,null,null,1.75,null,null,null,1,null,17.5,null,0.5,null,7,null,null,null,null,null,27.75,39,39]
["BERNADOU","JANVIER","Semaine (11-15/01)",null,null,null,null,0.25,null,null,null,null,null,null,null,null,null,null,null,null,null,2,null,2,null,null,null,null,null,3,null,null,null,12.25,null,17.5,null,null,null,2,null,null,null,null,null,34.75,39,39]
["BERNADOU","JANVIER","Semaine (18-22/01)",null,null,null,null,null,null,null,null,null,null,null,null,null,null,null,null,null,null,8,null,null,null,null,null,null,null,0.5,null,null,null,1,null,20.25,null,null,null,1.25,null,8,null,null,null,23,31,39]
["BERNADOU","JANVIER","Semaine (25-29/01)",null,null,null,null,null,null,null,null,null,null,null,null,null,null,null,null,null,null,1.5,null,null,null,null,null,0.25,null,2.5,null,null,null,13.25,null,10.75,null,1,null,2.75,null,7,null,null,null,30.5,32,39]
["BERNADOU","FEVRIER","Semaine (01-05/02)",null,null,null,null,1,null,null,null,null,null,null,null,null,null,null,null,null,null,3,null,null,null,null,null,0.5,null,1.75,null,null,null,13.5,null,16.25,null,null,null,4,null,null,null,1,null,36,40,39]
["BERNADOU","FEVRIER","Semaine (81-12/02)",null,null,null,null,null,null,null,null,null,null,null,null,null,null,null,null,null,null,null,null,null,null,null,null,null,null,1.5,null,null,null,26.75,null,11.5,null,null,null,null,null,null,null,0.75,null,39.75,39.75,39]
["BERNADOU","FEVRIER","Semaine (15-19/02)",null,null,null,null,1,null,null,null,null,null,null,null,null,null,null,null,null,null,7,null,null,null,null,null,0.5,null,0.25,null,null,null,12.75,null,9.5,null,1,null,1,null,7,null,1,null,25,33,39]
["BERNADOU","FEVRIER","Semaine (22-26/02)",null,null,null,null,0.25,null,null,null,null,null,null,null,null,null,null,null,null,null,5,null,null,null,null,null,null,null,0.5,null,null,null,null,null,9,null,null,null,1.25,null,23,null,null,null,10.75,16,39]
["BERNADOU","FEVRIER","Semaine (29/02)",null,null,null,null,null,null,null,null,null,null,null,null,null,null,null,null,null,null,null,null,null,null,null,null,null,null,null,null,null,null,null,null,7.5,null,null,null,0.5,null,null,null,null,null,8,8,8]
["BERNADOU","MARS","Semaine (01-04/03)",null,null,null,null,0.25,null,null,null,null,null,null,null,null,null,null,null,null,null,8,null,null,null,null,null,null,null,1.75,null,null,null,0.5,null,8.5,null,null,null,4,null,8,null,null,null,14.75,23,31]
["BERNADOU","MARS","Semaine (07-11/03)",null,null,null,null,0.25,null,null,null,null,null,null,null,null,null,null,null,null,null,5.5,null,null,null,null,null,null,null,1.25,null,null,null,9.5,null,13,null,null,null,9.5,null,null,null,null,null,33.25,39,39]
["BERNADOU","MARS","Semaine (14-18/03)",null,null,null,null,0.75,null,null,null,null,null,null,null,null,null,null,null,null,null,2.75,null,null,null,null,null,null,null,1,null,null,null,8.75,null,23,null,null,null,2.75,null,null,null,null,null,35.5,39,39]
["BERNADOU","MARS","Semaine (21-25/03)",null,null,null,null,0.5,null,null,null,null,null,null,null,null,null,null,null,null,null,3.75,null,2.5,null,null,null,null,null,null,null,0.5,null,7.75,null,18.5,null,1,null,4.5,null,null,null,null,null,32.25,39,39]
["BERNADOU","MARS","Semaine (29-31/03)",null,null,null,null,3.25,null,null,null,null,null,null,null,null,null,null,null,null,null,0.5,null,null,null,null,null,null,null,null,null,1,null,7,null,13,null,null,null,1,null,null,null,2.75,null,22,25.75,23]
["BOULESTIN","JANVIER","Semaine (04-08/01)",null,null,13.5,null,7,null,null,null,null,null,null,null,null,null,null,null,null,null,8.25,null,1,null,null,null,null,null,2.75,null,1.5,null,null,null,null,null,null,null,5,null,null,null,null,null,9.25,39,39]
["BOULESTIN","JANVIER","Semaine (11-15/01)",null,null,27.75,null,2.25,null,null,null,null,null,null,null,null,null,null,null,null,null,null,null,2.25,null,null,null,null,null,1.25,null,null,null,null,null,2.5,null,null,null,3,null,null,null,null,null,6.75,39,39]
["BOULESTIN","JANVIER","Semaine (18-22/01)",null,null,23.75,null,null,null,null,null,null,null,null,null,null,null,null,null,null,null,null,null,null,null,null,null,null,null,4,null,2.25,null,null,null,null,null,null,null,9,null,null,null,null,null,15.25,39,39]
["BOULESTIN","JANVIER","Semaine (25-29/01)",null,null,12.25,null,6.25,null,null,null,null,null,null,null,null,null,null,null,null,null,null,null,6,null,null,null,null,null,2,null,null,null,null,null,null,null,1.25,null,3.25,null,8,null,null,null,6.5,31,39]
["BOULESTIN","FEVRIER","Semaine (01-05/02)",null,null,4,null,17.75,null,null,null,null,null,null,null,null,null,null,null,null,null,null,null,5.25,null,null,null,null,null,3,null,4,null,null,null,null,null,null,null,5,null,null,null,null,null,12,39,39]
["BOULESTIN","FEVRIER","Semaine (81-12/02)",null,null,26.5,null,0.5,null,null,null,null,null,null,null,null,null,null,null,null,null,null,null,4,null,null,null,1,null,3.5,null,null,null,null,null,null,null,null,null,3.5,null,null,null,null,null,8,39,39]
["BOULESTIN","FEVRIER","Semaine (15-19/02)",null,null,null,null,null,null,null,null,null,null,null,null,null,null,null,null,null,null,null,null,null,null,null,null,null,null,null,null,null,null,null,null,null,null,null,null,null,null,null,null,null,null,0,0,0]
["BOULESTIN","FEVRIER","Semaine (22-26/02)",null,null,19,null,null,null,null,null,null,null,null,null,null,null,null,null,null,null,null,null,8.5,null,null,null,0.5,null,3.5,null,null,null,null,null,null,null,null,null,7.5,null,null,null,null,null,11.5,39,39]
["BOULESTIN","FEVRIER","Semaine (29/02)",null,null,3.75,null,null,null,null,null,null,null,null,null,null,null,null,null,null,null,null,null,1,null,null,null,0.5,null,0.75,null,null,null,null,null,0.5,null,null,null,1.5,null,null,null,null,null,3.25,8,8]
["BOULESTIN","MARS","Semaine (01-04/03)",null,null,19,null,null,null,null,null,null,null,null,null,null,null,null,null,null,null,null,null,0.75,null,null,null,null,null,8.5,null,null,null,null,null,null,null,null,null,3.75,null,null,null,1,null,12.25,32,31]
["BOULESTIN","MARS","Semaine (07-11/03)",null,null,1,null,0.75,null,null,null,10.25,null,null,null,null,null,null,null,null,null,null,null,3,null,null,null,5,null,1.5,null,0.25,null,null,null,null,null,null,null,1.25,null,16,null,null,null,8,23,39]
["BOULESTIN","MARS","Semaine (14-18/03)",null,null,1,null,null,null,null,null,26,null,null,null,null,null,null,null,null,null,null,null,6,null,null,null,1,null,1.75,null,null,null,null,null,null,null,null,null,2.5,null,null,0.75,null,null,5.25,38.25,39]
["BOULESTIN","MARS","Semaine (21-25/03)",null,null,null,null,15.75,null,null,null,15.5,null,null,null,null,null,null,null,null,null,null,null,null,null,null,null,null,null,1.75,null,null,null,null,null,null,null,1.5,null,4.5,null,null,null,null,null,7.75,39,39]
["BOULESTIN","MARS","Semaine (29-31/03)",null,null,null,null,7.5,null,null,null,7,null,null,null,null,null,null,null,null,null,null,null,6,null,null,null,null,null,3.5,null,null,null,null,null,null,null,null,null,null,null,null,null,null,null,3.5,24,24]
["CAVAILLE","JANVIER","Semaine (04-08/01)",null,null,32,null,null,null,null,null,null,null,null,null,null,null,null,null,null,null,null,null,null,null,null,null,2,null,1.5,null,null,null,null,null,3,null,null,null,0.5,null,null,null,null,null,7,39,39]
["CAVAILLE","JANVIER","Semaine (11-15/01)",null,null,36,null,null,null,null,null,null,null,null,null,null,null,null,null,null,null,null,null,null,null,null,null,null,null,1.25,null,0.25,null,null,null,1.5,null,null,null,null,null,null,null,null,null,3,39,39]
["CAVAILLE","JANVIER","Semaine (18-22/01)",null,null,34,null,null,null,null,null,null,null,null,null,null,null,null,null,null,null,null,null,null,null,null,null,null,null,3.5,null,0.25,null,null,null,1.25,null,null,null,null,null,null,null,null,null,5,39,39]
["CAVAILLE","JANVIER","Semaine (25-29/01)",null,null,34,null,null,null,null,null,null,null,null,null,null,null,null,null,null,null,null,null,null,null,null,null,null,null,1.25,null,null,null,null,null,1,null,1,null,1.75,null,null,null,null,null,5,39,39]
["CAVAILLE","FEVRIER","Semaine (01-05/02)",0.5,null,25.75,null,4.25,null,null,null,null,null,null,null,null,null,null,null,null,null,null,null,null,null,null,null,null,null,2.25,null,0.25,null,null,null,1.5,null,null,null,4.5,null,null,null,null,null,8.5,39,39]
["CAVAILLE","FEVRIER","Semaine (81-12/02)",2.75,null,null,null,32,null,null,null,null,null,null,null,null,null,null,null,null,null,null,null,null,null,null,null,null,null,1.75,null,0.5,null,null,null,null,null,null,null,2,null,null,null,null,null,4.25,39,39]
["CAVAILLE","FEVRIER","Semaine (15-19/02)",2.5,null,null,null,32.75,null,null,null,null,null,null,null,null,null,null,null,null,null,null,null,null,null,null,null,null,null,1.5,null,0.25,null,null,null,null,null,1,null,1,null,null,null,null,null,3.75,39,39]
["CAVAILLE","FEVRIER","Semaine (22-26/02)",null,null,33.75,null,null,null,null,null,null,null,null,null,null,null,null,null,null,null,null,null,null,null,null,null,null,null,0.75,null,0.5,null,null,null,2.25,null,null,null,1.75,null,null,null,null,null,5.25,39,39]
["CAVAILLE","FEVRIER","Semaine (29/02)",null,null,7.25,null,null,null,null,null,null,null,null,null,null,null,null,null,null,null,null,null,null,null,null,null,null,null,0.25,null,null,null,null,null,0.25,null,null,null,0.25,null,null,null,null,null,0.75,8,8]
["CAVAILLE","MARS","Semaine (01-04/03)",null,null,19.75,null,null,null,null,null,null,null,null,null,null,null,null,null,null,null,null,null,7,null,null,null,null,null,1.75,null,null,null,null,null,0.5,null,null,null,2,null,null,null,null,null,4.25,31,31]
["CAVAILLE","MARS","Semaine (07-11/03)",null,null,28.75,null,null,null,null,null,null,null,null,null,null,null,null,null,null,null,null,null,7.25,null,null,null,null,null,1.5,null,0.75,null,null,null,0.75,null,null,null,null,null,null,null,null,null,3,39,39]
["CAVAILLE","MARS","Semaine (14-18/03)",0.75,null,10,null,null,null,null,null,8,null,null,null,null,null,null,null,null,null,null,null,8,null,null,null,null,null,1,null,0.25,null,null,null,1.5,null,null,null,1.5,null,8,null,null,null,4.25,31,39]
["CAVAILLE","MARS","Semaine (21-25/03)",null,null,26.5,null,null,null,null,null,null,null,null,null,null,null,null,null,null,null,null,null,6.5,null,null,null,null,null,1.75,null,null,null,null,null,1.25,null,1,null,2,null,null,null,null,null,6,39,39]
["CAVAILLE","MARS","Semaine (29-31/03)",null,null,13.5,null,null,null,null,null,null,null,null,null,null,null,null,null,null,null,null,null,6,null,null,null,null,null,0.5,null,0.25,null,null,null,2,null,null,null,1.75,null,null,null,null,null,4.5,24,24]
["CERVEAUX ","JANVIER","Semaine (04-08/01)",null,null,null,null,null,null,null,null,null,null,null,null,null,null,null,null,null,null,null,null,null,null,0.5,null,null,null,2.25,null,null,null,36.25,null,null,null,null,null,null,null,null,null,null,null,39,39,39]
["CERVEAUX ","JANVIER","Semaine (11-15/01)",null,null,null,null,0.5,null,null,null,null,null,null,null,null,null,null,null,null,null,20,null,null,null,1.75,null,null,null,null,null,null,null,15.5,null,null,null,null,null,1.25,null,null,null,null,null,18.5,39,39]
["CERVEAUX ","JANVIER","Semaine (18-22/01)",null,null,null,null,null,null,null,null,null,null,null,null,null,null,null,null,null,null,11.5,null,null,null,1.5,null,null,null,3.25,null,null,null,22,null,null,null,0.75,null,null,null,null,null,null,null,27.5,39,39]
["CERVEAUX ","JANVIER","Semaine (25-29/01)",null,null,null,null,null,null,null,null,null,null,null,null,null,null,null,null,null,null,17.5,null,null,null,0.5,null,null,null,1.25,null,null,null,11.75,null,null,null,null,null,null,null,8,null,null,null,13.5,31,39]
["CERVEAUX ","FEVRIER","Semaine (01-05/02)",null,null,null,null,null,null,null,null,null,null,null,null,null,null,null,null,null,null,10.5,null,null,null,null,null,null,null,2.5,null,22,null,null,null,null,null,null,null,null,null,4,null,null,null,24.5,35,39]
["CERVEAUX ","FEVRIER","Semaine (81-12/02)",null,null,null,null,null,null,null,null,null,null,null,null,null,null,null,null,null,null,null,null,null,null,1,null,null,null,null,null,18.75,null,18,null,null,null,null,null,1.25,null,null,null,null,null,39,39,39]
["CERVEAUX ","FEVRIER","Semaine (15-19/02)",null,null,null,null,0.5,null,null,null,null,null,null,null,null,null,null,null,null,null,null,null,4.25,null,0.75,null,null,null,1.75,null,1.25,null,25.75,null,null,null,2,null,2.75,null,null,null,null,null,34.25,39,39]
["CERVEAUX ","FEVRIER","Semaine (22-26/02)",null,null,null,null,0.25,null,null,null,null,null,null,null,null,null,null,null,null,null,1,null,0.25,null,0.75,null,null,null,1,null,null,null,34.5,null,null,null,null,null,1.25,null,null,null,null,null,37.5,39,39]
["CERVEAUX ","FEVRIER","Semaine (29/02)",null,null,null,null,null,null,null,null,null,null,null,null,null,null,null,null,null,null,null,null,null,null,0.75,null,null,null,0.25,null,null,null,7,null,null,null,null,null,null,null,null,null,null,null,8,8,8]
["CERVEAUX ","MARS","Semaine (01-04/03)",null,null,null,null,null,null,null,null,null,null,null,null,null,null,null,null,0.5,null,2.75,null,null,null,0.75,null,null,null,1.75,null,2,null,21.75,null,null,null,null,null,1.5,null,null,null,null,null,27.75,31,31]
["CERVEAUX ","MARS","Semaine (07-11/03)",null,null,null,null,null,null,null,null,null,null,null,null,null,null,null,null,11,null,null,null,null,null,null,null,null,null,1,null,null,null,19,null,null,null,null,null,null,null,8,null,null,null,20,31,39]
["CERVEAUX ","MARS","Semaine (14-18/03)",null,null,null,null,1,null,null,null,null,null,null,null,null,null,null,null,null,null,2.5,null,null,null,null,null,1.5,null,2.75,null,null,null,31.25,null,0.75,null,null,null,0.25,null,null,null,1,null,36.5,40,39]
["CERVEAUX ","MARS","Semaine (21-25/03)",null,null,null,null,null,null,null,null,null,null,null,null,null,null,null,null,8.25,null,13,null,null,null,1,null,0.5,null,2,null,0.5,null,12.25,null,null,null,1,null,0.5,null,null,null,null,null,17.75,39,39]
["CERVEAUX ","MARS","Semaine (29-31/03)",null,null,null,null,null,null,null,null,null,null,null,null,null,null,null,null,null,null,0.5,null,null,null,0.75,null,null,null,0.25,null,null,null,21.5,null,null,null,0.5,null,0.5,null,null,null,null,null,23.5,24,24]
["CRON","JANVIER","Semaine (04-08/01)",null,null,null,null,7,null,null,null,27.5,null,null,null,null,null,null,null,null,null,1,null,null,null,null,null,1,null,1.5,null,null,null,null,null,null,null,null,null,1,null,null,null,null,null,3.5,39,39]
["CRON","JANVIER","Semaine (11-15/01)",null,null,null,null,9,null,null,null,21,null,null,null,null,null,null,null,null,null,null,null,null,null,null,null,null,null,1,null,null,null,null,null,null,null,null,null,null,null,8,null,null,null,1,31,39]
["CRON","JANVIER","Semaine (18-22/01)",null,null,null,null,28,null,null,null,null,null,null,null,null,null,2,null,null,null,null,null,2.25,null,null,null,1,null,2.25,null,null,null,null,null,null,null,0.5,null,3,null,null,null,null,null,6.75,39,39]
["CRON","JANVIER","Semaine (25-29/01)",null,null,1.25,null,12.5,null,null,null,1.5,null,null,null,null,null,null,null,null,null,null,null,18,null,0.25,null,null,null,1.25,null,null,null,null,null,null,null,1,null,3.25,null,null,null,null,null,5.75,39,39]
["CRON","FEVRIER","Semaine (01-05/02)",null,null,null,null,13,null,null,null,16,null,null,null,null,null,null,null,null,null,null,null,1,null,null,null,3.5,null,1.5,null,null,null,null,null,null,null,null,null,4,null,null,null,null,null,9,39,39]
["CRON","FEVRIER","Semaine (81-12/02)",null,null,null,null,15.25,null,null,null,6.25,null,null,null,null,null,null,null,null,null,null,null,7,null,null,null,1.5,null,1,null,null,null,null,null,null,null,null,null,1.5,null,null,7,0.5,null,4,32.5,39]
["CRON","FEVRIER","Semaine (15-19/02)",null,null,null,null,23.75,null,null,null,null,null,null,null,null,null,null,null,null,null,null,null,10.5,null,null,null,null,null,1.5,null,null,null,null,null,null,null,1,null,2.25,null,null,null,null,null,4.75,39,39]
["CRON","FEVRIER","Semaine (22-26/02)",null,null,null,null,28.25,null,null,null,null,null,null,null,null,null,null,null,null,null,null,null,3.5,null,1,null,null,null,0.75,null,null,null,null,null,null,null,null,null,6.25,null,null,null,0.75,null,8,39.75,39]
["CRON","FEVRIER","Semaine (29/02)",null,null,null,null,4.5,null,null,null,null,null,null,null,null,null,null,null,null,null,null,null,2.5,null,null,null,0.25,null,null,null,null,null,null,null,null,null,null,null,1.25,null,null,null,0.5,null,1.5,8.5,8]
["CRON","MARS","Semaine (01-04/03)",null,null,null,null,5.5,null,null,null,null,null,null,null,null,null,null,null,null,null,null,null,16,null,null,null,null,null,1.5,null,null,null,null,null,null,null,null,null,8,null,null,null,null,null,9.5,31,31]
["CRON","MARS","Semaine (07-11/03)",null,null,null,null,17.75,null,null,null,6.5,null,null,null,null,null,null,null,null,null,null,null,7,null,null,null,1.5,null,1.5,null,null,null,null,null,null,null,null,null,4.75,null,null,null,null,null,7.75,39,39]
["CRON","MARS","Semaine (14-18/03)",null,null,null,null,6,null,null,null,null,null,null,null,null,null,null,null,null,null,null,null,27.25,null,null,null,1.75,null,1.25,null,null,null,null,null,null,null,null,null,2.75,null,null,null,null,null,5.75,39,39]
["CRON","MARS","Semaine (21-25/03)",null,null,3,null,1.25,null,null,null,13.5,null,null,null,null,null,null,null,null,null,null,null,18,null,null,null,null,null,1.75,null,null,null,null,null,null,null,1,null,0.5,null,null,null,null,null,3.25,39,39]
["CRON","MARS","Semaine (29-31/03)",null,null,null,null,null,null,null,null,null,null,null,null,null,null,null,null,null,null,null,null,null,null,null,null,null,null,null,null,null,null,null,null,null,null,null,null,null,null,24,null,null,null,0,0,24]
["GUEGUEN","JANVIER","Semaine (04-08/01)",null,null,null,null,null,null,null,null,null,null,null,null,null,null,null,null,null,null,null,null,0.5,null,2,null,null,null,2.25,null,9,null,10.75,null,null,null,6.5,null,null,null,8,null,null,null,30.5,31,39]
["GUEGUEN","JANVIER","Semaine (11-15/01)",null,null,null,null,null,null,null,null,null,null,null,null,null,null,null,null,null,null,null,null,null,null,1,null,null,null,4,null,6.5,null,13.25,null,null,null,6.25,null,null,null,8,null,null,null,31,31,39]
["GUEGUEN","JANVIER","Semaine (18-22/01)",null,null,null,null,null,null,null,null,null,null,null,null,null,null,null,null,null,null,null,null,0.75,null,null,null,0.25,null,5.25,null,7.75,null,13.75,null,0.5,null,4.25,null,null,null,8,null,1.5,null,31.75,32.5,39]
["GUEGUEN","JANVIER","Semaine (25-29/01)",null,null,null,null,null,null,null,null,null,null,null,null,null,null,null,null,null,null,null,null,1.5,null,null,null,0.5,null,2.5,null,3.5,null,15.75,null,null,null,6.75,null,0.5,null,8,null,null,null,29.5,31,39]
["GUEGUEN","FEVRIER","Semaine (01-05/02)",null,null,null,null,null,null,null,null,null,null,null,null,null,null,null,null,null,null,null,null,null,null,0.75,null,1,null,6.25,null,7.25,null,23,null,null,null,null,null,null,null,null,2.25,1.5,null,38.25,38.25,39]
["GUEGUEN","FEVRIER","Semaine (81-12/02)",null,null,null,null,null,null,null,null,null,null,null,null,null,null,null,null,null,null,null,null,null,null,null,null,null,null,1.75,null,10.5,null,21.25,null,null,null,4,null,1.5,null,null,null,null,null,39,39,39]
["GUEGUEN","FEVRIER","Semaine (15-19/02)",null,null,null,null,null,null,null,null,null,null,null,null,null,null,null,null,null,null,null,null,null,null,2.5,null,null,null,2,null,10.5,null,11.75,null,null,null,12.25,null,null,null,null,null,null,null,39,39,39]
["GUEGUEN","FEVRIER","Semaine (22-26/02)",null,null,null,null,null,null,null,null,null,null,null,null,null,null,null,null,null,null,null,null,0.5,null,null,null,0.25,null,null,null,8.5,null,14.75,null,null,null,2.25,null,8.75,null,4,null,null,null,34.5,35,39]
["GUEGUEN","FEVRIER","Semaine (29/02)",null,null,null,null,null,null,null,null,null,null,null,null,null,null,null,null,null,null,null,null,null,null,null,null,1.25,null,null,null,1,null,4.75,null,null,null,1,null,null,null,null,null,null,null,8,8,8]
["GUEGUEN","MARS","Semaine (01-04/03)",null,null,null,null,null,null,null,null,null,null,null,null,null,null,null,null,null,null,null,null,1.75,null,1.5,null,null,null,0.75,null,6.5,null,17.75,null,null,null,2,null,0.75,null,null,null,null,null,29.25,31,31]
["GUEGUEN","MARS","Semaine (07-11/03)",null,null,null,null,null,null,null,null,null,null,null,null,null,null,null,null,null,null,null,null,null,null,null,null,null,null,null,null,null,null,null,null,null,null,null,null,null,null,39,null,null,null,0,0,39]
["GUEGUEN","MARS","Semaine (14-18/03)",null,null,null,null,null,null,null,null,null,null,null,null,null,null,null,null,null,null,null,null,null,null,null,null,3.75,null,3,null,10.5,null,18.75,null,null,null,1.5,null,null,null,null,null,null,null,37.5,39,39]
["GUEGUEN","MARS","Semaine (21-25/03)",null,null,null,null,null,null,null,null,null,null,null,null,null,null,null,null,null,null,null,null,0.5,null,null,null,null,null,4,null,5,null,22,null,null,null,8,null,0.5,null,null,0.5,1.5,null,39.5,40,39]
["GUEGUEN","MARS","Semaine (28-31/03)",null,null,null,null,null,null,null,null,null,null,null,null,null,null,null,null,null,null,null,null,null,null,1,null,null,null,1,null,8,null,13.5,null,null,null,null,null,0.5,null,null,null,null,null,24,24,24]
["GASNIER","JANVIER","Semaine (04-08/01)",null,null,null,null,null,null,null,null,null,null,null,null,null,null,null,null,null,null,null,null,0.5,null,4.5,null,4,null,4.75,null,null,null,17.25,null,null,null,null,null,null,null,8,null,null,null,30.5,31,39]
["GASNIER","JANVIER","Semaine (11-15/01)",null,null,null,null,null,null,null,null,0.5,null,null,null,null,null,null,null,null,null,null,null,3,null,null,null,3,null,11.5,null,null,null,13,null,null,null,0.5,null,null,null,8,null,0.5,null,28,31.5,39]
["GASNIER","JANVIER","Semaine (18-22/01)",null,null,null,null,null,null,null,null,null,null,null,null,null,null,null,null,null,null,null,null,null,null,null,null,3,null,23,null,null,null,12,null,null,null,null,null,1,null,null,null,null,null,39,39,39]
["GASNIER","JANVIER","Semaine (25-29/01)",null,null,null,null,null,null,null,null,null,null,null,null,null,null,null,null,null,null,null,null,1.5,null,null,null,4.5,null,13.75,null,null,null,17.75,null,null,null,null,null,2,null,null,null,0.5,null,38,39.5,39]
["GASNIER","FEVRIER","Semaine (01-05/02)",null,null,null,null,null,null,null,null,null,null,null,null,null,null,null,null,null,null,null,null,0.5,null,7,null,null,null,23.25,null,null,null,7,null,null,null,0.25,null,1,null,null,null,null,null,38.5,39,39]
["GASNIER","FEVRIER","Semaine (81-12/02)",null,null,null,null,null,null,null,null,null,null,null,null,null,null,null,null,null,null,null,null,2.75,null,null,null,1.25,null,20.5,null,null,null,15.5,null,null,null,null,null,null,null,null,null,1,null,37.25,40,39]
["GASNIER","FEVRIER","Semaine (15-19/02)",null,null,null,null,null,null,null,null,null,null,null,null,null,null,null,null,null,null,null,null,0.75,null,null,null,null,null,25,null,null,null,9.25,null,null,null,null,null,4,null,null,null,null,null,38.25,39,39]
["GASNIER","FEVRIER","Semaine (22-26/02)",null,null,null,null,null,null,null,null,null,null,null,null,null,null,null,null,null,null,null,null,null,null,null,null,1.75,null,30.5,null,null,null,5,null,null,null,null,null,3.5,null,null,null,1.75,null,40.75,40.75,39]
["GASNIER","FEVRIER","Semaine (29/02)",null,null,null,null,null,null,null,null,null,null,null,null,null,null,null,null,null,null,null,null,4.5,null,null,null,null,null,0.75,null,null,null,2,null,null,null,null,null,0.75,null,null,null,null,null,3.5,8,8]
["GASNIER","MARS","Semaine (01-04/03)",null,null,null,null,null,null,null,null,null,null,null,null,null,null,null,null,null,null,null,null,2.5,null,5.25,null,2,null,20.25,null,null,null,2,null,null,null,null,null,null,null,null,null,1,null,29.5,32,31]
["GASNIER","MARS","Semaine (07-11/03)",null,null,null,null,null,null,null,null,null,null,null,null,null,null,null,null,null,null,null,null,5,null,null,null,null,null,19.75,null,null,null,10,null,null,null,null,null,5,null,null,null,0.75,null,34.75,39.75,39]
["GASNIER","MARS","Semaine (14-18/03)",null,null,null,null,null,null,null,null,null,null,null,null,null,null,null,null,null,null,null,null,0.75,null,null,null,null,null,27.25,null,null,null,12,null,null,null,null,null,null,null,null,null,1,null,39.25,40,39]
["GASNIER","MARS","Semaine (21-25/03)",null,null,null,null,null,null,null,null,null,null,null,null,null,null,null,null,null,null,null,null,16.5,null,null,null,null,null,18,null,null,null,5,null,null,null,null,null,null,null,null,null,0.5,null,23,39.5,39]
["GASNIER","MARS","Semaine (29-31/03)",null,null,null,null,null,null,null,null,null,null,null,null,null,null,null,null,null,null,null,null,4,null,null,null,null,null,6.5,null,null,null,7,null,null,null,null,null,null,null,8,null,1.5,null,13.5,17.5,24]
["HERVE","JANVIER","Semaine (04-08/01)",null,null,null,null,1,null,null,null,null,null,null,null,null,null,null,null,null,null,null,null,null,null,7,null,1,null,28.75,null,null,null,2,null,0.5,null,1,null,null,null,null,null,2.25,null,40.25,41.25,39]
["HERVE","JANVIER","Semaine (11-15/01)",null,null,2,null,null,null,null,null,null,null,null,null,null,null,null,null,null,null,2,null,1,null,2,null,null,null,25.75,null,null,null,null,null,null,null,null,null,2.5,null,7,null,3.25,null,30.25,35.25,39]
["HERVE","JANVIER","Semaine (18-22/01)",null,null,2,null,null,null,null,null,null,null,null,null,null,null,null,null,null,null,1,null,6,null,9,null,null,null,19.25,null,null,null,3,null,null,null,null,null,1,null,null,null,2.25,null,32.25,41.25,39]
["HERVE","JANVIER","Semaine (25-29/01)",null,null,null,null,0.5,null,null,null,null,null,null,null,null,null,null,null,null,null,null,null,13,null,null,null,0.5,null,28.5,null,null,null,null,null,1,null,null,null,1.5,null,null,null,6,null,31.5,45,39]
["HERVE","FEVRIER","Semaine (01-05/02)",null,null,null,null,null,null,null,null,null,null,null,null,null,null,null,null,null,null,null,null,4.5,null,12,null,null,null,23.75,null,null,null,1,null,null,null,null,null,3.25,null,null,null,5.5,null,40,44.5,39]
["HERVE","FEVRIER","Semaine (81-12/02)",null,null,null,null,null,null,null,null,null,null,null,null,null,null,null,null,null,null,null,null,2,null,2,null,null,null,31.5,null,null,null,1,null,null,null,null,null,1,null,4,null,2.5,null,35.5,37.5,39]
["HERVE","FEVRIER","Semaine (15-19/02)",null,null,null,null,null,null,null,null,null,null,null,null,null,null,null,null,null,null,null,null,null,null,null,null,null,null,37.5,null,null,null,2,null,null,null,null,null,0.5,null,null,null,1,null,40,40,39]
["HERVE","FEVRIER","Semaine (22-26/02)",null,null,null,null,null,null,null,null,null,null,null,null,null,null,null,null,null,null,null,null,3,null,null,null,null,null,26,null,null,null,5,null,null,null,2,null,null,null,8,null,5,null,33,36,39]
["HERVE","FEVRIER","Semaine (29/02)",null,null,null,null,null,null,null,null,null,null,null,null,null,null,null,null,null,null,null,null,3.5,null,null,null,null,null,4.5,null,null,null,null,null,null,null,null,null,null,null,null,null,null,null,4.5,8,8]
["HERVE","MARS","Semaine (01-04/03)",null,null,null,null,null,null,null,null,null,null,null,null,null,null,null,null,null,null,null,null,7.5,null,8,null,null,null,12,null,null,null,2,null,null,null,null,null,3,null,null,null,1.5,null,25,32.5,31]
["HERVE","MARS","Semaine (07-11/03)",null,null,null,null,null,null,null,null,null,null,null,null,null,null,null,null,null,null,null,null,null,null,null,null,null,null,null,null,null,null,null,null,null,null,null,null,null,null,39,null,null,null,0,0,39]
["HERVE","MARS","Semaine (14-18/03)",null,null,0.5,null,null,null,null,null,null,null,null,null,null,null,null,null,null,null,null,null,11,null,null,null,null,null,26,null,null,null,null,null,null,null,1,null,2.5,null,null,null,2,null,29.5,41,39]
["HERVE","MARS","Semaine (21-25/03)",null,null,null,null,null,null,null,null,null,null,null,null,null,null,null,null,null,null,null,null,3,null,null,null,null,null,37,null,null,null,3,null,null,null,null,null,null,null,null,null,4,null,40,43,39]
["HERVE","MARS","Semaine (29-31/03)",null,null,null,null,null,null,null,null,null,null,null,null,null,null,null,null,null,null,null,null,null,null,null,null,null,null,null,null,null,null,null,null,null,null,null,null,null,null,24,null,null,null,0,0,24]
["LABEQUE","JANVIER","Semaine (04-08/01)",null,null,27,null,null,null,null,null,null,null,null,null,null,null,null,null,null,null,null,null,null,null,null,null,null,null,2,null,null,null,null,null,3.5,null,null,null,2,null,null,4.5,null,null,7.5,34.5,39]
["LABEQUE","JANVIER","Semaine (11-15/01)",null,null,32.5,null,null,null,null,null,null,null,null,null,null,null,null,null,null,null,null,null,null,null,null,null,null,null,1,null,null,null,null,null,2,null,null,null,2.5,null,null,1,null,null,5.5,38,39]
["LABEQUE","JANVIER","Semaine (18-22/01)",null,null,18.25,null,14.75,null,null,null,null,null,null,null,null,null,null,null,null,null,null,null,null,null,null,null,null,null,2.25,null,null,null,null,null,0.75,null,null,null,2.25,null,null,0.75,null,null,5.25,38.25,39]
["LABEQUE","JANVIER","Semaine (25-29/01)",null,null,14.25,null,18.5,null,null,null,null,null,null,null,null,null,null,null,null,null,null,null,null,null,null,null,0.5,null,2.75,null,null,null,null,null,null,null,null,null,2.25,null,null,0.75,null,null,5.5,38.25,39]
["LABEQUE","FEVRIER","Semaine (01-05/02)",null,null,null,null,19,null,null,null,null,null,null,null,null,null,null,null,null,null,null,null,12.25,null,null,null,null,null,1.5,null,null,null,null,null,null,null,null,null,3.25,null,null,3,null,null,4.75,36,39]
["LABEQUE","FEVRIER","Semaine (81-12/02)",null,null,9.25,null,null,null,null,null,null,null,null,null,null,null,null,null,null,null,null,null,null,null,null,null,null,null,0.75,null,null,null,null,null,0.5,null,null,null,3.75,null,24,0.75,null,null,5,14.25,39]
["LABEQUE","FEVRIER","Semaine (15-19/02)",null,null,20.25,null,1.25,null,null,null,null,null,null,null,null,null,null,null,null,null,null,null,8,null,null,null,1,null,2,null,1.5,null,null,null,0.5,null,1,null,2.75,null,null,0.75,null,null,8.75,38.25,39]
["LABEQUE","FEVRIER","Semaine (22-26/02)",null,null,24.75,null,null,null,null,null,null,null,null,null,null,null,null,null,null,null,null,null,8.25,null,null,null,null,null,1,null,null,null,null,null,0.75,null,null,null,2.5,null,null,1.75,null,null,4.25,37.25,39]
["LABEQUE","FEVRIER","Semaine (29/02)",null,null,null,null,null,null,null,null,null,null,null,null,null,null,null,null,null,null,null,null,null,null,null,null,null,null,null,null,null,null,null,null,null,null,null,null,null,null,null,null,null,null,0,0,0]
["LABEQUE","MARS","Semaine (01-04/03)",null,null,24,null,null,null,null,null,null,null,null,null,null,null,null,null,null,null,null,null,null,null,null,null,null,null,1.75,null,null,null,null,null,1.25,null,null,null,4,null,null,null,null,null,7,31,31]
["LABEQUE","MARS","Semaine (07-11/03)",null,null,11.75,null,17.75,null,null,null,null,null,null,null,null,null,null,null,null,null,null,null,null,null,null,null,null,null,1.5,null,null,null,null,null,null,null,null,null,1.25,null,null,6.75,null,null,2.75,32.25,39]
["LABEQUE","MARS","Semaine (14-18/03)",null,null,null,null,null,null,null,null,null,null,null,null,null,null,null,null,null,null,null,null,null,null,null,null,null,null,null,null,null,null,null,null,null,null,null,null,null,null,null,null,null,null,0,0,0]
["LABEQUE","MARS","Semaine (21-25/03)",null,null,null,null,null,null,null,null,null,null,null,null,null,null,null,null,null,null,null,null,null,null,null,null,null,null,null,null,null,null,null,null,null,null,null,null,null,null,null,null,null,null,0,0,0]
["LABEQUE","MARS","Semaine (29-31/03)",null,null,null,null,null,null,null,null,null,null,null,null,null,null,null,null,null,null,null,null,null,null,null,null,null,null,null,null,null,null,null,null,null,null,null,null,null,null,24,null,null,null,0,0,24]
["LAFAYE","JANVIER","Semaine (04-08/01)",null,null,null,null,25.25,null,null,null,3.5,null,null,null,null,null,null,null,7,null,null,null,null,null,null,null,null,null,1.25,null,null,null,null,null,null,null,null,null,2,null,null,null,null,null,3.25,39,39]
["LAFAYE","JANVIER","Semaine (11-15/01)",null,null,null,null,3,null,null,null,1,null,null,null,null,null,null,null,20.5,null,null,null,null,null,null,null,null,null,1,null,null,null,null,null,null,null,null,null,10,null,3.5,null,null,null,11,35.5,39]
["LAFAYE","JANVIER","Semaine (18-22/01)",null,null,null,null,12.5,null,null,null,null,null,null,null,null,null,null,null,20.25,null,null,null,null,null,null,null,null,null,1.25,null,null,null,null,null,null,null,null,null,5,null,null,null,null,null,6.25,39,39]
["LAFAYE","JANVIER","Semaine (25-29/01)",null,null,null,null,12,null,null,null,null,null,null,null,null,null,null,null,7.5,null,8,null,null,null,null,null,null,null,1.5,null,null,null,null,null,null,null,1,null,1,null,8,null,null,null,3.5,31,39]
["LAFAYE","FEVRIER","Semaine (01-05/02)",null,null,null,null,26.25,null,null,null,null,null,null,null,null,null,null,null,9,null,null,null,null,null,null,null,1,null,1.75,null,null,null,null,null,null,null,null,null,1,null,null,null,null,null,3.75,39,39]
["LAFAYE","FEVRIER","Semaine (81-12/02)",null,null,null,null,33.25,null,null,null,null,null,null,null,null,null,null,null,2,null,null,null,null,null,null,null,null,null,1.75,null,null,null,null,null,null,null,null,null,2,null,null,null,null,null,3.75,39,39]
["LAFAYE","FEVRIER","Semaine (15-19/02)",null,null,null,null,34,null,null,null,null,null,null,null,null,null,null,null,2,null,null,null,null,null,null,null,null,null,2.25,null,null,null,null,null,null,null,1,null,1,null,null,null,1.25,null,4.25,40.25,39]
["LAFAYE","FEVRIER","Semaine (22-26/02)",null,null,null,null,null,null,null,null,null,null,null,null,null,null,null,null,null,null,null,null,null,null,null,null,null,null,null,null,null,null,null,null,null,null,null,null,null,null,39,null,null,null,0,0,39]
["LAFAYE","FEVRIER","Semaine (29/02)",null,null,null,null,null,null,null,null,null,null,null,null,null,null,null,null,null,null,null,null,null,null,null,null,null,null,null,null,null,null,null,null,null,null,null,null,8,null,null,null,null,null,8,8,8]
["LAFAYE","MARS","Semaine (01-04/03)",null,null,null,null,8.5,null,null,null,null,null,null,null,null,null,null,null,14.5,null,null,null,null,null,null,null,null,null,null,null,null,null,null,null,null,null,null,null,8,null,null,null,null,null,8,31,31]
["LAFAYE","MARS","Semaine (07-11/03)",null,null,null,null,25.75,null,null,null,null,null,null,null,null,null,null,null,8,null,null,null,1,null,null,null,null,null,1.25,null,null,null,null,null,null,null,null,null,4,null,null,null,1,null,5.25,40,39]
["LAFAYE","MARS","Semaine (14-18/03)",null,null,null,null,25.75,null,null,null,null,null,null,null,null,null,null,null,7.75,null,null,null,null,null,null,null,null,null,1.5,null,null,null,null,null,null,null,null,null,1,null,3.5,null,0.5,null,2.5,36,39]
["LAFAYE","MARS","Semaine (21-25/03)",null,null,7,null,11,null,null,null,null,null,null,null,null,null,null,null,17,null,null,null,null,null,null,null,null,null,2,null,null,null,null,null,null,null,1,null,1,null,null,null,null,null,4,39,39]
["LAFAYE","MARS","Semaine (29-31/03)",null,null,null,null,8,null,null,null,null,null,null,null,null,null,null,null,1,null,null,null,null,null,null,null,null,null,null,null,null,null,null,null,null,null,null,null,7,null,8,null,null,null,7,16,24]
["MICHELET","MARS","Semaine (01-04/03)",null,null,null,null,null,null,null,null,null,null,null,null,null,null,null,null,null,null,null,null,null,null,null,null,null,null,null,null,null,null,null,null,null,null,null,null,null,null,null,null,null,null,0,0,0]
["MICHELET","MARS","Semaine (07-11/03)",null,null,null,null,null,null,null,null,null,null,null,null,null,null,null,null,null,null,null,null,null,null,null,null,null,null,null,null,null,null,null,null,null,null,null,null,null,null,null,null,null,null,0,0,0]
["MICHELET","MARS","Semaine (14-18/03)",null,null,null,null,null,null,null,null,null,null,null,null,null,null,null,null,null,null,null,null,null,null,null,null,null,null,null,null,null,null,null,null,null,null,null,null,null,null,null,null,null,null,0,0,0]
["MICHELET","MARS","Semaine (21-25/03)",null,null,null,null,null,null,null,null,null,null,null,null,null,null,null,null,null,null,null,null,null,null,null,null,null,null,null,null,null,null,null,null,null,null,null,null,null,null,null,null,null,null,0,0,0]
["MICHELET","MARS","Semaine (28-31/03)",null,null,null,null,null,null,null,null,null,null,null,null,null,null,null,null,null,null,null,null,0.75,null,null,null,null,null,20,null,1,null,null,null,1,null,null,null,null,null,1.25,null,null,null,22,22.75,24]
["MERCIER","JANVIER","Semaine (04-08/01)",null,null,null,null,null,null,null,null,34.5,null,null,null,null,null,null,null,null,null,null,null,1,null,null,null,null,null,2,null,1,null,null,null,null,null,null,null,0.5,null,null,null,null,null,3.5,39,39]
["MERCIER","JANVIER","Semaine (11-15/01)",null,null,null,null,null,null,null,null,35.5,null,null,null,null,null,null,null,null,null,null,null,null,null,null,null,null,null,2,null,1.5,null,null,null,null,null,null,null,null,null,null,null,null,null,3.5,39,39]
["MERCIER","JANVIER","Semaine (18-22/01)",null,null,null,null,null,null,null,null,26.5,null,null,null,null,null,null,null,null,null,null,null,3,null,null,null,null,null,8.5,null,null,null,null,null,null,null,null,null,1,null,null,null,null,null,9.5,39,39]
["MERCIER","JANVIER","Semaine (25-29/01)",null,null,null,null,null,null,null,null,29,null,null,null,null,null,null,null,null,null,null,null,0.5,null,null,null,null,null,1.5,null,null,null,null,null,null,null,null,null,null,null,8,null,null,null,1.5,31,39]
["MERCIER","FEVRIER","Semaine (01-05/02)",null,null,null,null,null,null,null,null,37.5,null,null,null,null,null,null,null,null,null,null,null,null,null,null,null,null,null,1.5,null,null,null,null,null,null,null,null,null,null,null,null,null,null,null,1.5,39,39]
["MERCIER","FEVRIER","Semaine (81-12/02)",null,null,null,null,null,null,null,null,26.5,null,null,null,null,null,null,null,null,null,null,null,9,null,null,null,null,null,3.5,null,null,null,null,null,null,null,null,null,null,null,null,null,null,null,3.5,39,39]
["MERCIER","FEVRIER","Semaine (15-19/02)",null,null,null,null,null,null,null,null,null,null,null,null,null,null,null,null,null,null,null,null,null,null,null,null,null,null,null,null,null,null,null,null,null,null,null,null,null,null,39,null,null,null,0,0,39]
["MERCIER","FEVRIER","Semaine (22-26/02)",null,null,null,null,null,null,null,null,34,null,null,null,null,null,null,null,null,null,null,null,null,null,null,null,null,null,null,null,1,null,null,null,null,null,null,null,null,null,4,null,null,null,1,35,39]
["MERCIER","FEVRIER","Semaine (29/02)",null,null,null,null,null,null,null,null,7,null,null,null,null,null,null,null,null,null,null,null,null,null,null,null,null,null,null,null,null,null,null,null,null,null,null,null,1,null,null,null,null,null,1,8,8]
["MERCIER","MARS","Semaine (01-04/03)",null,null,null,null,null,null,null,null,22,null,null,null,null,null,null,null,null,null,null,null,null,null,null,null,null,null,2,null,null,null,1,null,null,null,null,null,2,null,4,null,null,null,5,27,31]
["MERCIER","MARS","Semaine (07-11/03)",null,null,null,null,0.5,null,null,null,37.5,null,null,null,null,null,null,null,null,null,null,null,null,null,null,null,null,null,1,null,null,null,null,null,null,null,null,null,null,null,null,null,null,null,1,39,39]
["MERCIER","MARS","Semaine (14-18/03)",null,null,null,null,null,null,null,null,21.75,null,null,null,null,null,null,null,null,null,null,null,13,null,null,null,null,null,3.25,null,null,null,1,null,null,null,null,null,null,null,null,null,null,null,4.25,39,39]
["MERCIER","MARS","Semaine (21-25/03)",null,null,null,null,null,null,null,null,29.75,null,null,null,null,null,null,null,null,null,null,null,4.5,null,null,null,null,null,4.75,null,null,null,null,null,null,null,null,null,null,null,null,null,null,null,4.75,39,39]
["MERCIER","MARS","Semaine (28-31/03)",null,null,null,null,null,null,null,null,20.25,null,null,null,null,null,null,null,null,null,null,null,0.75,null,null,null,null,null,2,null,1,null,null,null,null,null,null,null,null,null,null,null,null,null,3,24,24]
["MARRON ","JANVIER","Semaine (04-08/01)",null,null,10,null,3,null,null,null,2.5,null,null,null,null,null,null,null,null,null,null,null,10.5,null,null,null,1.75,null,0.75,null,null,null,null,null,null,null,null,null,9,null,null,1.5,null,null,11.5,37.5,39]
["MARRON ","JANVIER","Semaine (11-15/01)",null,null,null,null,3,null,null,null,null,null,null,null,null,null,null,null,null,null,null,null,13.75,null,null,null,null,null,2.25,null,4.75,null,null,null,null,null,null,null,15.25,null,null,null,null,null,22.25,39,39]
["MARRON ","JANVIER","Semaine (18-22/01)",null,null,null,null,null,null,null,null,null,null,null,null,null,null,null,null,null,null,null,null,17,null,null,null,null,null,2,null,null,null,null,null,null,null,null,null,21,null,null,null,1,null,23,40,39]
["MARRON ","JANVIER","Semaine (25-29/01)",null,null,null,null,8,null,null,null,null,null,null,null,null,null,null,null,null,null,null,null,19,null,null,null,null,null,0.5,null,null,null,null,null,null,null,1,null,2.5,null,8,null,null,null,4,31,39]
["MARRON ","FEVRIER","Semaine (01-05/02)",null,null,null,null,17.75,null,null,null,null,null,null,null,null,null,null,null,null,null,null,null,17,null,null,null,null,null,1.25,null,null,null,null,null,null,null,null,null,2,null,null,1,null,null,3.25,38,39]
["MARRON ","FEVRIER","Semaine (81-12/02)",null,null,null,null,19,null,null,null,null,null,null,null,null,null,null,null,null,null,null,null,17.25,null,null,null,null,null,1.25,null,0.5,null,null,null,null,null,null,null,1,null,null,null,null,null,2.75,39,39]
["MARRON ","FEVRIER","Semaine (15-19/02)",null,null,27.75,null,1.75,null,null,null,null,null,null,null,null,null,null,null,null,null,null,null,3.5,null,null,null,null,null,1,null,null,null,null,null,null,null,1,null,4,null,null,null,null,null,6,39,39]
["MARRON ","FEVRIER","Semaine (22-26/02)",null,null,null,null,null,null,null,null,null,null,null,null,null,null,null,null,null,null,null,null,null,null,null,null,null,null,null,null,null,null,null,null,null,null,null,null,null,null,39,null,null,null,0,0,39]
["MARRON ","FEVRIER","Semaine (29/02)",null,null,0.5,null,6,null,null,null,null,null,null,null,null,null,null,null,null,null,null,null,null,null,null,null,null,null,null,null,null,null,null,null,null,null,null,null,1.5,null,null,null,null,null,1.5,8,8]
["MARRON ","MARS","Semaine (01-04/03)",null,null,10.5,null,13.5,null,null,null,null,null,null,null,null,null,null,null,null,null,null,null,null,null,null,null,null,null,1,null,null,null,null,null,null,null,null,null,2,null,4,null,null,null,3,27,31]
["MARRON ","MARS","Semaine (07-11/03)",null,null,6.5,null,21,null,null,null,null,null,null,null,null,null,null,null,null,null,null,null,null,null,null,null,null,null,null,null,null,null,null,null,null,null,null,null,7.5,null,null,1.5,1,null,7.5,35,35.5]
["MARRON ","MARS","Semaine (14-18/03)",null,null,null,null,17.25,null,null,null,null,null,null,null,null,null,null,null,null,null,null,null,null,null,null,null,null,null,1,null,null,null,null,null,5,null,null,null,17.75,null,null,null,2,null,23.75,41,39]
["MARRON ","MARS","Semaine (21-25/03)",null,null,17.5,null,15.75,null,null,null,null,null,null,null,null,null,null,null,null,null,null,null,null,null,null,null,null,null,1.75,null,null,null,null,null,null,null,1,null,3,null,null,null,null,null,5.75,39,39]
["MARRON ","MARS","Semaine (29-31/03)",null,null,4,null,16,null,null,null,null,null,null,null,null,null,null,null,null,null,null,null,null,null,null,null,null,null,null,null,null,null,null,null,null,null,null,null,1,null,4,null,1,null,1,21,24]
["MONGIE ","JANVIER","Semaine (04-08/01)",null,null,0.25,null,24,null,null,null,null,null,null,null,null,null,null,null,null,null,null,null,null,null,null,null,null,null,1.75,null,null,null,null,null,null,null,0.25,null,12.75,null,null,null,null,null,14.75,39,39]
["MONGIE ","JANVIER","Semaine (11-15/01)",null,null,null,null,1,null,null,null,22,null,null,null,null,null,null,null,null,null,null,null,6.75,null,null,null,null,null,1.25,null,null,null,null,null,0.5,null,0.25,null,7.25,null,null,null,null,null,9.25,39,39]
["MONGIE ","JANVIER","Semaine (18-22/01)",null,null,null,null,32.75,null,null,null,null,null,null,null,null,null,null,null,null,null,null,null,0.5,null,null,null,null,null,3.25,null,null,null,null,null,null,null,0.5,null,2,null,null,null,null,null,5.75,39,39]
["MONGIE ","JANVIER","Semaine (25-29/01)",null,null,null,null,16,null,null,null,null,null,null,null,null,null,null,null,null,null,null,null,null,null,null,null,null,null,2.5,null,null,null,null,null,null,null,1.25,null,20.25,null,null,null,1,null,24,40,39]
["MONGIE ","FEVRIER","Semaine (01-05/02)",null,null,20.75,null,null,null,null,null,null,null,null,null,null,null,null,null,null,null,null,null,null,null,1,null,1,null,1.75,null,null,null,null,null,null,null,0.25,null,14.25,null,null,null,null,null,18.25,39,39]
["MONGIE ","FEVRIER","Semaine (81-12/02)",null,null,7,null,14.25,null,null,null,null,null,null,null,null,null,null,null,null,null,null,null,15.25,null,null,null,null,null,1.25,null,null,null,null,null,null,null,0.5,null,0.75,null,null,null,null,null,2.5,39,39]
["MONGIE ","FEVRIER","Semaine (15-19/02)",null,null,6.75,null,26.25,null,null,null,null,null,null,null,null,null,null,null,null,null,null,null,1.5,null,null,null,null,null,1.75,null,null,null,null,null,null,null,0.25,null,2.5,null,null,null,null,null,4.5,39,39]
["MONGIE ","FEVRIER","Semaine (22-26/02)",null,null,null,null,34,null,null,null,null,null,null,null,null,null,null,null,null,null,null,null,0.5,null,null,null,null,null,0.75,null,null,null,null,null,null,null,0.5,null,3.25,null,null,null,null,null,4.5,39,39]
["MONGIE ","FEVRIER","Semaine (29/02)",null,null,null,null,4.5,null,null,null,null,null,null,null,null,null,null,null,null,null,null,null,null,null,null,null,null,null,0.25,null,null,null,null,null,null,null,0.25,null,3,null,null,null,null,null,3.5,8,8]
["MONGIE ","MARS","Semaine (01-04/03)",null,null,null,null,23.75,null,null,null,null,null,null,null,null,null,null,null,null,null,null,null,null,null,null,null,null,null,0.75,null,null,null,null,null,null,null,null,null,2.5,null,4,null,null,null,3.25,27,31]
["MONGIE ","MARS","Semaine (07-11/03)",null,null,null,null,20.5,null,null,null,11,null,null,null,null,null,null,null,null,null,null,null,null,null,null,null,2,null,1.5,null,null,null,null,null,null,null,0.75,null,3.25,null,null,null,null,null,7.5,39,39]
["MONGIE ","MARS","Semaine (14-18/03)",null,null,null,null,null,null,null,null,null,null,null,null,null,null,null,null,null,null,null,null,null,null,null,null,null,null,null,null,null,null,null,null,null,null,null,null,null,null,39,null,null,null,0,0,39]
["MONGIE ","MARS","Semaine (21-25/03)",null,null,33,null,0.25,null,null,null,null,null,null,null,null,null,null,null,null,null,null,null,null,null,null,null,null,null,1.5,null,null,null,null,null,null,null,1.5,null,2.75,null,null,null,null,null,5.75,39,39]
["MONGIE ","MARS","Semaine (29-31/03)",null,null,18.75,null,null,null,null,null,null,null,null,null,null,null,null,null,null,null,null,null,null,null,null,null,null,null,null,null,null,null,null,null,3.75,null,0.25,null,1.25,null,null,null,null,null,5.25,24,24]
["MASSY","JANVIER","Semaine (04-08/01)",1.75,null,1,null,5.5,null,null,null,null,null,null,null,null,null,null,null,null,null,11.5,null,4.75,null,1.25,null,1.75,null,1.75,null,null,null,null,null,null,null,null,null,1.75,null,8,null,null,null,6.5,31,39]
["MASSY","JANVIER","Semaine (11-15/01)",1.25,null,null,null,24,null,null,null,null,null,null,null,null,null,null,null,null,null,7.75,null,1.25,null,0.5,null,0.75,null,1.25,null,null,null,null,null,0.5,null,null,null,1.75,null,null,null,null,null,4.75,39,39]
["MASSY","JANVIER","Semaine (18-22/01)",4.25,null,2,null,19.75,null,null,null,null,null,null,null,null,null,0.75,null,null,null,0.5,null,0.25,null,0.5,null,0.25,null,1.75,null,null,null,null,null,null,null,null,null,5,null,4,null,null,null,7.5,35,39]
["MASSY","JANVIER","Semaine (25-29/01)",1,null,null,null,22.5,null,null,null,null,null,null,null,null,null,null,null,null,null,null,null,1.25,null,1,null,0.25,null,1.25,null,null,null,null,null,3,null,1,null,7.75,null,null,null,null,null,14.25,39,39]
["MASSY","FEVRIER","Semaine (01-05/02)",2,null,null,null,27.5,null,null,null,null,null,null,null,null,null,null,null,null,null,null,null,null,null,1.75,null,null,null,1.25,null,null,null,null,null,1.75,null,null,null,0.75,null,4,null,null,null,5.5,35,39]
["MASSY","FEVRIER","Semaine (81-12/02)",null,null,null,null,14.5,null,null,null,null,null,null,null,null,null,null,null,null,null,null,null,17.5,null,1,null,1.75,null,1.75,null,null,null,null,null,0.25,null,null,null,2.25,null,null,null,null,null,7,39,39]
["MASSY","FEVRIER","Semaine (15-19/02)",null,null,null,null,6.25,null,null,null,null,null,null,null,null,null,null,null,null,null,null,null,0.75,null,0.75,null,null,null,1,null,null,null,null,null,0.75,null,2,null,3.5,null,24,null,null,null,8,15,39]
["MASSY","FEVRIER","Semaine (22-26/02)",null,null,null,null,16.25,null,null,null,null,null,null,null,null,null,null,null,null,null,13,null,null,null,0.5,null,null,null,0.75,null,null,null,null,null,1,null,null,null,3.5,null,4,null,null,null,5.75,35,39]
["MASSY","FEVRIER","Semaine (29/02)",null,null,null,null,2.75,null,null,null,null,null,null,null,null,null,null,null,null,null,null,null,0.25,null,0.5,null,null,null,0.25,null,null,null,null,null,null,null,null,null,0.25,null,4,null,null,null,1,4,8]
["MASSY","MARS","Semaine (01-04/03)",null,null,null,null,null,null,null,null,null,null,null,null,null,null,null,null,null,null,null,null,23,null,null,null,0.25,null,1.5,null,null,null,null,null,null,null,null,null,6.25,null,null,null,null,null,8,31,31]
["MASSY","MARS","Semaine (07-11/03)",null,null,null,null,null,null,null,null,null,null,null,null,null,null,null,null,null,null,null,null,null,null,null,null,null,null,null,null,null,null,null,null,null,null,null,null,null,null,39,null,null,null,0,0,39]
["MASSY","MARS","Semaine (14-18/03)",null,null,7.75,null,0.25,null,null,null,null,null,null,null,null,null,null,null,null,null,null,null,18.5,null,1.75,null,1,null,1.5,null,null,null,null,null,null,null,null,null,8.25,null,null,null,null,null,12.5,39,39]
["MASSY","MARS","Semaine (21-25/03)",null,null,null,null,26.5,null,null,null,null,null,null,null,null,null,null,null,null,null,null,null,5.25,null,0.75,null,null,null,1.75,null,null,null,1.25,null,null,null,1,null,2.5,null,null,null,null,null,7.25,39,39]
["MASSY","MARS","Semaine (29-31/03)",null,null,0.5,null,11.25,null,null,null,1,null,null,null,null,null,null,null,null,null,null,null,7.5,null,1.25,null,null,null,0.25,null,null,null,null,null,null,null,null,null,2.25,null,null,null,null,null,3.75,24,24]
["QUESADA","JANVIER","Semaine (04-08/01)",null,null,31,null,null,null,null,null,null,null,null,null,null,null,null,null,null,null,null,null,null,null,null,null,null,null,2,null,null,null,null,null,null,null,null,null,6,null,null,null,null,null,8,39,39]
["QUESADA","JANVIER","Semaine (11-15/01)",null,null,null,null,35,null,null,null,null,null,null,null,null,null,null,null,null,null,null,null,null,null,null,null,null,null,1.75,null,null,null,null,null,null,null,null,null,2.25,null,null,null,null,null,4,39,39]
["QUESADA","JANVIER","Semaine (18-22/01)",null,null,4,null,10.75,null,null,null,null,null,null,null,null,null,null,null,null,null,null,null,11.5,null,null,null,null,null,2.5,null,null,null,null,null,null,null,null,null,10.5,null,null,null,0.25,null,13,39.25,39]
["QUESADA","JANVIER","Semaine (25-29/01)",1,null,17.5,null,0.25,null,null,null,0.5,null,null,null,null,null,null,null,null,null,null,null,10.5,null,null,null,null,null,3,null,2.5,null,null,null,0.75,null,1,null,2,null,null,null,null,null,9.25,39,39]
["QUESADA","FEVRIER","Semaine (01-05/02)",null,null,5.5,null,21.5,null,null,null,null,null,null,null,null,null,null,null,null,null,null,null,4,null,null,null,null,null,1.75,null,null,null,null,null,0.75,null,null,null,2,null,3.5,null,null,null,4.5,35.5,39]
["QUESADA","FEVRIER","Semaine (81-12/02)",null,null,null,null,25.25,null,null,null,null,null,null,null,null,null,null,null,null,null,null,null,1.5,null,null,null,1,null,1,null,null,null,null,null,null,null,null,null,3.25,null,7,null,null,null,5.25,32,39]
["QUESADA","FEVRIER","Semaine (15-19/02)",null,null,null,null,null,null,null,null,null,null,null,null,null,null,null,null,null,null,null,null,null,null,null,null,null,null,null,null,null,null,null,null,null,null,null,null,null,null,39,null,null,null,0,0,39]
["QUESADA","FEVRIER","Semaine (22-26/02)",1.5,null,3.5,null,30.25,null,null,null,1,null,null,null,null,null,null,null,null,null,null,null,0.5,null,null,null,null,null,1,null,null,null,null,null,null,null,null,null,1.25,null,null,null,null,null,2.25,39,39]
["QUESADA","FEVRIER","Semaine (29/02)",0.5,null,2,null,3.5,null,null,null,1,null,null,null,null,null,null,null,null,null,null,null,0.75,null,null,null,0.25,null,null,null,null,null,null,null,null,null,null,null,null,null,null,null,null,null,0.25,8,8]
["QUESADA","MARS","Semaine (01-04/03)",1.5,null,3,null,19.25,null,null,null,null,null,null,null,null,null,null,null,null,null,null,null,1,null,null,null,1.5,null,1.5,null,null,null,null,null,0.5,null,null,null,3.25,null,null,null,0.5,null,6.75,31.5,31]
["QUESADA","MARS","Semaine (07-11/03)",2.25,null,3,null,24.5,null,null,null,null,null,null,null,null,null,null,null,null,null,null,null,null,null,null,null,0.5,null,1.25,null,null,null,null,null,null,null,null,null,4.75,null,3.5,null,0.75,null,6.5,36.25,39]
["QUESADA","MARS","Semaine (14-18/03)",2.5,null,3,null,31.75,null,null,null,null,null,null,null,null,null,null,null,null,null,null,null,null,null,null,null,null,null,1.75,null,null,null,null,null,null,null,null,null,2.25,null,null,null,2.25,null,4,41.25,39]
["QUESADA","MARS","Semaine (21-25/03)",3.5,null,3.5,null,26.5,null,null,null,null,null,null,null,null,null,null,null,null,null,null,null,0.75,null,null,null,null,null,2,null,null,null,null,null,null,null,1,null,2.25,null,null,null,0.5,null,5.25,39.5,39]
["QUESADA","MARS","Semaine (29-31/03)",0.5,null,2.5,null,18,null,null,null,null,null,null,null,null,null,null,null,null,null,null,null,null,null,null,null,0.5,null,0.25,null,null,null,null,null,null,null,null,null,2.25,null,null,null,null,null,3,24,24]
["BARSACQ","JANVIER","Semaine (04-08/01)",null,null,null,null,null,null,null,null,null,null,4.75,null,null,null,null,null,5,null,null,null,null,null,10,null,null,null,7.25,null,null,null,5,null,5,null,4,null,null,null,null,null,2,null,31.25,41,39]
["BARSACQ","JANVIER","Semaine (11-15/01)",null,null,null,null,null,null,null,null,null,null,5,null,null,null,null,null,5,null,null,null,null,null,6.75,null,null,null,9.25,null,5,null,10,null,null,null,null,null,null,null,null,null,2,null,31,41,39]
["BARSACQ","JANVIER","Semaine (18-22/01)",null,null,null,null,null,null,null,null,null,null,5,null,null,null,null,null,5,null,null,null,null,null,4.75,null,null,null,9,null,null,null,18,null,null,null,null,null,null,null,null,null,2.75,null,31.75,41.75,39]
["BARSACQ","JANVIER","Semaine (25-29/01)",null,null,null,null,null,null,null,null,null,null,null,null,null,null,null,null,null,null,null,null,null,null,null,null,null,null,null,null,null,null,null,null,null,null,null,null,null,null,39,null,null,null,0,0,39]
["BARSACQ","FEVRIER","Semaine (01-05/02)",null,null,null,null,null,null,null,null,null,null,null,null,null,null,null,null,5,null,null,null,null,null,8,null,null,null,6,null,10,null,10,null,null,null,2,null,null,null,null,null,2,null,36,41,39]
["BARSACQ","FEVRIER","Semaine (81-12/02)",null,null,null,null,null,null,null,null,null,null,null,null,null,null,null,null,10,null,null,null,null,null,null,null,null,null,9,null,13.5,null,10,null,null,null,null,null,null,null,null,null,3.5,null,32.5,42.5,39]
["BARSACQ","FEVRIER","Semaine (15-19/02)",null,null,null,null,null,null,null,null,null,null,5,null,null,null,null,null,5,null,null,null,null,null,null,null,null,null,10,null,8.75,null,14,null,null,null,null,null,null,null,null,null,3.75,null,32.75,42.75,39]
["BARSACQ","FEVRIER","Semaine (22-26/02)",null,null,null,null,null,null,null,null,null,null,2,null,null,null,null,null,9,null,null,null,null,null,10,null,null,null,7,null,4,null,10,null,null,null,null,null,null,null,null,null,3,null,31,42,39]
["BARSACQ","FEVRIER","Semaine (29/02)",null,null,null,null,null,null,null,null,null,null,null,null,null,null,null,null,2,null,null,null,null,null,1,null,null,null,1,null,1.25,null,2,null,1,null,null,null,null,null,null,null,0.25,null,6.25,8.25,8]
["BARSACQ","MARS","Semaine (01-04/03)",null,null,null,null,null,null,null,null,null,null,2,null,null,null,null,null,3.5,null,null,null,null,null,10,null,null,null,7,null,null,null,10,null,null,null,null,null,null,null,null,null,1.5,null,27,32.5,31]
["BARSACQ","MARS","Semaine (07-11/03)",null,null,null,null,null,null,null,null,null,null,2,null,null,null,null,null,10,null,null,null,null,null,null,null,null,null,11,null,8.5,null,10,null,null,null,null,null,null,null,null,null,2.5,null,29.5,41.5,39]
["BARSACQ","MARS","Semaine (14-18/03)",null,null,null,null,null,null,null,null,null,null,2,null,null,null,null,null,10,null,null,null,null,null,6.25,null,null,null,7,null,5,null,10,null,2,null,null,null,null,null,null,null,3.25,null,30.25,42.25,39]
["BARSACQ","MARS","Semaine (21-25/03)",null,null,null,null,null,null,null,null,null,null,2.75,null,null,null,null,null,10,null,null,null,null,null,null,null,null,null,10,null,10,null,10,null,null,null,null,null,null,null,null,null,3.75,null,30,42.75,39]
["BARSACQ","MARS","Semaine (28-31/03)",null,null,null,null,null,null,null,null,null,null,4,null,null,null,null,null,2.5,null,null,null,null,null,2,null,null,null,4,null,null,null,10,null,null,null,null,null,null,null,null,null,1,null,16,22.5,21.5]
["BOUGHIDAH","JANVIER","Semaine (04-08/01)",null,null,null,null,null,null,null,null,null,null,null,null,null,null,null,null,null,null,null,null,null,null,12,null,null,null,null,null,null,null,10,null,10,null,null,null,7,null,null,null,null,null,39,39,39]
["BOUGHIDAH","JANVIER","Semaine (11-15/01)",null,null,null,null,null,null,null,null,null,null,null,null,null,null,null,null,null,null,null,null,null,null,null,null,null,null,null,null,null,null,4,null,null,null,null,null,12,null,23,null,null,null,16,16,39]
["BOUGHIDAH","JANVIER","Semaine (18-22/01)",null,null,null,null,null,null,null,null,null,null,null,null,null,null,null,null,null,null,null,null,null,null,null,null,2,null,2.5,null,7,null,10,null,null,null,0.5,null,9,null,8,null,null,null,31,31,39]
["BOUGHIDAH","JANVIER","Semaine (25-29/01)",null,null,null,null,null,null,null,null,null,null,2,null,null,null,null,null,null,null,null,null,null,null,null,null,6,null,null,null,9,null,16,null,null,null,null,null,6,null,null,null,null,null,37,39,39]
["BOUGHIDAH","FEVRIER","Semaine (01-05/02)",null,null,null,null,null,null,null,null,null,null,null,null,null,null,null,null,null,null,null,null,null,null,null,null,5,null,null,null,14,null,10,null,null,null,null,null,10,null,null,null,null,null,39,39,39]
["BOUGHIDAH","FEVRIER","Semaine (81-12/02)",null,null,null,null,null,null,null,null,null,null,null,null,null,null,null,null,null,null,null,null,null,null,null,null,null,null,1,null,9,null,13,null,null,null,null,null,16,null,null,null,null,null,39,39,39]
["BOUGHIDAH","FEVRIER","Semaine (15-19/02)",null,null,null,null,null,null,null,null,null,null,null,null,null,null,null,null,null,null,null,null,null,null,null,null,null,null,null,null,null,null,null,null,null,null,null,null,null,null,39,null,null,null,0,0,39]
["BOUGHIDAH","FEVRIER","Semaine (22-26/02)",null,null,null,null,null,null,null,null,null,null,3,null,null,null,null,null,null,null,null,null,null,null,null,null,null,null,null,null,13.5,null,10,null,null,null,null,null,10,null,null,2.5,null,null,33.5,36.5,39]
["BOUGHIDAH","FEVRIER","Semaine (29/02)",null,null,null,null,null,null,null,null,null,null,0.5,null,null,null,null,null,null,null,null,null,null,null,null,null,null,null,null,null,3.5,null,2,null,null,null,2,null,null,null,null,null,null,null,7.5,8,8]
["BOUGHIDAH","MARS","Semaine (01-04/03)",null,null,null,null,null,null,null,null,null,null,2,null,null,null,null,null,null,null,null,null,2,null,null,null,1,null,null,null,14,null,8,null,null,null,null,null,4,null,null,null,null,null,27,31,31]
["BOUGHIDAH","MARS","Semaine (07-11/03)",null,null,null,null,null,null,null,null,null,null,0.5,null,null,null,null,null,null,null,null,null,null,null,null,null,null,null,1.5,null,21,null,10,null,null,null,null,null,6,null,null,null,null,null,38.5,39,39]
["BOUGHIDAH","MARS","Semaine (14-18/03)",null,null,null,null,null,null,null,null,null,null,2,null,null,null,null,null,null,null,null,null,11,null,null,null,null,null,1.5,null,10,null,8,null,0.5,null,null,null,6,null,null,null,null,null,26,39,39]
["BOUGHIDAH","MARS","Semaine (21-25/03)",null,null,null,null,null,null,null,null,null,null,null,null,null,null,null,null,null,null,null,null,7,null,null,null,null,null,1,null,21,null,7,null,null,null,1,null,2,null,null,null,null,null,32,39,39]
["BOUGHIDAH","MARS","Semaine (28-31/03)",null,null,null,null,null,null,null,null,null,null,null,null,null,null,null,null,null,null,null,null,2,null,null,null,null,null,null,null,1.5,null,3,null,null,null,null,null,1.5,null,16,null,null,null,6,8,24]
["GROUT","JANVIER","Semaine (04-08/01)",null,null,5,null,10.55,null,null,null,2,null,null,null,null,null,4.5,null,null,null,null,null,1.55,null,null,null,null,null,0.5,null,null,null,null,null,14.9,null,null,null,null,null,null,null,null,null,15.4,39,39]
["GROUT","JANVIER","Semaine (11-15/01)",null,null,2.5,null,26.5,null,null,null,1.5,null,null,null,null,null,3,null,null,null,null,null,null,null,null,null,null,null,1.25,null,null,null,null,null,4.25,null,null,null,null,null,null,null,null,null,5.5,39,39]
["GROUT","JANVIER","Semaine (18-22/01)",null,null,1.5,null,8.75,null,null,null,null,null,null,null,null,null,2.5,null,null,null,null,null,21.75,null,null,null,1.5,null,2.25,null,null,null,null,null,null,null,0.75,null,null,null,null,null,null,null,4.5,39,39]
["GROUT","JANVIER","Semaine (25-29/01)",null,null,3,null,3.5,null,null,null,null,null,null,null,null,null,2.5,null,null,null,null,null,8.5,null,null,null,2.5,null,null,null,null,null,null,null,19,null,null,null,null,null,null,null,null,null,21.5,39,39]
["GROUT","FEVRIER","Semaine (01-05/02)",null,null,2,null,26,null,null,null,null,null,null,null,null,null,2.5,null,null,null,null,null,5.75,null,null,null,1.5,null,1.25,null,null,null,null,null,null,null,null,null,null,null,null,null,null,null,2.75,39,39]
["GROUT","FEVRIER","Semaine (81-12/02)",null,null,6,null,25.75,null,null,null,null,null,null,null,null,null,3.5,null,null,null,null,null,null,null,null,null,2,null,1.5,null,null,null,null,null,0.25,null,null,null,null,null,null,null,null,null,3.75,39,39]
["GROUT","FEVRIER","Semaine (15-19/02)",null,null,13.25,null,18.25,null,null,null,null,null,null,null,null,null,4.75,null,null,null,null,null,null,null,null,null,1,null,1.75,null,null,null,null,null,null,null,null,null,null,null,null,null,null,null,2.75,39,39]
["GROUT","FEVRIER","Semaine (22-26/02)",null,null,2,null,30,null,null,null,null,null,null,null,null,null,2.5,null,null,null,null,null,2,null,null,null,1.5,null,1,null,null,null,null,null,null,null,null,null,null,null,null,null,null,null,2.5,39,39]
["GROUT","FEVRIER","Semaine (29/02)",null,null,6,null,null,null,null,null,null,null,null,null,null,null,0.5,null,null,null,null,null,null,null,null,null,1.5,null,null,null,null,null,null,null,null,null,null,null,null,null,null,null,null,null,1.5,8,8]
["GROUT","MARS","Semaine (01-04/03)",null,null,1.25,null,12.75,null,null,null,null,null,null,null,null,null,2,null,null,null,null,null,1,null,null,null,13,null,1,null,null,null,null,null,null,null,null,null,null,null,null,null,null,null,14,31,31]
["GROUT","MARS","Semaine (07-11/03)",null,null,2.5,null,16.25,null,null,null,null,null,null,null,null,null,2.5,null,null,null,null,null,null,null,null,null,12.5,null,1.25,null,null,null,null,null,4,null,null,null,null,null,null,null,null,null,17.75,39,39]
["GROUT","MARS","Semaine (14-18/03)",null,null,null,null,18,null,null,null,null,null,null,null,null,null,2.5,null,null,null,null,null,3,null,null,null,4,null,null,null,11.5,null,null,null,null,null,null,null,null,null,null,null,null,null,15.5,39,39]
["GROUT","MARS","Semaine (21-25/03)",null,null,6,null,22.5,null,null,null,null,null,null,null,null,null,2.5,null,null,null,null,null,1.25,null,null,null,null,null,2.25,null,null,null,null,null,4.5,null,null,null,null,null,null,null,null,null,6.75,39,39]
["GROUT","MARS","Semaine (28-31/03)",null,null,7,null,10.5,null,null,null,null,null,null,null,null,null,1.5,null,null,null,null,null,null,null,null,null,null,null,0.75,null,4.25,null,null,null,null,null,null,null,null,null,null,null,null,null,5,24,24]
["MARCHETTI","JANVIER","Semaine (04-08/01)",null,null,null,null,null,null,null,null,null,null,null,null,null,null,null,null,null,null,null,null,null,null,null,null,null,null,null,null,null,null,null,null,null,null,null,null,null,null,39,null,null,null,0,0,39]
["MARCHETTI","JANVIER","Semaine (11-15/01)",null,null,null,null,20,null,null,null,null,null,null,null,null,null,3,null,null,null,null,null,10,null,null,null,null,null,1,null,null,null,null,null,5,null,null,null,null,null,null,null,null,null,6,39,39]
["MARCHETTI","JANVIER","Semaine (18-22/01)",null,null,null,null,25,null,null,null,null,null,null,null,null,null,3,null,null,null,null,null,2,null,null,null,null,null,2,null,null,null,null,null,6,null,1,null,null,null,null,null,null,null,9,39,39]
["MARCHETTI","JANVIER","Semaine (25-29/01)",null,null,null,null,29,null,null,null,4,null,null,null,null,null,3,null,null,null,null,null,null,null,null,null,null,null,null,null,null,null,null,null,3,null,null,null,null,null,null,null,null,null,3,39,39]
["MARCHETTI","FEVRIER","Semaine (01-05/02)",null,null,12,null,1,null,null,null,null,null,null,null,16,null,3,null,null,null,null,null,null,null,null,null,null,null,1,null,null,null,null,null,3,null,null,null,3,null,null,null,null,null,7,39,39]
["MARCHETTI","FEVRIER","Semaine (81-12/02)",null,null,12,null,2,null,null,null,null,null,null,null,15,null,3,null,null,null,null,null,null,null,null,null,null,null,3,null,null,null,null,null,1,null,null,null,3,null,null,null,null,null,7,39,39]
["MARCHETTI","FEVRIER","Semaine (15-19/02)",null,null,5,null,4,null,null,null,null,null,null,null,14,null,null,null,null,null,null,null,null,null,null,null,null,null,2,null,null,null,null,null,2,null,null,null,4,null,null,8,null,null,8,31,39]
["MARCHETTI","FEVRIER","Semaine (22-26/02)",null,null,10,null,null,null,null,null,null,null,null,null,18,null,null,null,null,null,null,null,6,null,null,null,null,null,1,null,null,null,null,null,2,null,null,null,2,null,null,null,null,null,5,39,39]
["MARCHETTI","FEVRIER","Semaine (29/02)",null,null,null,null,null,null,null,null,null,null,null,null,8,null,null,null,null,null,null,null,null,null,null,null,null,null,null,null,null,null,null,null,null,null,null,null,null,null,null,null,null,null,0,8,8]
["MARCHETTI","MARS","Semaine (01-04/03)",null,null,null,null,null,null,null,null,null,null,null,null,null,null,2,null,null,null,null,null,null,null,null,null,26,null,1,null,null,null,null,null,2,null,null,null,null,null,null,null,null,null,29,31,31]
["MARCHETTI","MARS","Semaine (07-11/03)",null,null,null,null,1,null,null,null,null,null,null,null,null,null,2,null,null,null,null,null,3,null,null,null,30,null,1,null,null,null,null,null,2,null,null,null,null,null,null,null,null,null,33,39,39]
["MARCHETTI","MARS","Semaine (14-18/03)",null,null,null,null,1,null,null,null,null,null,null,null,30,null,2,null,null,null,null,null,3,null,null,null,null,null,1,null,null,null,null,null,2,null,null,null,null,null,null,null,null,null,3,39,39]
["MARCHETTI","MARS","Semaine (21-25/03)",null,null,null,null,null,null,null,null,null,null,null,null,25,null,2,null,null,null,null,null,null,null,null,null,null,null,2,null,null,null,null,null,2,null,1,null,null,null,7,null,null,null,5,32,39]
["MARCHETTI","MARS","Semaine (28-31/03)",null,null,null,null,null,null,null,null,null,null,null,null,20,null,1,null,null,null,null,null,null,null,null,null,null,null,1,null,null,null,null,null,2,null,null,null,null,null,null,null,null,null,3,24,24]
["MAUPEU","JANVIER","Semaine (04-08/01)",null,null,null,null,null,null,null,null,null,null,null,null,27,null,null,null,null,null,null,null,null,null,null,null,null,null,null,null,null,null,null,null,4,null,null,null,null,null,8,null,null,null,4,31,39]
["MAUPEU","JANVIER","Semaine (11-15/01)",null,null,null,null,null,null,null,null,null,null,null,null,27,null,null,null,null,null,null,null,null,null,null,null,null,null,null,null,null,null,null,null,11.5,null,null,null,0.5,null,null,null,null,null,12,39,39]
["MAUPEU","JANVIER","Semaine (18-22/01)",null,null,2,null,null,null,null,null,null,null,null,null,25,null,null,null,null,null,null,null,null,null,null,null,null,null,2,null,null,null,null,null,9.5,null,null,null,0.5,null,null,null,null,null,12,39,39]
["MAUPEU","JANVIER","Semaine (25-29/01)",null,null,null,null,null,null,null,null,null,null,null,null,24,null,1,null,null,null,null,null,null,null,null,null,null,null,null,null,null,null,null,null,7,null,null,null,7,null,null,null,null,null,14,39,39]
["MAUPEU","FEVRIER","Semaine (01-05/02)",null,null,null,null,null,null,null,null,null,null,null,null,24.75,null,null,null,null,null,null,null,null,null,null,null,null,null,1.25,null,null,null,null,null,13,null,null,null,null,null,null,null,null,null,14.25,39,39]
["MAUPEU","FEVRIER","Semaine (81-12/02)",null,null,null,null,0.5,null,null,null,null,null,null,null,23,null,null,null,null,null,null,null,3.25,null,null,null,2.25,null,null,null,null,null,null,null,10,null,null,null,null,null,null,null,null,null,12.25,39,39]
["MAUPEU","FEVRIER","Semaine (15-19/02)",null,null,5,null,3,null,null,null,null,null,null,null,18,null,null,null,null,null,null,null,null,null,null,null,null,null,4,null,null,null,null,null,null,null,null,null,9,null,null,null,null,null,13,39,39]
["MAUPEU","FEVRIER","Semaine (22-26/02)",null,null,3.25,null,0.5,null,null,null,null,null,null,null,24.25,null,null,null,null,null,null,null,0.5,null,null,null,null,null,1,null,null,null,null,null,9,null,null,null,0.5,null,null,null,null,null,10.5,39,39]
["MAUPEU","FEVRIER","Semaine (29/02)",null,null,null,null,null,null,null,null,null,null,null,null,5,null,null,null,null,null,null,null,null,null,null,null,null,null,0.25,null,null,null,null,null,2.5,null,null,null,0.25,null,null,null,null,null,3,8,8]
["MAUPEU","MARS","Semaine (01-04/03)",null,null,null,null,8,null,null,null,null,null,null,null,11,null,2,null,null,null,null,null,null,null,null,null,null,null,1,null,null,null,null,null,9,null,null,null,null,null,null,null,null,null,10,31,31]
["MAUPEU","MARS","Semaine (07-11/03)",null,null,null,null,21.5,null,null,null,null,null,null,null,4,null,null,null,null,null,null,null,null,null,null,null,null,null,1.5,null,null,null,null,null,12,null,null,null,null,null,null,null,null,null,13.5,39,39]
["MAUPEU","MARS","Semaine (14-18/03)",null,null,16,null,6.25,null,null,null,2.25,null,null,null,0.5,null,null,null,null,null,null,null,2,null,null,null,null,null,1,null,null,null,null,null,9,null,null,null,2,null,null,null,null,null,12,39,39]
["MAUPEU","MARS","Semaine (21-25/03)",null,null,10,null,4.75,null,null,null,6,null,null,null,null,null,null,null,null,null,null,null,null,null,null,null,null,null,2.25,null,null,null,null,null,13.5,null,null,null,2.5,null,null,null,null,null,18.25,39,39]
["MAUPEU","MARS","Semaine (28-31/03)",null,null,null,null,7,null,null,null,null,null,null,null,2,null,1.25,null,null,null,null,null,null,null,null,null,null,null,0.75,null,null,null,null,null,9,null,null,null,null,null,4,null,null,null,9.75,20,24]
["MORNET","JANVIER","Semaine (18-22/01)",null,null,null,null,null,null,null,null,null,null,null,null,null,null,null,null,null,null,null,null,null,null,null,null,35.75,null,2.25,null,null,null,null,null,null,null,1,null,null,null,null,null,null,null,39,39,39]
["MORNET","JANVIER","Semaine (25-29/01)",null,null,null,null,null,null,null,null,null,null,null,null,null,null,null,null,null,null,null,null,null,null,null,null,39,null,null,null,null,null,null,null,null,null,null,null,null,null,null,null,null,null,39,39,39]
["MORNET","FEVRIER","Semaine (01-05/02)",null,null,null,null,null,null,null,null,null,null,null,null,null,null,1,null,null,null,null,null,null,null,null,null,37,null,1,null,null,null,null,null,null,null,null,null,null,null,null,null,null,null,38,39,39]
["MORNET","FEVRIER","Semaine (81-12/02)",null,null,null,null,null,null,null,null,null,null,null,null,null,null,1,null,null,null,null,null,null,null,null,null,37,null,1,null,null,null,null,null,null,null,null,null,null,null,null,null,null,null,38,39,39]
["MORNET","FEVRIER","Semaine (15-19/02)",null,null,null,null,null,null,null,null,null,null,null,null,null,null,1,null,null,null,null,null,null,null,null,null,36.5,null,1.5,null,null,null,null,null,null,null,null,null,null,null,null,null,null,null,38,39,39]
["MORNET","FEVRIER","Semaine (22-26/02)",null,null,null,null,null,null,null,null,null,null,null,null,36,null,1,null,null,null,null,null,null,null,null,null,null,null,1,null,null,null,null,null,1,null,null,null,null,null,null,null,null,null,2,39,39]
["MORNET","FEVRIER","Semaine (29/02)",null,null,null,null,null,null,null,null,null,null,null,null,7.5,null,0.25,null,null,null,null,null,null,null,null,null,null,null,0.25,null,null,null,null,null,null,null,null,null,null,null,null,null,null,null,0.25,8,8]
["MORNET","MARS","Semaine (01-04/03)",null,null,null,null,null,null,null,null,null,null,null,null,21,null,1,null,null,null,null,null,null,null,null,null,8,null,1,null,null,null,null,null,null,null,null,null,null,null,null,null,null,null,9,31,31]
["MORNET","MARS","Semaine (07-11/03)",null,null,null,null,null,null,null,null,null,null,null,null,30,null,1,null,null,null,null,null,null,null,null,null,null,null,1,null,null,null,null,null,null,null,null,null,null,null,7,null,null,null,1,32,39]
["MORNET","MARS","Semaine (14-18/03)",null,null,null,null,null,null,null,null,null,null,null,null,37,null,1,null,null,null,null,null,null,null,null,null,null,null,1,null,null,null,null,null,null,null,null,null,null,null,null,null,null,null,1,39,39]
["MORNET","MARS","Semaine (21-25/03)",null,null,null,null,null,null,null,null,null,null,null,null,36,null,1,null,null,null,null,null,null,null,0.5,null,null,null,1.5,null,null,null,null,null,null,null,null,null,null,null,null,null,null,null,2,39,39]
["MORNET","MARS","Semaine (28-31/03)",null,null,null,null,null,null,null,null,null,null,null,null,22.5,null,0.5,null,null,null,null,null,null,null,null,null,0.5,null,0.5,null,null,null,null,null,null,null,null,null,null,null,null,null,null,null,1,24,24]
["PANATIER","JANVIER","Semaine (04-08/01)",null,null,null,null,27,null,null,null,null,null,null,null,null,null,null,null,null,null,null,null,null,null,3,null,null,null,null,null,null,null,null,null,1,null,8,null,null,null,null,null,null,null,12,39,39]
["PANATIER","JANVIER","Semaine (11-15/01)",null,null,null,null,10,null,null,null,null,null,null,null,null,null,null,null,null,null,null,null,22,null,6,null,null,null,null,null,null,null,null,null,1,null,null,null,null,null,null,null,null,null,7,39,39]
["PANATIER","JANVIER","Semaine (18-22/01)",null,null,null,null,10,null,null,null,null,null,null,null,null,null,3,null,null,null,null,null,13,null,10,null,null,null,null,null,null,null,null,null,null,null,3,null,null,null,null,null,null,null,13,39,39]
["PANATIER","JANVIER","Semaine (25-29/01)",null,null,null,null,13,null,null,null,null,null,null,null,null,null,null,null,null,null,null,null,13,null,12,null,null,null,null,null,null,null,null,null,1,null,null,null,null,null,null,null,null,null,13,39,39]
["PANATIER","FEVRIER","Semaine (01-05/02)",null,null,null,null,14,null,null,null,null,null,null,null,null,null,null,null,null,null,null,null,10,null,15,null,null,null,null,null,null,null,null,null,null,null,null,null,null,null,null,null,null,null,15,39,39]
["PANATIER","FEVRIER","Semaine (81-12/02)",null,null,null,null,14.25,null,null,null,4,null,null,null,null,null,null,null,null,null,null,null,null,null,19,null,1.75,null,null,null,null,null,null,null,null,null,null,null,null,null,null,null,null,null,20.75,39,39]
["PANATIER","FEVRIER","Semaine (15-19/02)",null,null,null,null,null,null,null,null,null,null,null,null,null,null,null,null,null,null,null,null,null,null,null,null,null,null,null,null,null,null,null,null,null,null,null,null,null,null,39,null,null,null,0,0,39]
["PANATIER","FEVRIER","Semaine (22-26/02)",null,null,null,null,14,null,null,null,null,null,null,null,null,null,2,null,null,null,null,null,15,null,2,null,null,null,null,null,null,null,null,null,null,null,6,null,null,null,null,null,null,null,8,39,39]
["PANATIER","FEVRIER","Semaine (29/02)",null,null,null,null,4,null,null,null,null,null,null,null,null,null,null,null,null,null,null,null,4,null,null,null,null,null,null,null,null,null,null,null,null,null,null,null,null,null,null,null,null,null,0,8,8]
["PANATIER","MARS","Semaine (01-04/03)",null,null,null,null,26,null,null,null,null,null,null,null,null,null,null,null,null,null,null,null,5,null,null,null,null,null,null,null,null,null,null,null,null,null,null,null,null,null,null,null,null,null,0,31,31]
["PANATIER","MARS","Semaine (07-11/03)",null,null,null,null,null,null,null,null,null,null,null,null,null,null,null,null,null,null,null,null,null,null,null,null,null,null,null,null,null,null,null,null,null,null,null,null,null,null,39,null,null,null,0,0,39]
["PANATIER","MARS","Semaine (14-18/03)",null,null,null,null,33,null,null,null,null,null,null,null,null,null,null,null,null,null,null,null,3.75,null,null,null,null,null,null,null,null,null,null,null,null,null,3,null,null,null,null,null,0.75,null,3,39.75,39]
["PANATIER","MARS","Semaine (21-25/03)",null,null,null,null,33,null,null,null,3,null,null,null,null,null,null,null,null,null,null,null,null,null,null,null,null,null,1,null,null,null,null,null,2,null,null,null,null,null,null,null,null,null,3,39,39]
["PANATIER","MARS","Semaine (28-31/03)",null,null,null,null,19,null,null,null,null,null,null,null,null,null,null,null,null,null,null,null,2,null,3,null,null,null,null,null,null,null,null,null,null,null,null,null,null,null,null,null,null,null,3,24,24]
["SAVINOT","JANVIER","Semaine (04-08/01)",null,null,7.5,null,4.5,null,null,null,null,null,null,null,14.5,null,5.5,null,null,null,null,null,3.5,null,null,null,null,null,null,null,0.75,null,null,null,null,null,null,null,2.75,null,null,null,null,null,3.5,39,39]
["SAVINOT","JANVIER","Semaine (11-15/01)",null,null,8.5,null,8,null,null,null,null,null,null,null,9.5,null,2.75,null,null,null,null,null,2.5,null,null,null,null,null,1.25,null,null,null,null,null,null,null,null,null,6.5,null,null,null,null,null,7.75,39,39]
["SAVINOT","JANVIER","Semaine (18-22/01)",null,null,11.5,null,null,null,null,null,null,null,null,null,7.75,null,2,null,null,null,null,null,null,null,null,null,5.75,null,1.75,null,null,null,null,null,0.5,null,0.75,null,2,null,7,null,null,null,10.75,32,39]
["SAVINOT","JANVIER","Semaine (25-29/01)",null,null,13.5,null,1.75,null,null,null,null,null,null,null,7.5,null,2.5,null,2.75,null,null,null,2,null,null,null,3.75,null,2.5,null,null,null,null,null,null,null,null,null,2.75,null,null,null,null,null,9,39,39]
["SAVINOT","FEVRIER","Semaine (01-05/02)",null,null,null,null,29.75,null,null,null,null,null,null,null,null,null,3.5,null,null,null,null,null,4.5,null,null,null,null,null,1.25,null,null,null,null,null,null,null,null,null,null,null,null,null,null,null,1.25,39,39]
["SAVINOT","FEVRIER","Semaine (81-12/02)",null,null,null,null,20.75,null,null,null,null,null,null,null,null,null,6.75,null,null,null,null,null,0.5,null,null,null,2.25,null,1.25,null,null,null,null,null,0.5,null,null,null,null,null,7,null,null,null,4,32,39]
["SAVINOT","FEVRIER","Semaine (15-19/02)",null,null,1.25,null,21.5,null,null,null,null,null,null,null,null,null,4.25,null,null,null,null,null,null,null,null,null,1,null,2.5,null,null,null,null,null,null,null,0.5,null,1,null,7,null,null,null,5,32,39]
["SAVINOT","FEVRIER","Semaine (22-26/02)",null,null,null,null,27.5,null,null,null,null,null,null,null,null,null,4,null,null,null,3,null,3.5,null,null,null,null,null,1,null,null,null,null,null,null,null,null,null,null,null,null,null,null,null,1,39,39]
["SAVINOT","FEVRIER","Semaine (29/02)",null,null,1.5,null,1.5,null,null,null,null,null,null,null,null,null,0.5,null,3.75,null,null,null,null,null,null,null,null,null,0.25,null,null,null,null,null,null,null,null,null,0.5,null,null,null,null,null,0.75,8,8]
["SAVINOT","MARS","Semaine (01-04/03)",null,null,7.5,null,9.25,null,null,null,null,null,null,null,null,null,5.5,null,3,null,null,null,null,null,null,null,1,null,1,null,null,null,null,null,3.75,null,null,null,null,null,null,null,null,null,5.75,31,31]
["SAVINOT","MARS","Semaine (07-11/03)",null,null,7.5,null,14.75,null,null,null,2,null,null,null,null,null,2.5,null,3,null,null,null,2,null,null,null,null,null,1,null,null,null,null,null,4.25,null,null,null,2,null,null,null,null,null,7.25,39,39]
["SAVINOT","MARS","Semaine (14-18/03)",null,null,null,null,null,null,null,null,null,null,null,null,null,null,null,null,null,null,null,null,null,null,null,null,null,null,null,null,null,null,null,null,null,null,null,null,null,null,39,null,null,null,0,0,39]
["SAVINOT","MARS","Semaine (21-25/03)",null,null,null,null,null,null,null,null,null,null,null,null,null,null,null,null,null,null,null,null,null,null,null,null,null,null,null,null,null,null,null,null,null,null,null,null,null,null,39,null,null,null,0,0,39]
["SAVINOT","MARS","Semaine (28-31/03)",null,null,7,null,6.25,null,null,null,null,null,null,null,null,null,2.25,null,1.5,null,null,null,null,null,null,null,null,null,0.75,null,null,null,null,null,4.75,null,null,null,1.5,null,null,null,null,null,7,24,24]
["PIQUET","JANVIER","Semaine (04-08/01)",null,null,null,null,null,null,30.75,null,null,null,null,null,null,null,null,null,null,null,null,null,null,null,1,null,null,null,null,null,null,null,null,null,null,null,3,null,0.75,null,3.5,null,null,null,4.75,35.5,39]
["PIQUET","JANVIER","Semaine (11-15/01)",null,null,null,null,null,null,28.75,null,null,null,null,null,null,null,null,null,null,null,null,null,null,null,null,null,null,null,null,null,null,null,null,null,null,null,2,null,0.25,null,8,null,null,null,2.25,31,39]
["PIQUET","JANVIER","Semaine (18-22/01)",null,null,null,null,null,null,28.75,null,null,null,null,null,null,null,null,null,null,null,null,null,null,null,1.75,null,null,null,1.75,null,0.25,null,0.5,null,null,null,5.75,null,0.25,null,null,null,null,null,10.25,39,39]
["PIQUET","JANVIER","Semaine (25-29/01)",null,null,null,null,null,null,30.25,null,null,null,null,null,null,null,null,null,null,null,null,null,null,null,4.5,null,null,null,null,null,null,null,0.25,null,null,null,3.75,null,0.25,null,null,null,null,null,8.75,39,39]
["PIQUET","FEVRIER","Semaine (01-05/02)",null,null,null,null,null,null,35.5,null,null,null,null,null,null,null,null,null,null,null,null,null,null,null,2,null,null,null,null,null,null,null,null,null,null,null,1.25,null,0.25,null,null,null,null,null,3.5,39,39]
["PIQUET","FEVRIER","Semaine (81-12/02)",null,null,null,null,null,null,34.75,null,null,null,null,null,null,null,null,null,null,null,null,null,null,null,null,null,null,null,0.5,null,null,null,null,null,null,null,3.5,null,0.25,null,null,null,null,null,4.25,39,39]
["PIQUET","FEVRIER","Semaine (15-19/02)",null,null,null,null,null,null,24.25,null,null,null,null,null,null,null,null,null,null,null,null,null,null,null,null,null,null,null,null,null,null,null,null,null,null,null,6.5,null,0.25,null,8,null,null,null,6.75,31,39]
["PIQUET","FEVRIER","Semaine (22-26/02)",null,null,null,null,null,null,33.25,null,null,null,null,null,null,null,null,null,4,null,null,null,null,null,null,null,null,null,null,null,null,null,null,null,null,null,1.5,null,0.25,null,null,null,null,null,1.75,39,39]
["PIQUET","FEVRIER","Semaine (29/02)",null,null,null,null,null,null,5.25,null,null,null,null,null,null,null,null,null,null,null,null,null,null,null,null,null,null,null,null,null,null,null,null,null,null,null,2.5,null,0.25,null,null,null,null,null,2.75,8,8]
["PIQUET","MARS","Semaine (01-04/03)",null,null,null,null,null,null,26.25,null,null,null,null,null,null,null,null,null,null,null,null,null,null,null,1.75,null,null,null,null,null,null,null,0.5,null,null,null,2.5,null,null,null,null,null,null,null,4.75,31,31]
["PIQUET","MARS","Semaine (07-11/03)",null,null,null,null,null,null,33.25,null,null,null,null,null,null,null,null,null,null,null,null,null,null,null,null,null,null,null,0.5,null,null,null,0.5,null,null,null,4.5,null,0.25,null,null,null,null,null,5.75,39,39]
["PIQUET","MARS","Semaine (14-18/03)",null,null,null,null,null,null,null,null,null,null,null,null,null,null,null,null,null,null,null,null,null,null,null,null,null,null,null,null,null,null,null,null,null,null,null,null,null,null,39,null,null,null,0,0,39]
["PIQUET","MARS","Semaine (21-25/03)",null,null,null,null,null,null,35.25,null,null,null,null,null,null,null,null,null,null,null,null,null,null,null,null,null,null,null,1,null,null,null,0.75,null,null,null,3.25,null,0.25,null,null,null,1.5,null,5.25,40.5,39]
["PIQUET","MARS","Semaine (28-31/03)",null,null,null,null,null,null,19.25,null,null,null,null,null,null,null,null,null,null,null,null,null,null,null,null,null,null,null,null,null,null,null,null,null,null,null,0.5,null,0.25,null,4,null,null,null,0.75,20,24]
["RODRIGUES","JANVIER","Semaine (04-08/01)",null,null,null,null,null,null,null,null,null,null,null,null,null,null,16,null,null,null,null,null,null,null,null,null,null,null,0.5,null,null,null,null,null,12.5,null,null,null,2,null,8,null,null,null,15,31,39]
["RODRIGUES","JANVIER","Semaine (11-15/01)",null,null,null,null,null,null,null,null,null,null,null,null,null,null,14.75,null,null,null,null,null,null,null,0.25,null,null,null,6.25,null,null,null,null,null,14.75,null,1,null,2,null,null,null,null,null,24.25,39,39]
["RODRIGUES","JANVIER","Semaine (18-22/01)",null,null,null,null,null,null,null,null,null,null,null,null,null,null,9.5,null,null,null,null,null,null,null,null,null,null,null,3.25,null,null,null,null,null,12.25,null,1.5,null,4.5,null,8,null,null,null,21.5,31,39]
["RODRIGUES","JANVIER","Semaine (25-29/01)",null,null,null,null,null,null,null,null,null,null,null,null,null,null,7.5,null,null,null,null,null,null,null,1.75,null,12.5,null,0.75,null,null,null,null,null,9.5,null,0.25,null,10.25,null,null,null,3.5,null,35,42.5,39]
["RODRIGUES","FEVRIER","Semaine (01-05/02)",null,null,null,null,null,null,null,null,null,null,null,null,null,null,13,null,null,null,null,null,null,null,1,null,null,null,1,null,null,null,null,null,17.75,null,null,null,6.25,null,null,null,null,null,26,39,39]
["RODRIGUES","FEVRIER","Semaine (81-12/02)",null,null,null,null,null,null,null,null,null,null,null,null,null,null,10,null,null,null,null,null,null,null,2.5,null,null,null,1.25,null,null,null,null,null,22,null,null,null,3.25,null,null,null,null,null,29,39,39]
["RODRIGUES","FEVRIER","Semaine (15-19/02)",null,null,null,null,null,null,null,null,null,null,null,null,null,null,10,null,null,null,null,null,null,null,5,null,null,null,null,null,1.75,null,null,null,18.5,null,1.75,null,2,null,null,null,null,null,29,39,39]
["RODRIGUES","FEVRIER","Semaine (22-26/02)",null,null,null,null,null,null,null,null,null,null,null,null,null,null,8,null,null,null,null,null,null,null,13.5,null,null,null,null,null,null,null,null,null,11,null,null,null,6.5,null,null,null,1.5,null,31,39,37.5]
["RODRIGUES","FEVRIER","Semaine (29/02)",null,null,null,null,null,null,null,null,null,null,null,null,null,null,0.5,null,null,null,null,null,null,null,2.5,null,4,null,null,null,null,null,null,null,0.5,null,null,null,null,null,null,null,0.5,null,7,7.5,7]
["RODRIGUES","MARS","Semaine (01-04/03)",null,null,null,null,null,null,null,null,null,null,null,null,null,null,2,null,null,null,null,null,null,null,null,null,12,null,9.75,null,null,null,null,null,6.75,null,null,null,1.5,null,null,null,1,null,30,32,31]
["RODRIGUES","MARS","Semaine (07-11/03)",null,null,null,null,null,null,null,null,null,null,null,null,null,null,9.5,null,null,null,null,null,null,null,null,null,null,null,5.5,null,null,null,null,null,null,null,null,null,24,null,null,null,null,null,29.5,39,39]
["RODRIGUES","MARS","Semaine (14-18/03)",null,null,null,null,null,null,null,null,null,null,null,null,null,null,7,null,null,null,null,null,null,null,null,null,null,null,0.75,null,null,null,null,null,27.75,null,1.75,null,3.25,null,null,null,1.5,null,33.5,40.5,39]
["RODRIGUES","MARS","Semaine (21-25/03)",null,null,null,null,null,null,null,null,null,null,null,null,null,null,9,null,null,null,null,null,null,null,null,null,null,null,1,null,null,null,null,null,29.75,null,2,null,3.25,null,null,null,6,null,36,45,39]
["GUEGUEN","AVRIL","30","1","A","2","B","3","C",null,"","4","D","","","","","5","E","6","F","7","G","8","H","9","I","10","J","11","K","12","L","13","M","14","N","15","O","16","P","17","18","19","JH",{"$f":"SUM(Z425+AB425+AD425+AF425+AH425+AJ425+AL425+AN425)","v":100},{"$f":"SUM(D425+F425+H425+L425+R425+T425+V425+X425+AT425)","v":136},{"$f":"SUM(AU425+AP425+AQ425)-AR425","v":152}]
[null,null,null,null,null,null,null,null,null,null,null,null,null,null,null,null,null,null,null,null,null,null,null,null,null,null,null,null,null,null,null,null,null,null,null,null,null,null,null,null,null,null,null,null,null,{"$f":"SUM(Z426+AB426+AD426+AF426+AH426+AJ426+AL426+AN426)","v":0},{"$f":"SUM(D426+F426+H426+L426+R426+T426+V426+X426+AT426)","v":0},{"$f":"SUM(AU426+AP426+AQ426)-AR426","v":0}]
[null,null,null,null,null,null,null,null,null,null,null,null,null,null,null,null,null,null,null,null,null,null,null,null,null,null,null,null,null,null,null,null,null,null,null,null,null,null,null,null,null,null,null,null,null,0,0,0]
[null,null,null,null,null,null,null,null,null,null,null,null,null,null,null,null,null,null,null,null,null,null,null,null,null,null,null,null,null,null,null,null,null,null,null,null,null,null,null,null,null,null,null,null,null,0,0,0]
[null,null,null,null,null,null,null,null,null,null,null,null,null,null,null,null,null,null,null,null,null,null,null,null,null,null,null,null,null,null,null,null,null,null,null,null,null,null,null,null,null,null,null,null,null,0,0,0]
[null,null,null,null,null,null,null,null,null,null,null,null,null,null,null,null,null,null,null,null,null,null,null,null,null,null,null,null,null,null,null,null,null,null,null,null,null,null,null,null,null,null,null,null,null,0,0,0]
[null,null,null,null,null,null,null,null,null,null,null,null,null,null,null,null,null,null,null,null,null,null,null,null,null,null,null,null,null,null,null,null,null,null,null,null,null,null,null,null,null,null,null,null,null,0,0,0]
[null,null,null,null,null,null,null,null,null,null,null,null,null,null,null,null,null,null,null,null,null,null,null,null,null,null,null,null,null,null,null,null,null,null,null,null,null,null,null,null,null,null,null,null,null,0,0,0]
[null,null,null,null,null,null,null,null,null,null,null,null,null,null,null,null,null,null,null,null,null,null,null,null,null,null,null,null,null,null,null,null,null,null,null,null,null,null,null,null,null,null,null,null,null,0,0,0]
[null,null,null,null,null,null,null,null,null,null,null,null,null,null,null,null,null,null,null,null,null,null,null,null,null,null,null,null,null,null,null,null,null,null,null,null,null,null,null,null,null,null,null,null,null,0,0,0]
[null,null,null,null,null,null,null,null,null,null,null,null,null,null,null,null,null,null,null,null,null,null,null,null,null,null,null,null,null,null,null,null,null,null,null,null,null,null,null,null,null,null,null,null,null,0,0,0]
[null,null,null,null,null,null,null,null,null,null,null,null,null,null,null,null,null,null,null,null,null,null,null,null,null,null,null,null,null,null,null,null,null,null,null,null,null,null,null,null,null,null,null,null,null,0,0,0]
[null,null,null,null,null,null,null,null,null,null,null,null,null,null,null,null,null,null,null,null,null,null,null,null,null,null,null,null,null,null,null,null,null,null,null,null,null,null,null,null,null,null,null,null,null,0,0,0]
[null,null,null,null,null,null,null,null,null,null,null,null,null,null,null,null,null,null,null,null,null,null,null,null,null,null,null,null,null,null,null,null,null,null,null,null,null,null,null,null,null,null,null,null,null,0,0,0]
[null,null,null,null,null,null,null,null,null,null,null,null,null,null,null,null,null,null,null,null,null,null,null,null,null,null,null,null,null,null,null,null,null,null,null,null,null,null,null,null,null,null,null,null,null,0,0,0]
[null,null,null,null,null,null,null,null,null,null,null,null,null,null,null,null,null,null,null,null,null,null,null,null,null,null,null,null,null,null,null,null,null,null,null,null,null,null,null,null,null,null,null,null,null,0,0,0]
[null,null,null,null,null,null,null,null,null,null,null,null,null,null,null,null,null,null,null,null,null,null,null,null,null,null,null,null,null,null,null,null,null,null,null,null,null,null,null,null,null,null,null,null,null,0,0,0]
[null,null,null,null,null,null,null,null,null,null,null,null,null,null,null,null,null,null,null,null,null,null,null,null,null,null,null,null,null,null,null,null,null,null,null,null,null,null,null,null,null,null,null,null,null,0,0,0]
[null,null,null,null,null,null,null,null,null,null,null,null,null,null,null,null,null,null,null,null,null,null,null,null,null,null,null,null,null,null,null,null,null,null,null,null,null,null,null,null,null,null,null,null,null,0,0,0]
[null,null,null,null,null,null,null,null,null,null,null,null,null,null,null,null,null,null,null,null,null,null,null,null,null,null,null,null,null,null,null,null,null,null,null,null,null,null,null,null,null,null,null,null,null,0,0,0]
[null,null,null,null,null,null,null,null,null,null,null,null,null,null,null,null,null,null,null,null,null,null,null,null,null,null,null,null,null,null,null,null,null,null,null,null,null,null,null,null,null,null,null,null,null,0,0,0]
[null,null,null,null,null,null,null,null,null,null,null,null,null,null,null,null,null,null,null,null,null,null,null,null,null,null,null,null,null,null,null,null,null,null,null,null,null,null,null,null,null,null,null,null,null,0,0,0]
[null,null,null,null,null,null,null,null,null,null,null,null,null,null,null,null,null,null,null,null,null,null,null,null,null,null,null,null,null,null,null,null,null,null,null,null,null,null,null,null,null,null,null,null,null,0,0,0]
[null,null,null,null,null,null,null,null,null,null,null,null,null,null,null,null,null,null,null,null,null,null,null,null,null,null,null,null,null,null,null,null,null,null,null,null,null,null,null,null,null,null,null,null,null,0,0,0]
[null,null,null,null,null,null,null,null,null,null,null,null,null,null,null,null,null,null,null,null,null,null,null,null,null,null,null,null,null,null,null,null,null,null,null,null,null,null,null,null,null,null,null,null,null,0,0,0]
[null,null,null,null,null,null,null,null,null,null,null,null,null,null,null,null,null,null,null,null,null,null,null,null,null,null,null,null,null,null,null,null,null,null,null,null,null,null,null,null,null,null,null,null,null,0,0,0]
[null,null,null,null,null,null,null,null,null,null,null,null,null,null,null,null,null,null,null,null,null,null,null,null,null,null,null,null,null,null,null,null,null,null,null,null,null,null,null,null,null,null,null,null,null,0,0,0]
[null,null,null,null,null,null,null,null,null,null,null,null,null,null,null,null,null,null,null,null,null,null,null,null,null,null,null,null,null,null,null,null,null,null,null,null,null,null,null,null,null,null,null,null,null,0,0,0]
[null,null,null,null,null,null,null,null,null,null,null,null,null,null,null,null,null,null,null,null,null,null,null,null,null,null,null,null,null,null,null,null,null,null,null,null,null,null,null,null,null,null,null,null,null,0,0,0]
[null,null,null,null,null,null,null,null,null,null,null,null,null,null,null,null,null,null,null,null,null,null,null,null,null,null,null,null,null,null,null,null,null,null,null,null,null,null,null,null,null,null,null,null,null,0,0,0]
[null,null,null,null,null,null,null,null,null,null,null,null,null,null,null,null,null,null,null,null,null,null,null,null,null,null,null,null,null,null,null,null,null,null,null,null,null,null,null,null,null,null,null,null,null,0,0,0]
[null,null,null,null,null,null,null,null,null,null,null,null,null,null,null,null,null,null,null,null,null,null,null,null,null,null,null,null,null,null,null,null,null,null,null,null,null,null,null,null,null,null,null,null,null,0,0,0]
[null,null,null,null,null,null,null,null,null,null,null,null,null,null,null,null,null,null,null,null,null,null,null,null,null,null,null,null,null,null,null,null,null,null,null,null,null,null,null,null,null,null,null,null,null,0,0,0]
[null,null,null,null,null,null,null,null,null,null,null,null,null,null,null,null,null,null,null,null,null,null,null,null,null,null,null,null,null,null,null,null,null,null,null,null,null,null,null,null,null,null,null,null,null,0,0,0]
[null,null,null,null,null,null,null,null,null,null,null,null,null,null,null,null,null,null,null,null,null,null,null,null,null,null,null,null,null,null,null,null,null,null,null,null,null,null,null,null,null,null,null,null,null,0,0,0]
[null,null,null,null,null,null,null,null,null,null,null,null,null,null,null,null,null,null,null,null,null,null,null,null,null,null,null,null,null,null,null,null,null,null,null,null,null,null,null,null,null,null,null,null,null,0,0,0]
[null,null,null,null,null,null,null,null,null,null,null,null,null,null,null,null,null,null,null,null,null,null,null,null,null,null,null,null,null,null,null,null,null,null,null,null,null,null,null,null,null,null,null,null,null,0,0,0]
[null,null,null,null,null,null,null,null,null,null,null,null,null,null,null,null,null,null,null,null,null,null,null,null,null,null,null,null,null,null,null,null,null,null,null,null,null,null,null,null,null,null,null,null,null,0,0,0]
[null,null,null,null,null,null,null,null,null,null,null,null,null,null,null,null,null,null,null,null,null,null,null,null,null,null,null,null,null,null,null,null,null,null,null,null,null,null,null,null,null,null,null,null,null,0,0,0]
[null,null,null,null,null,null,null,null,null,null,null,null,null,null,null,null,null,null,null,null,null,null,null,null,null,null,null,null,null,null,null,null,null,null,null,null,null,null,null,null,null,null,null,null,null,0,0,0]
[null,null,null,null,null,null,null,null,null,null,null,null,null,null,null,null,null,null,null,null,null,null,null,null,null,null,null,null,null,null,null,null,null,null,null,null,null,null,null,null,null,null,null,null,null,0,0,0]
[null,null,null,null,null,null,null,null,null,null,null,null,null,null,null,null,null,null,null,null,null,null,null,null,null,null,null,null,null,null,null,null,null,null,null,null,null,null,null,null,null,null,null,null,null,0,0,0]
[null,null,null,null,null,null,null,null,null,null,null,null,null,null,null,null,null,null,null,null,null,null,null,null,null,null,null,null,null,null,null,null,null,null,null,null,null,null,null,null,null,null,null,null,null,0,0,0]
[null,null,null,null,null,null,null,null,null,null,null,null,null,null,null,null,null,null,null,null,null,null,null,null,null,null,null,null,null,null,null,null,null,null,null,null,null,null,null,null,null,null,null,null,null,0,0,0]
[null,null,null,null,null,null,null,null,null,null,null,null,null,null,null,null,null,null,null,null,null,null,null,null,null,null,null,null,null,null,null,null,null,null,null,null,null,null,null,null,null,null,null,null,null,0,0,0]
[null,null,null,null,null,null,null,null,null,null,null,null,null,null,null,null,null,null,null,null,null,null,null,null,null,null,null,null,null,null,null,null,null,null,null,null,null,null,null,null,null,null,null,null,null,0,0,0]
[null,null,null,null,null,null,null,null,null,null,null,null,null,null,null,null,null,null,null,null,null,null,null,null,null,null,null,null,null,null,null,null,null,null,null,null,null,null,null,null,null,null,null,null,null,0,0,0]
[null,null,null,null,null,null,null,null,null,null,null,null,null,null,null,null,null,null,null,null,null,null,null,null,null,null,null,null,null,null,null,null,null,null,null,null,null,null,null,null,null,null,null,null,null,0,0,0]
[null,null,null,null,null,null,null,null,null,null,null,null,null,null,null,null,null,null,null,null,null,null,null,null,null,null,null,null,null,null,null,null,null,null,null,null,null,null,null,null,null,null,null,null,null,0,0,0]
[null,null,null,null,null,null,null,null,null,null,null,null,null,null,null,null,null,null,null,null,null,null,null,null,null,null,null,null,null,null,null,null,null,null,null,null,null,null,null,null,null,null,null,null,null,0,0,0]
[null,null,null,null,null,null,null,null,null,null,null,null,null,null,null,null,null,null,null,null,null,null,null,null,null,null,null,null,null,null,null,null,null,null,null,null,null,null,null,null,null,null,null,null,null,0,0,0]
[null,null,null,null,null,null,null,null,null,null,null,null,null,null,null,null,null,null,null,null,null,null,null,null,null,null,null,null,null,null,null,null,null,null,null,null,null,null,null,null,null,null,null,null,null,0,0,0]
[null,null,null,null,null,null,null,null,null,null,null,null,null,null,null,null,null,null,null,null,null,null,null,null,null,null,null,null,null,null,null,null,null,null,null,null,null,null,null,null,null,null,null,null,null,0,0,0]
[null,null,null,null,null,null,null,null,null,null,null,null,null,null,null,null,null,null,null,null,null,null,null,null,null,null,null,null,null,null,null,null,null,null,null,null,null,null,null,null,null,null,null,null,null,0,0,0]
[null,null,null,null,null,null,null,null,null,null,null,null,null,null,null,null,null,null,null,null,null,null,null,null,null,null,null,null,null,null,null,null,null,null,null,null,null,null,null,null,null,null,null,null,null,0,0,0]
[null,null,null,null,null,null,null,null,null,null,null,null,null,null,null,null,null,null,null,null,null,null,null,null,null,null,null,null,null,null,null,null,null,null,null,null,null,null,null,null,null,null,null,null,null,0,0,0]
[null,null,null,null,null,null,null,null,null,null,null,null,null,null,null,null,null,null,null,null,null,null,null,null,null,null,null,null,null,null,null,null,null,null,null,null,null,null,null,null,null,null,null,null,null,0,0,0]
[null,null,null,null,null,null,null,null,null,null,null,null,null,null,null,null,null,null,null,null,null,null,null,null,null,null,null,null,null,null,null,null,null,null,null,null,null,null,null,null,null,null,null,null,null,0,0,0]
[null,null,null,null,null,null,null,null,null,null,null,null,null,null,null,null,null,null,null,null,null,null,null,null,null,null,null,null,null,null,null,null,null,null,null,null,null,null,null,null,null,null,null,null,null,0,0,0]
[null,null,null,null,null,null,null,null,null,null,null,null,null,null,null,null,null,null,null,null,null,null,null,null,null,null,null,null,null,null,null,null,null,null,null,null,null,null,null,null,null,null,null,null,null,0,0,0]
[null,null,null,null,null,null,null,null,null,null,null,null,null,null,null,null,null,null,null,null,null,null,null,null,null,null,null,null,null,null,null,null,null,null,null,null,null,null,null,null,null,null,null,null,null,0,0,0]
[null,null,null,null,null,null,null,null,null,null,null,null,null,null,null,null,null,null,null,null,null,null,null,null,null,null,null,null,null,null,null,null,null,null,null,null,null,null,null,null,null,null,null,null,null,0,0,0]
[null,null,null,null,null,null,null,null,null,null,null,null,null,null,null,null,null,null,null,null,null,null,null,null,null,null,null,null,null,null,null,null,null,null,null,null,null,null,null,null,null,null,null,null,null,0,0,0]
[null,null,null,null,null,null,null,null,null,null,null,null,null,null,null,null,null,null,null,null,null,null,null,null,null,null,null,null,null,null,null,null,null,null,null,null,null,null,null,null,null,null,null,null,null,0,0,0]
[null,null,null,null,null,null,null,null,null,null,null,null,null,null,null,null,null,null,null,null,null,null,null,null,null,null,null,null,null,null,null,null,null,null,null,null,null,null,null,null,null,null,null,null,null,0,{"$f":"SUM(D489+F489+H489+L489+R489+T489+V489+X489+AT489)","v":0},{"$f":"SUM(AU489+AP489+AQ489)-AR489","v":0}]
[null,null,null,null,null,null,null,null,null,null,null,null,null,null,null,null,null,null,null,null,null,null,null,null,null,null,null,null,null,null,null,null,null,null,null,null,null,null,null,null,null,null,null,null,null,{"$f":"SUM(Z490+AB490+AD490+AF490+AH490+AJ490+AL490+AN490)","v":0},0,0]
[null,null,null,null,null,null,null,null,null,null,null,null,null,null,null,null,null,null,null,null,null,null,null,null,null,null,null,null,null,null,null,null,null,null,null,null,null,null,null,null,null,null,null,null,null,0,0,0]
[null,null,null,null,null,null,null,null,null,null,null,null,null,null,null,null,null,null,null,null,null,null,null,null,null,null,null,null,null,null,null,null,null,null,null,null,null,null,null,null,null,null,null,null,null,0,0,0]
[null,null,null,null,null,null,null,null,null,null,null,null,null,null,null,null,null,null,null,null,null,null,null,null,null,null,null,null,null,null,null,null,null,null,null,null,null,null,null,null,null,null,null,null,null,0,0,0]
[null,null,null,null,null,null,null,null,null,null,null,null,null,null,null,null,null,null,null,null,null,null,null,null,null,null,null,null,null,null,null,null,null,null,null,null,null,null,null,null,null,null,null,null,null,0,0,0]
[null,null,null,null,null,null,null,null,null,null,null,null,null,null,null,null,null,null,null,null,null,null,null,null,null,null,null,null,null,null,null,null,null,null,null,null,null,null,null,null,null,null,null,null,null,0,0,0]
[null,null,null,null,null,null,null,null,null,null,null,null,null,null,null,null,null,null,null,null,null,null,null,null,null,null,null,null,null,null,null,null,null,null,null,null,null,null,null,null,null,null,null,null,null,0,0,0]
[null,null,null,null,null,null,null,null,null,null,null,null,null,null,null,null,null,null,null,null,null,null,null,null,null,null,null,null,null,null,null,null,null,null,null,null,null,null,null,null,null,null,null,null,null,0,0,0]
[null,null,null,null,null,null,null,null,null,null,null,null,null,null,null,null,null,null,null,null,null,null,null,null,null,null,null,null,null,null,null,null,null,null,null,null,null,null,null,null,null,null,null,null,null,0,0,0]
[null,null,null,null,null,null,null,null,null,null,null,null,null,null,null,null,null,null,null,null,null,null,null,null,null,null,null,null,null,null,null,null,null,null,null,null,null,null,null,null,null,null,null,null,null,0,0,0]
[null,null,null,null,null,null,null,null,null,null,null,null,null,null,null,null,null,null,null,null,null,null,null,null,null,null,null,null,null,null,null,null,null,null,null,null,null,null,null,null,null,null,null,null,null,0,0,0]
[null,null,null,null,null,null,null,null,null,null,null,null,null,null,null,null,null,null,null,null,null,null,null,null,null,null,null,null,null,null,null,null,null,null,null,null,null,null,null,null,null,null,null,null,null,0,0,0]
[null,null,null,null,null,null,null,null,null,null,null,null,null,null,null,null,null,null,null,null,null,null,null,null,null,null,null,null,null,null,null,null,null,null,null,null,null,null,null,null,null,null,null,null,null,0,0,0]
[null,null,null,null,null,null,null,null,null,null,null,null,null,null,null,null,null,null,null,null,null,null,null,null,null,null,null,null,null,null,null,null,null,null,null,null,null,null,null,null,null,null,null,null,null,0,0,0]
[null,null,null,null,null,null,null,null,null,null,null,null,null,null,null,null,null,null,null,null,null,null,null,null,null,null,null,null,null,null,null,null,null,null,null,null,null,null,null,null,null,null,null,null,null,0,0,0]
[null,null,null,null,null,null,null,null,null,null,null,null,null,null,null,null,null,null,null,null,null,null,null,null,null,null,null,null,null,null,null,null,null,null,null,null,null,null,null,null,null,null,null,null,null,0,0,0]
[null,null,null,null,null,null,null,null,null,null,null,null,null,null,null,null,null,null,null,null,null,null,null,null,null,null,null,null,null,null,null,null,null,null,null,null,null,null,null,null,null,null,null,null,null,0,0,0]
[null,null,null,null,null,null,null,null,null,null,null,null,null,null,null,null,null,null,null,null,null,null,null,null,null,null,null,null,null,null,null,null,null,null,null,null,null,null,null,null,null,null,null,null,null,0,0,0]
[null,null,null,null,null,null,null,null,null,null,null,null,null,null,null,null,null,null,null,null,null,null,null,null,null,null,null,null,null,null,null,null,null,null,null,null,null,null,null,null,null,null,null,null,null,0,0,0]
[null,null,null,null,null,null,null,null,null,null,null,null,null,null,null,null,null,null,null,null,null,null,null,null,null,null,null,null,null,null,null,null,null,null,null,null,null,null,null,null,null,null,null,null,null,0,0,0]
[null,null,null,null,null,null,null,null,null,null,null,null,null,null,null,null,null,null,null,null,null,null,null,null,null,null,null,null,null,null,null,null,null,null,null,null,null,null,null,null,null,null,null,null,null,0,0,0]
[null,null,null,null,null,null,null,null,null,null,null,null,null,null,null,null,null,null,null,null,null,null,null,null,null,null,null,null,null,null,null,null,null,null,null,null,null,null,null,null,null,null,null,null,null,0,0,0]
[null,null,null,null,null,null,null,null,null,null,null,null,null,null,null,null,null,null,null,null,null,null,null,null,null,null,null,null,null,null,null,null,null,null,null,null,null,null,null,null,null,null,null,null,null,0,0,0]
[null,null,null,null,null,null,null,null,null,null,null,null,null,null,null,null,null,null,null,null,null,null,null,null,null,null,null,null,null,null,null,null,null,null,null,null,null,null,null,null,null,null,null,null,null,0,0,0]
[null,null,null,null,null,null,null,null,null,null,null,null,null,null,null,null,null,null,null,null,null,null,null,null,null,null,null,null,null,null,null,null,null,null,null,null,null,null,null,null,null,null,null,null,null,0,0,0]
[null,null,null,null,null,null,null,null,null,null,null,null,null,null,null,null,null,null,null,null,null,null,null,null,null,null,null,null,null,null,null,null,null,null,null,null,null,null,null,null,null,null,null,null,null,0,0,0]
[null,null,null,null,null,null,null,null,null,null,null,null,null,null,null,null,null,null,null,null,null,null,null,null,null,null,null,null,null,null,null,null,null,null,null,null,null,null,null,null,null,null,null,null,null,0,0,0]
[null,null,null,null,null,null,null,null,null,null,null,null,null,null,null,null,null,null,null,null,null,null,null,null,null,null,null,null,null,null,null,null,null,null,null,null,null,null,null,null,null,null,null,null,null,0,0,0]
[null,null,null,null,null,null,null,null,null,null,null,null,null,null,null,null,null,null,null,null,null,null,null,null,null,null,null,null,null,null,null,null,null,null,null,null,null,null,null,null,null,null,null,null,null,0,0,0]
[null,null,null,null,null,null,null,null,null,null,null,null,null,null,null,null,null,null,null,null,null,null,null,null,null,null,null,null,null,null,null,null,null,null,null,null,null,null,null,null,null,null,null,null,null,0,0,0]
[null,null,null,null,null,null,null,null,null,null,null,null,null,null,null,null,null,null,null,null,null,null,null,null,null,null,null,null,null,null,null,null,null,null,null,null,null,null,null,null,null,null,null,null,null,0,0,0]
[null,null,null,null,null,null,null,null,null,null,null,null,null,null,null,null,null,null,null,null,null,null,null,null,null,null,null,null,null,null,null,null,null,null,null,null,null,null,null,null,null,null,null,null,null,0,0,0]
[null,null,null,null,null,null,null,null,null,null,null,null,null,null,null,null,null,null,null,null,null,null,null,null,null,null,null,null,null,null,null,null,null,null,null,null,null,null,null,null,null,null,null,null,null,0,0,0]
[null,null,null,null,null,null,null,null,null,null,null,null,null,null,null,null,null,null,null,null,null,null,null,null,null,null,null,null,null,null,null,null,null,null,null,null,null,null,null,null,null,null,null,null,null,0,0,0]
[null,null,null,null,null,null,null,null,null,null,null,null,null,null,null,null,null,null,null,null,null,null,null,null,null,null,null,null,null,null,null,null,null,null,null,null,null,null,null,null,null,null,null,null,null,0,0,0]
[null,null,null,null,null,null,null,null,null,null,null,null,null,null,null,null,null,null,null,null,null,null,null,null,null,null,null,null,null,null,null,null,null,null,null,null,null,null,null,null,null,null,null,null,null,0,0,0]
[null,null,null,null,null,null,null,null,null,null,null,null,null,null,null,null,null,null,null,null,null,null,null,null,null,null,null,null,null,null,null,null,null,null,null,null,null,null,null,null,null,null,null,null,null,0,0,0]
[null,null,null,null,null,null,null,null,null,null,null,null,null,null,null,null,null,null,null,null,null,null,null,null,null,null,null,null,null,null,null,null,null,null,null,null,null,null,null,null,null,null,null,null,null,0,0,0]
[null,null,null,null,null,null,null,null,null,null,null,null,null,null,null,null,null,null,null,null,null,null,null,null,null,null,null,null,null,null,null,null,null,null,null,null,null,null,null,null,null,null,null,null,null,0,0,0]
[null,null,null,null,null,null,null,null,null,null,null,null,null,null,null,null,null,null,null,null,null,null,null,null,null,null,null,null,null,null,null,null,null,null,null,null,null,null,null,null,null,null,null,null,null,0,0,0]
[null,null,null,null,null,null,null,null,null,null,null,null,null,null,null,null,null,null,null,null,null,null,null,null,null,null,null,null,null,null,null,null,null,null,null,null,null,null,null,null,null,null,null,null,null,0,0,0]
[null,null,null,null,null,null,null,null,null,null,null,null,null,null,null,null,null,null,null,null,null,null,null,null,null,null,null,null,null,null,null,null,null,null,null,null,null,null,null,null,null,null,null,null,null,0,0,0]
[null,null,null,null,null,null,null,null,null,null,null,null,null,null,null,null,null,null,null,null,null,null,null,null,null,null,null,null,null,null,null,null,null,null,null,null,null,null,null,null,null,null,null,null,null,0,0,0]
[null,null,null,null,null,null,null,null,null,null,null,null,null,null,null,null,null,null,null,null,null,null,null,null,null,null,null,null,null,null,null,null,null,null,null,null,null,null,null,null,null,null,null,null,null,0,0,0]
[null,null,null,null,null,null,null,null,null,null,null,null,null,null,null,null,null,null,null,null,null,null,null,null,null,null,null,null,null,null,null,null,null,null,null,null,null,null,null,null,null,null,null,null,null,0,0,0]
[null,null,null,null,null,null,null,null,null,null,null,null,null,null,null,null,null,null,null,null,null,null,null,null,null,null,null,null,null,null,null,null,null,null,null,null,null,null,null,null,null,null,null,null,null,0,0,0]
[null,null,null,null,null,null,null,null,null,null,null,null,null,null,null,null,null,null,null,null,null,null,null,null,null,null,null,null,null,null,null,null,null,null,null,null,null,null,null,null,null,null,null,null,null,0,0,0]
[null,null,null,null,null,null,null,null,null,null,null,null,null,null,null,null,null,null,null,null,null,null,null,null,null,null,null,null,null,null,null,null,null,null,null,null,null,null,null,null,null,null,null,null,null,0,0,0]
[null,null,null,null,null,null,null,null,null,null,null,null,null,null,null,null,null,null,null,null,null,null,null,null,null,null,null,null,null,null,null,null,null,null,null,null,null,null,null,null,null,null,null,null,null,0,0,0]
[null,null,null,null,null,null,null,null,null,null,null,null,null,null,null,null,null,null,null,null,null,null,null,null,null,null,null,null,null,null,null,null,null,null,null,null,null,null,null,null,null,null,null,null,null,0,0,0]
[null,null,null,null,null,null,null,null,null,null,null,null,null,null,null,null,null,null,null,null,null,null,null,null,null,null,null,null,null,null,null,null,null,null,null,null,null,null,null,null,null,null,null,null,null,0,0,0]
[null,null,null,null,null,null,null,null,null,null,null,null,null,null,null,null,null,null,null,null,null,null,null,null,null,null,null,null,null,null,null,null,null,null,null,null,null,null,null,null,null,null,null,null,null,0,0,0]
[null,null,null,null,null,null,null,null,null,null,null,null,null,null,null,null,null,null,null,null,null,null,null,null,null,null,null,null,null,null,null,null,null,null,null,null,null,null,null,null,null,null,null,null,null,0,0,0]
[null,null,null,null,null,null,null,null,null,null,null,null,null,null,null,null,null,null,null,null,null,null,null,null,null,null,null,null,null,null,null,null,null,null,null,null,null,null,null,null,null,null,null,null,null,0,0,0]
[null,null,null,null,null,null,null,null,null,null,null,null,null,null,null,null,null,null,null,null,null,null,null,null,null,null,null,null,null,null,null,null,null,null,null,null,null,null,null,null,null,null,null,null,null,0,0,0]
[null,null,null,null,null,null,null,null,null,null,null,null,null,null,null,null,null,null,null,null,null,null,null,null,null,null,null,null,null,null,null,null,null,null,null,null,null,null,null,null,null,null,null,null,null,0,0,0]
[null,null,null,null,null,null,null,null,null,null,null,null,null,null,null,null,null,null,null,null,null,null,null,null,null,null,null,null,null,null,null,null,null,null,null,null,null,null,null,null,null,null,null,null,null,0,0,0]
[null,null,null,null,null,null,null,null,null,null,null,null,null,null,null,null,null,null,null,null,null,null,null,null,null,null,null,null,null,null,null,null,null,null,null,null,null,null,null,null,null,null,null,null,null,0,0,0]
[null,null,null,null,null,null,null,null,null,null,null,null,null,null,null,null,null,null,null,null,null,null,null,null,null,null,null,null,null,null,null,null,null,null,null,null,null,null,null,null,null,null,null,null,null,0,0,0]
[null,null,null,null,null,null,null,null,null,null,null,null,null,null,null,null,null,null,null,null,null,null,null,null,null,null,null,null,null,null,null,null,null,null,null,null,null,null,null,null,null,null,null,null,null,0,0,0]
[null,null,null,null,null,null,null,null,null,null,null,null,null,null,null,null,null,null,null,null,null,null,null,null,null,null,null,null,null,null,null,null,null,null,null,null,null,null,null,null,null,null,null,null,null,0,0,0]
[null,null,null,null,null,null,null,null,null,null,null,null,null,null,null,null,null,null,null,null,null,null,null,null,null,null,null,null,null,null,null,null,null,null,null,null,null,null,null,null,null,null,null,null,null,0,0,0]
[null,null,null,null,null,null,null,null,null,null,null,null,null,null,null,null,null,null,null,null,null,null,null,null,null,null,null,null,null,null,null,null,null,null,null,null,null,null,null,null,null,null,null,null,null,0,0,0]
[null,null,null,null,null,null,null,null,null,null,null,null,null,null,null,null,null,null,null,null,null,null,null,null,null,null,null,null,null,null,null,null,null,null,null,null,null,null,null,null,null,null,null,null,null,0,{"$f":"SUM(D553+F553+H553+L553+R553+T553+V553+X553+AT553)","v":0},{"$f":"SUM(AU553+AP553+AQ553)-AR553","v":0}]
[null,null,null,null,null,null,null,null,null,null,null,null,null,null,null,null,null,null,null,null,null,null,null,null,null,null,null,null,null,null,null,null,null,null,null,null,null,null,null,null,null,null,null,null,null,{"$f":"SUM(Z554+AB554+AD554+AF554+AH554+AJ554+AL554+AN554)","v":0},0,0]
[null,null,null,null,null,null,null,null,null,null,null,null,null,null,null,null,null,null,null,null,null,null,null,null,null,null,null,null,null,null,null,null,null,null,null,null,null,null,null,null,null,null,null,null,null,0,0,0]
[null,null,null,null,null,null,null,null,null,null,null,null,null,null,null,null,null,null,null,null,null,null,null,null,null,null,null,null,null,null,null,null,null,null,null,null,null,null,null,null,null,null,null,null,null,0,0,0]
[null,null,null,null,null,null,null,null,null,null,null,null,null,null,null,null,null,null,null,null,null,null,null,null,null,null,null,null,null,null,null,null,null,null,null,null,null,null,null,null,null,null,null,null,null,0,0,0]
[null,null,null,null,null,null,null,null,null,null,null,null,null,null,null,null,null,null,null,null,null,null,null,null,null,null,null,null,null,null,null,null,null,null,null,null,null,null,null,null,null,null,null,null,null,0,0,0]
[null,null,null,null,null,null,null,null,null,null,null,null,null,null,null,null,null,null,null,null,null,null,null,null,null,null,null,null,null,null,null,null,null,null,null,null,null,null,null,null,null,null,null,null,null,0,0,0]
[null,null,null,null,null,null,null,null,null,null,null,null,null,null,null,null,null,null,null,null,null,null,null,null,null,null,null,null,null,null,null,null,null,null,null,null,null,null,null,null,null,null,null,null,null,0,0,0]
[null,null,null,null,null,null,null,null,null,null,null,null,null,null,null,null,null,null,null,null,null,null,null,null,null,null,null,null,null,null,null,null,null,null,null,null,null,null,null,null,null,null,null,null,null,0,0,0]
[null,null,null,null,null,null,null,null,null,null,null,null,null,null,null,null,null,null,null,null,null,null,null,null,null,null,null,null,null,null,null,null,null,null,null,null,null,null,null,null,null,null,null,null,null,0,0,0]
[null,null,null,null,null,null,null,null,null,null,null,null,null,null,null,null,null,null,null,null,null,null,null,null,null,null,null,null,null,null,null,null,null,null,null,null,null,null,null,null,null,null,null,null,null,0,0,0]
[null,null,null,null,null,null,null,null,null,null,null,null,null,null,null,null,null,null,null,null,null,null,null,null,null,null,null,null,null,null,null,null,null,null,null,null,null,null,null,null,null,null,null,null,null,0,0,0]
[null,null,null,null,null,null,null,null,null,null,null,null,null,null,null,null,null,null,null,null,null,null,null,null,null,null,null,null,null,null,null,null,null,null,null,null,null,null,null,null,null,null,null,null,null,0,0,0]
[null,null,null,null,null,null,null,null,null,null,null,null,null,null,null,null,null,null,null,null,null,null,null,null,null,null,null,null,null,null,null,null,null,null,null,null,null,null,null,null,null,null,null,null,null,0,0,0]
[null,null,null,null,null,null,null,null,null,null,null,null,null,null,null,null,null,null,null,null,null,null,null,null,null,null,null,null,null,null,null,null,null,null,null,null,null,null,null,null,null,null,null,null,null,0,0,0]
[null,null,null,null,null,null,null,null,null,null,null,null,null,null,null,null,null,null,null,null,null,null,null,null,null,null,null,null,null,null,null,null,null,null,null,null,null,null,null,null,null,null,null,null,null,0,0,0]
[null,null,null,null,null,null,null,null,null,null,null,null,null,null,null,null,null,null,null,null,null,null,null,null,null,null,null,null,null,null,null,null,null,null,null,null,null,null,null,null,null,null,null,null,null,0,0,0]
[null,null,null,null,null,null,null,null,null,null,null,null,null,null,null,null,null,null,null,null,null,null,null,null,null,null,null,null,null,null,null,null,null,null,null,null,null,null,null,null,null,null,null,null,null,0,0,0]
[null,null,null,null,null,null,null,null,null,null,null,null,null,null,null,null,null,null,null,null,null,null,null,null,null,null,null,null,null,null,null,null,null,null,null,null,null,null,null,null,null,null,null,null,null,0,0,0]
[null,null,null,null,null,null,null,null,null,null,null,null,null,null,null,null,null,null,null,null,null,null,null,null,null,null,null,null,null,null,null,null,null,null,null,null,null,null,null,null,null,null,null,null,null,0,0,0]
[null,null,null,null,null,null,null,null,null,null,null,null,null,null,null,null,null,null,null,null,null,null,null,null,null,null,null,null,null,null,null,null,null,null,null,null,null,null,null,null,null,null,null,null,null,0,0,0]
[null,null,null,null,null,null,null,null,null,null,null,null,null,null,null,null,null,null,null,null,null,null,null,null,null,null,null,null,null,null,null,null,null,null,null,null,null,null,null,null,null,null,null,null,null,0,0,0]
[null,null,null,null,null,null,null,null,null,null,null,null,null,null,null,null,null,null,null,null,null,null,null,null,null,null,null,null,null,null,null,null,null,null,null,null,null,null,null,null,null,null,null,null,null,0,0,0]
[null,null,null,null,null,null,null,null,null,null,null,null,null,null,null,null,null,null,null,null,null,null,null,null,null,null,null,null,null,null,null,null,null,null,null,null,null,null,null,null,null,null,null,null,null,0,0,0]
[null,null,null,null,null,null,null,null,null,null,null,null,null,null,null,null,null,null,null,null,null,null,null,null,null,null,null,null,null,null,null,null,null,null,null,null,null,null,null,null,null,null,null,null,null,0,0,0]
[null,null,null,null,null,null,null,null,null,null,null,null,null,null,null,null,null,null,null,null,null,null,null,null,null,null,null,null,null,null,null,null,null,null,null,null,null,null,null,null,null,null,null,null,null,0,0,0]
[null,null,null,null,null,null,null,null,null,null,null,null,null,null,null,null,null,null,null,null,null,null,null,null,null,null,null,null,null,null,null,null,null,null,null,null,null,null,null,null,null,null,null,null,null,0,0,0]
[null,null,null,null,null,null,null,null,null,null,null,null,null,null,null,null,null,null,null,null,null,null,null,null,null,null,null,null,null,null,null,null,null,null,null,null,null,null,null,null,null,null,null,null,null,0,0,0]
[null,null,null,null,null,null,null,null,null,null,null,null,null,null,null,null,null,null,null,null,null,null,null,null,null,null,null,null,null,null,null,null,null,null,null,null,null,null,null,null,null,null,null,null,null,0,0,0]
[null,null,null,null,null,null,null,null,null,null,null,null,null,null,null,null,null,null,null,null,null,null,null,null,null,null,null,null,null,null,null,null,null,null,null,null,null,null,null,null,null,null,null,null,null,0,0,0]
[null,null,null,null,null,null,null,null,null,null,null,null,null,null,null,null,null,null,null,null,null,null,null,null,null,null,null,null,null,null,null,null,null,null,null,null,null,null,null,null,null,null,null,null,null,0,0,0]
[null,null,null,null,null,null,null,null,null,null,null,null,null,null,null,null,null,null,null,null,null,null,null,null,null,null,null,null,null,null,null,null,null,null,null,null,null,null,null,null,null,null,null,null,null,0,0,0]
[null,null,null,null,null,null,null,null,null,null,null,null,null,null,null,null,null,null,null,null,null,null,null,null,null,null,null,null,null,null,null,null,null,null,null,null,null,null,null,null,null,null,null,null,null,0,0,0]
[null,null,null,null,null,null,null,null,null,null,null,null,null,null,null,null,null,null,null,null,null,null,null,null,null,null,null,null,null,null,null,null,null,null,null,null,null,null,null,null,null,null,null,null,null,0,0,0]
[null,null,null,null,null,null,null,null,null,null,null,null,null,null,null,null,null,null,null,null,null,null,null,null,null,null,null,null,null,null,null,null,null,null,null,null,null,null,null,null,null,null,null,null,null,0,0,0]
[null,null,null,null,null,null,null,null,null,null,null,null,null,null,null,null,null,null,null,null,null,null,null,null,null,null,null,null,null,null,null,null,null,null,null,null,null,null,null,null,null,null,null,null,null,0,0,0]
[null,null,null,null,null,null,null,null,null,null,null,null,null,null,null,null,null,null,null,null,null,null,null,null,null,null,null,null,null,null,null,null,null,null,null,null,null,null,null,null,null,null,null,null,null,0,0,0]
[null,null,null,null,null,null,null,null,null,null,null,null,null,null,null,null,null,null,null,null,null,null,null,null,null,null,null,null,null,null,null,null,null,null,null,null,null,null,null,null,null,null,null,null,null,0,0,0]
[null,null,null,null,null,null,null,null,null,null,null,null,null,null,null,null,null,null,null,null,null,null,null,null,null,null,null,null,null,null,null,null,null,null,null,null,null,null,null,null,null,null,null,null,null,0,0,0]
[null,null,null,null,null,null,null,null,null,null,null,null,null,null,null,null,null,null,null,null,null,null,null,null,null,null,null,null,null,null,null,null,null,null,null,null,null,null,null,null,null,null,null,null,null,0,0,0]
[null,null,null,null,null,null,null,null,null,null,null,null,null,null,null,null,null,null,null,null,null,null,null,null,null,null,null,null,null,null,null,null,null,null,null,null,null,null,null,null,null,null,null,null,null,0,0,0]
[null,null,null,null,null,null,null,null,null,null,null,null,null,null,null,null,null,null,null,null,null,null,null,null,null,null,null,null,null,null,null,null,null,null,null,null,null,null,null,null,null,null,null,null,null,0,0,0]
[null,null,null,null,null,null,null,null,null,null,null,null,null,null,null,null,null,null,null,null,null,null,null,null,null,null,null,null,null,null,null,null,null,null,null,null,null,null,null,null,null,null,null,null,null,0,0,0]
[null,null,null,null,null,null,null,null,null,null,null,null,null,null,null,null,null,null,null,null,null,null,null,null,null,null,null,null,null,null,null,null,null,null,null,null,null,null,null,null,null,null,null,null,null,0,0,0]
[null,null,null,null,null,null,null,null,null,null,null,null,null,null,null,null,null,null,null,null,null,null,null,null,null,null,null,null,null,null,null,null,null,null,null,null,null,null,null,null,null,null,null,null,null,0,0,0]
[null,null,null,null,null,null,null,null,null,null,null,null,null,null,null,null,null,null,null,null,null,null,null,null,null,null,null,null,null,null,null,null,null,null,null,null,null,null,null,null,null,null,null,null,null,0,0,0]
[null,null,null,null,null,null,null,null,null,null,null,null,null,null,null,null,null,null,null,null,null,null,null,null,null,null,null,null,null,null,null,null,null,null,null,null,null,null,null,null,null,null,null,null,null,0,0,0]
[null,null,null,null,null,null,null,null,null,null,null,null,null,null,null,null,null,null,null,null,null,null,null,null,null,null,null,null,null,null,null,null,null,null,null,null,null,null,null,null,null,null,null,null,null,0,0,0]
[null,null,null,null,null,null,null,null,null,null,null,null,null,null,null,null,null,null,null,null,null,null,null,null,null,null,null,null,null,null,null,null,null,null,null,null,null,null,null,null,null,null,null,null,null,0,0,0]
[null,null,null,null,null,null,null,null,null,null,null,null,null,null,null,null,null,null,null,null,null,null,null,null,null,null,null,null,null,null,null,null,null,null,null,null,null,null,null,null,null,null,null,null,null,0,0,0]
[null,null,null,null,null,null,null,null,null,null,null,null,null,null,null,null,null,null,null,null,null,null,null,null,null,null,null,null,null,null,null,null,null,null,null,null,null,null,null,null,null,null,null,null,null,0,0,0]
[null,null,null,null,null,null,null,null,null,null,null,null,null,null,null,null,null,null,null,null,null,null,null,null,null,null,null,null,null,null,null,null,null,null,null,null,null,null,null,null,null,null,null,null,null,0,0,0]
[null,null,null,null,null,null,null,null,null,null,null,null,null,null,null,null,null,null,null,null,null,null,null,null,null,null,null,null,null,null,null,null,null,null,null,null,null,null,null,null,null,null,null,null,null,0,0,0]
[null,null,null,null,null,null,null,null,null,null,null,null,null,null,null,null,null,null,null,null,null,null,null,null,null,null,null,null,null,null,null,null,null,null,null,null,null,null,null,null,null,null,null,null,null,0,0,0]
[null,null,null,null,null,null,null,null,null,null,null,null,null,null,null,null,null,null,null,null,null,null,null,null,null,null,null,null,null,null,null,null,null,null,null,null,null,null,null,null,null,null,null,null,null,0,0,0]
[null,null,null,null,null,null,null,null,null,null,null,null,null,null,null,null,null,null,null,null,null,null,null,null,null,null,null,null,null,null,null,null,null,null,null,null,null,null,null,null,null,null,null,null,null,0,0,0]
[null,null,null,null,null,null,null,null,null,null,null,null,null,null,null,null,null,null,null,null,null,null,null,null,null,null,null,null,null,null,null,null,null,null,null,null,null,null,null,null,null,null,null,null,null,0,0,0]
[null,null,null,null,null,null,null,null,null,null,null,null,null,null,null,null,null,null,null,null,null,null,null,null,null,null,null,null,null,null,null,null,null,null,null,null,null,null,null,null,null,null,null,null,null,0,0,0]
[null,null,null,null,null,null,null,null,null,null,null,null,null,null,null,null,null,null,null,null,null,null,null,null,null,null,null,null,null,null,null,null,null,null,null,null,null,null,null,null,null,null,null,null,null,0,0,0]
[null,null,null,null,null,null,null,null,null,null,null,null,null,null,null,null,null,null,null,null,null,null,null,null,null,null,null,null,null,null,null,null,null,null,null,null,null,null,null,null,null,null,null,null,null,0,0,0]
[null,null,null,null,null,null,null,null,null,null,null,null,null,null,null,null,null,null,null,null,null,null,null,null,null,null,null,null,null,null,null,null,null,null,null,null,null,null,null,null,null,null,null,null,null,0,0,0]
[null,null,null,null,null,null,null,null,null,null,null,null,null,null,null,null,null,null,null,null,null,null,null,null,null,null,null,null,null,null,null,null,null,null,null,null,null,null,null,null,null,null,null,null,null,0,0,0]
[null,null,null,null,null,null,null,null,null,null,null,null,null,null,null,null,null,null,null,null,null,null,null,null,null,null,null,null,null,null,null,null,null,null,null,null,null,null,null,null,null,null,null,null,null,0,0,0]
[null,null,null,null,null,null,null,null,null,null,null,null,null,null,null,null,null,null,null,null,null,null,null,null,null,null,null,null,null,null,null,null,null,null,null,null,null,null,null,null,null,null,null,null,null,0,0,0]
[null,null,null,null,null,null,null,null,null,null,null,null,null,null,null,null,null,null,null,null,null,null,null,null,null,null,null,null,null,null,null,null,null,null,null,null,null,null,null,null,null,null,null,null,null,0,{"$f":"SUM(D617+F617+H617+L617+R617+T617+V617+X617+AT617)","v":0},{"$f":"SUM(AU617+AP617+AQ617)-AR617","v":0}]
[null,null,null,null,null,null,null,null,null,null,null,null,null,null,null,null,null,null,null,null,null,null,null,null,null,null,null,null,null,null,null,null,null,null,null,null,null,null,null,null,null,null,null,null,null,{"$f":"SUM(Z618+AB618+AD618+AF618+AH618+AJ618+AL618+AN618)","v":0},0,0]
[null,null,null,null,null,null,null,null,null,null,null,null,null,null,null,null,null,null,null,null,null,null,null,null,null,null,null,null,null,null,null,null,null,null,null,null,null,null,null,null,null,null,null,null,null,0,0,0]
[null,null,null,null,null,null,null,null,null,null,null,null,null,null,null,null,null,null,null,null,null,null,null,null,null,null,null,null,null,null,null,null,null,null,null,null,null,null,null,null,null,null,null,null,null,0,0,0]
[null,null,null,null,null,null,null,null,null,null,null,null,null,null,null,null,null,null,null,null,null,null,null,null,null,null,null,null,null,null,null,null,null,null,null,null,null,null,null,null,null,null,null,null,null,0,0,0]
[null,null,null,null,null,null,null,null,null,null,null,null,null,null,null,null,null,null,null,null,null,null,null,null,null,null,null,null,null,null,null,null,null,null,null,null,null,null,null,null,null,null,null,null,null,0,0,0]
[null,null,null,null,null,null,null,null,null,null,null,null,null,null,null,null,null,null,null,null,null,null,null,null,null,null,null,null,null,null,null,null,null,null,null,null,null,null,null,null,null,null,null,null,null,0,0,0]
[null,null,null,null,null,null,null,null,null,null,null,null,null,null,null,null,null,null,null,null,null,null,null,null,null,null,null,null,null,null,null,null,null,null,null,null,null,null,null,null,null,null,null,null,null,0,0,0]
[null,null,null,null,null,null,null,null,null,null,null,null,null,null,null,null,null,null,null,null,null,null,null,null,null,null,null,null,null,null,null,null,null,null,null,null,null,null,null,null,null,null,null,null,null,0,0,0]
[null,null,null,null,null,null,null,null,null,null,null,null,null,null,null,null,null,null,null,null,null,null,null,null,null,null,null,null,null,null,null,null,null,null,null,null,null,null,null,null,null,null,null,null,null,0,0,0]
[null,null,null,null,null,null,null,null,null,null,null,null,null,null,null,null,null,null,null,null,null,null,null,null,null,null,null,null,null,null,null,null,null,null,null,null,null,null,null,null,null,null,null,null,null,0,0,0]
[null,null,null,null,null,null,null,null,null,null,null,null,null,null,null,null,null,null,null,null,null,null,null,null,null,null,null,null,null,null,null,null,null,null,null,null,null,null,null,null,null,null,null,null,null,0,0,0]
[null,null,null,null,null,null,null,null,null,null,null,null,null,null,null,null,null,null,null,null,null,null,null,null,null,null,null,null,null,null,null,null,null,null,null,null,null,null,null,null,null,null,null,null,null,0,0,0]
[null,null,null,null,null,null,null,null,null,null,null,null,null,null,null,null,null,null,null,null,null,null,null,null,null,null,null,null,null,null,null,null,null,null,null,null,null,null,null,null,null,null,null,null,null,0,0,0]
[null,null,null,null,null,null,null,null,null,null,null,null,null,null,null,null,null,null,null,null,null,null,null,null,null,null,null,null,null,null,null,null,null,null,null,null,null,null,null,null,null,null,null,null,null,0,0,0]
[null,null,null,null,null,null,null,null,null,null,null,null,null,null,null,null,null,null,null,null,null,null,null,null,null,null,null,null,null,null,null,null,null,null,null,null,null,null,null,null,null,null,null,null,null,0,0,0]
[null,null,null,null,null,null,null,null,null,null,null,null,null,null,null,null,null,null,null,null,null,null,null,null,null,null,null,null,null,null,null,null,null,null,null,null,null,null,null,null,null,null,null,null,null,0,0,0]
[null,null,null,null,null,null,null,null,null,null,null,null,null,null,null,null,null,null,null,null,null,null,null,null,null,null,null,null,null,null,null,null,null,null,null,null,null,null,null,null,null,null,null,null,null,0,0,0]
[null,null,null,null,null,null,null,null,null,null,null,null,null,null,null,null,null,null,null,null,null,null,null,null,null,null,null,null,null,null,null,null,null,null,null,null,null,null,null,null,null,null,null,null,null,0,0,0]
[null,null,null,null,null,null,null,null,null,null,null,null,null,null,null,null,null,null,null,null,null,null,null,null,null,null,null,null,null,null,null,null,null,null,null,null,null,null,null,null,null,null,null,null,null,0,0,0]
[null,null,null,null,null,null,null,null,null,null,null,null,null,null,null,null,null,null,null,null,null,null,null,null,null,null,null,null,null,null,null,null,null,null,null,null,null,null,null,null,null,null,null,null,null,0,0,0]
[null,null,null,null,null,null,null,null,null,null,null,null,null,null,null,null,null,null,null,null,null,null,null,null,null,null,null,null,null,null,null,null,null,null,null,null,null,null,null,null,null,null,null,null,null,0,0,0]
[null,null,null,null,null,null,null,null,null,null,null,null,null,null,null,null,null,null,null,null,null,null,null,null,null,null,null,null,null,null,null,null,null,null,null,null,null,null,null,null,null,null,null,null,null,0,0,0]
[null,null,null,null,null,null,null,null,null,null,null,null,null,null,null,null,null,null,null,null,null,null,null,null,null,null,null,null,null,null,null,null,null,null,null,null,null,null,null,null,null,null,null,null,null,0,0,0]
[null,null,null,null,null,null,null,null,null,null,null,null,null,null,null,null,null,null,null,null,null,null,null,null,null,null,null,null,null,null,null,null,null,null,null,null,null,null,null,null,null,null,null,null,null,0,0,0]
[null,null,null,null,null,null,null,null,null,null,null,null,null,null,null,null,null,null,null,null,null,null,null,null,null,null,null,null,null,null,null,null,null,null,null,null,null,null,null,null,null,null,null,null,null,0,0,0]
[null,null,null,null,null,null,null,null,null,null,null,null,null,null,null,null,null,null,null,null,null,null,null,null,null,null,null,null,null,null,null,null,null,null,null,null,null,null,null,null,null,null,null,null,null,0,0,0]
[null,null,null,null,null,null,null,null,null,null,null,null,null,null,null,null,null,null,null,null,null,null,null,null,null,null,null,null,null,null,null,null,null,null,null,null,null,null,null,null,null,null,null,null,null,0,0,0]
[null,null,null,null,null,null,null,null,null,null,null,null,null,null,null,null,null,null,null,null,null,null,null,null,null,null,null,null,null,null,null,null,null,null,null,null,null,null,null,null,null,null,null,null,null,0,0,0]
[null,null,null,null,null,null,null,null,null,null,null,null,null,null,null,null,null,null,null,null,null,null,null,null,null,null,null,null,null,null,null,null,null,null,null,null,null,null,null,null,null,null,null,null,null,0,0,0]
[null,null,null,null,null,null,null,null,null,null,null,null,null,null,null,null,null,null,null,null,null,null,null,null,null,null,null,null,null,null,null,null,null,null,null,null,null,null,null,null,null,null,null,null,null,0,0,0]
[null,null,null,null,null,null,null,null,null,null,null,null,null,null,null,null,null,null,null,null,null,null,null,null,null,null,null,null,null,null,null,null,null,null,null,null,null,null,null,null,null,null,null,null,null,0,0,0]
[null,null,null,null,null,null,null,null,null,null,null,null,null,null,null,null,null,null,null,null,null,null,null,null,null,null,null,null,null,null,null,null,null,null,null,null,null,null,null,null,null,null,null,null,null,0,0,0]
[null,null,null,null,null,null,null,null,null,null,null,null,null,null,null,null,null,null,null,null,null,null,null,null,null,null,null,null,null,null,null,null,null,null,null,null,null,null,null,null,null,null,null,null,null,0,0,0]
[null,null,null,null,null,null,null,null,null,null,null,null,null,null,null,null,null,null,null,null,null,null,null,null,null,null,null,null,null,null,null,null,null,null,null,null,null,null,null,null,null,null,null,null,null,0,0,0]

{"sheet":"Generique","index":2,"n_rows":117,"n_cols":27,"rows_kept":117,"cut":false,"hidden":false,"merged":[]}
["GUEGUEN"]
[]
["JANVIER"]
[null,"NOM","AC","MP","PSO","PFC","STA","ECH","ENV","NET","LIMS","PROJET","ESS","AQ","AQ BIL","AQ FORM","AQ INFO","AQ REDAC","AQ VERIF","AQ REACT","AQ LEAN","AQ MET","CAPACITE\nREELLE","CONGE","ABSENCES","CAPACITE\nTHEORIQUE","DONT HS\nindicatif"]
[null,"Semaine (04-08/01)",null,null,null,null,null,null,null,null,null,null,0.5,{"$f":"SUM(O5:V5)","v":30.5},2,null,2.25,9,10.75,null,6.5,null,{"$f":"SUM(C5:N5)","v":31},8,null,{"$f":"SUM(W5:Y5)-AA5","v":39}]
[null,"Semaine (11-15/01)",null,null,null,null,null,null,null,null,null,null,null,{"$f":"SUM(O6:V6)","v":31},1,null,4,6.5,13.25,null,6.25,null,{"$f":"SUM(C6:N6)","v":31},8,null,{"$f":"SUM(W6:Y6)-AA6","v":39}]
[null,"Semaine (18-22/01)",null,null,null,null,null,null,null,null,null,null,0.75,31.75,null,0.25,5.25,7.75,13.75,0.5,4.25,null,{"$f":"SUM(C7:N7)","v":32.5},8,null,{"$f":"SUM(W7:Y7)-AA7","v":39},1.5]
[null,"Semaine (25-29/01)",null,null,null,null,null,null,null,null,null,null,1.5,{"$f":"SUM(O8:V8)","v":29.5},null,0.5,2.5,3.5,15.75,null,6.75,0.5,31,8,null,39]
[null,null,null,null,null,null,null,null,null,null,null,null,null,0,null,null,null,null,null,null,null,null,0,null,null,{"$f":"SUM(W9:Y9)-AA9","v":0}]
[null,"TOTAL",{"$f":"SUM(C5:C9)","v":0},{"$f":"SUM(D5:D9)","v":0},0,0,0,0,0,0,0,0,2.75,122.75,3,0.75,14,26.75,53.5,0.5,23.75,0.5,125.5,{"$f":"SUM(X5:X9)","v":32},0,156,1.5]
[]
["FEVRIER"]
[null,"NOM","AC","MP","PSO","PFC","STA","ECH","ENV","NET","LIMS","PROJET","ESS","AQ","AQ BIL","AQ FORM","AQ INFO","AQ REDAC","AQ VERIF","AQ REACT","AQ LEAN","AQ MET","CAPACITE\nREELLE","CONGE","ABSENCES","CAPACITE\nTHEORIQUE","DONT HS\nindicatif"]
[null,"Semaine (01-05/02)",null,null,null,null,null,null,null,null,null,null,null,{"$f":"SUM(O14:V14)","v":38.25},0.75,1,6.25,7.25,23,null,null,null,{"$f":"SUM(C14:N14)","v":38.25},null,2.25,{"$f":"SUM(W14:Y14)-AA14","v":39},1.5]
[null,"Semaine (81-12/02)",null,null,null,null,null,null,null,null,null,null,null,{"$f":"SUM(O15:V15)","v":39},null,null,1.75,10.5,21.25,null,4,1.5,{"$f":"SUM(C15:N15)","v":39},null,null,{"$f":"SUM(W15:Y15)-AA15","v":39}]
[null,"Semaine (15-19/02)",null,null,null,null,null,null,null,null,null,null,null,{"$f":"SUM(O16:V16)","v":39},2.5,null,2,10.5,11.75,null,12.25,null,39,null,null,39]
[null,"Semaine (22-26/02)",null,null,null,null,null,null,null,null,null,null,0.5,{"$f":"SUM(O17:V17)","v":34.5},null,0.25,null,8.5,14.75,null,2.25,8.75,35,4,null,39]
[null,"Semaine (29/02)",null,null,null,null,null,null,null,null,null,null,null,8,null,1.25,null,1,4.75,null,1,null,8,null,null,{"$f":"SUM(W18:Y18)-AA18","v":8}]
[null,"TOTAL",{"$f":"SUM(C14:C18)","v":0},{"$f":"SUM(D14:D18)","v":0},0,0,0,0,0,0,0,0,0.5,158.75,3.25,2.5,10,37.75,75.5,0,19.5,10.25,159.25,{"$f":"SUM(X14:X18)","v":4},{"$f":"SUM(Y14:Y18)","v":2.25},164,1.5]
[]
["MARS"]
[null,"NOM","AC","MP","PSO","PFC","STA","ECH","ENV","NET","LIMS","PROJET","ESS","AQ","AQ BIL","AQ FORM","AQ INFO","AQ REDAC","AQ VERIF","AQ REACT","AQ LEAN","AQ MET","CAPACITE\nREELLE","CONGE","ABSENCES","CAPACITE\nTHEORIQUE","DONT HS\nindicatif"]
[null,"Semaine (01-04/03)",null,null,null,null,null,null,null,null,null,null,1.75,{"$f":"SUM(O23:V23)","v":29.25},1.5,null,0.75,6.5,17.75,null,2,0.75,{"$f":"SUM(C23:N23)","v":31},null,null,{"$f":"SUM(W23:Y23)-AA23","v":31}]
[null,"Semaine (07-11/03)",null,null,null,null,null,null,null,null,null,null,null,{"$f":"SUM(O24:V24)","v":0},null,null,null,null,null,null,null,null,{"$f":"SUM(C24:N24)","v":0},39,null,{"$f":"SUM(W24:Y24)-AA24","v":39}]
[null,"Semaine (14-18/03)",null,null,null,null,null,null,null,null,null,null,null,{"$f":"SUM(O25:V25)","v":37.5},null,3.75,3,10.5,18.75,null,1.5,null,37.5,null,null,37.5]
[null,"Semaine (21-25/03)",null,null,null,null,null,null,null,null,null,null,0.5,39.5,null,null,4,5,22,null,8,0.5,40,null,0.5,39,1.5]
[null,"Semaine (28-31/03)",null,null,null,null,null,null,null,null,null,null,null,{"$f":"SUM(O27:V27)","v":24},1,null,1,8,13.5,null,null,0.5,24,null,null,{"$f":"SUM(W27:Y27)-AA27","v":24}]
[null,"TOTAL",{"$f":"SUM(C23:C27)","v":0},{"$f":"SUM(D23:D27)","v":0},{"$f":"SUM(E23:E27)","v":0},{"$f":"SUM(F23:F27)","v":0},0,0,0,0,0,0,2.25,130.25,2.5,3.75,8.75,30,72,{"$f":"SUM(T23:T27)","v":0},{"$f":"SUM(U23:U27)","v":11.5},1.75,132.5,{"$f":"SUM(X23:X27)","v":39},{"$f":"SUM(Y23:Y27)","v":0.5},170.5,1.5]
[]
["AVRIL"]
[null,"NOM","AC","MP","PSO","PFC","STA","ECH","ENV","NET","LIMS","PROJET","ESS","AQ","AQ BIL","AQ FORM","AQ INFO","AQ REDAC","AQ VERIF","AQ REACT","AQ LEAN","AQ MET","CAPACITE\nREELLE","CONGE","ABSENCES","CAPACITE\nTHEORIQUE","DONT HS\nindicatif"]
[null,"S30 (25/07-29/07)",1,2,3,null,4,null,null,5,6,7,8,{"$f":"SUM(O32:V32)","v":100},9,10,11,12,13,14,15,16,{"$f":"SUM(C32:N32)","v":136},17,18,{"$f":"SUM(W32:Y32)-AA32","v":152},19]
[null,null,null,null,null,null,null,null,null,null,null,null,null,{"$f":"SUM(O33:V33)","v":0},null,null,null,null,null,null,null,null,{"$f":"SUM(C33:N33)","v":0},null,null,{"$f":"SUM(W33:Y33)-AA33","v":0}]
[null,null,null,null,null,null,null,null,null,null,null,null,null,{"$f":"SUM(O34:V34)","v":0},null,null,null,null,null,null,null,null,0,null,null,0]
[null,null,null,null,null,null,null,null,null,null,null,null,null,0,null,null,null,null,null,null,null,null,0,null,null,0]
[null,null,null,null,null,null,null,null,null,null,null,null,null,{"$f":"SUM(O36:V36)","v":0},null,null,null,null,null,null,null,null,0,null,null,{"$f":"SUM(W36:Y36)-AA36","v":0}]
[null,"TOTAL",{"$f":"SUM(C32:C36)","v":1},{"$f":"SUM(D32:D36)","v":2},3,0,4,0,0,5,6,7,8,100,9,10,11,12,13,14,15,16,136,{"$f":"SUM(X32:X36)","v":17},{"$f":"SUM(Y32:Y36)","v":18},152,19]
[]
["MAI"]
[null,"NOM","AC","MP","PSO","PFC","STA","ECH","ENV","NET","LIMS","PROJET","ESS","AQ","AQ BIL","AQ FORM","AQ INFO","AQ REDAC","AQ VERIF","AQ REACT","AQ LEAN","AQ MET","CAPACITE\nREELLE","CONGE","ABSENCES","CAPACITE\nTHEORIQUE","DONT HS\nindicatif"]
[null,null,null,null,null,null,null,null,null,null,null,null,null,{"$f":"SUM(O41:V41)","v":0},null,null,null,null,null,null,null,null,{"$f":"SUM(C41:N41)","v":0},null,null,{"$f":"SUM(W41:Y41)-AA41","v":0}]
[null,null,null,null,null,null,null,null,null,null,null,null,null,{"$f":"SUM(O42:V42)","v":0},null,null,null,null,null,null,null,null,{"$f":"SUM(C42:N42)","v":0},null,null,{"$f":"SUM(W42:Y42)-AA42","v":0}]
[null,null,null,null,null,null,null,null,null,null,null,null,null,{"$f":"SUM(O43:V43)","v":0},null,null,null,null,null,null,null,null,0,null,null,0]
[null,null,null,null,null,null,null,null,null,null,null,null,null,{"$f":"SUM(O44:V44)","v":0},null,null,null,null,null,null,null,null,0,null,null,0]
[null,null,null,null,null,null,null,null,null,null,null,null,null,{"$f":"SUM(O45:V45)","v":0},null,null,null,null,null,null,null,null,0,null,null,{"$f":"SUM(W45:Y45)-AA45","v":0}]
[null,"TOTAL",{"$f":"SUM(C41:C45)","v":0},{"$f":"SUM(D41:D45)","v":0},0,{"$f":"SUM(F41:F45)","v":0},{"$f":"SUM(G41:G45)","v":0},0,0,0,0,0,0,0,0,0,0,0,0,0,0,0,0,{"$f":"SUM(X41:X45)","v":0},{"$f":"SUM(Y41:Y45)","v":0},0,0]
[]
["JUIN"]
[null,"NOM","AC","MP","PSO","PFC","STA","ECH","ENV","NET","LIMS","PROJET","ESS","AQ","AQ BIL","AQ FORM","AQ INFO","AQ REDAC","AQ VERIF","AQ REACT","AQ LEAN","AQ MET","CAPACITE\nREELLE","CONGE","ABSENCES","CAPACITE\nTHEORIQUE","DONT HS\nindicatif"]
[null,null,null,null,null,null,null,null,null,null,null,null,null,{"$f":"SUM(O50:V50)","v":0},null,null,null,null,null,null,null,null,{"$f":"SUM(C50:N50)","v":0},null,null,{"$f":"SUM(W50:Y50)-AA50","v":0}]
[null,null,null,null,null,null,null,null,null,null,null,null,null,{"$f":"SUM(O51:V51)","v":0},null,null,null,null,null,null,null,null,{"$f":"SUM(C51:N51)","v":0},null,null,{"$f":"SUM(W51:Y51)-AA51","v":0}]
[null,null,null,null,null,null,null,null,null,null,null,null,null,{"$f":"SUM(O52:V52)","v":0},null,null,null,null,null,null,null,null,0,null,null,0]
[null,null,null,null,null,null,null,null,null,null,null,null,null,{"$f":"SUM(O53:V53)","v":0},null,null,null,null,null,null,null,null,0,null,null,0]
[null,null,null,null,null,null,null,null,null,null,null,null,null,{"$f":"SUM(O54:V54)","v":0},null,null,null,null,null,null,null,null,0,null,null,{"$f":"SUM(W54:Y54)-AA54","v":0}]
[null,"TOTAL",{"$f":"SUM(C50:C54)","v":0},{"$f":"SUM(D50:D54)","v":0},0,0,0,0,0,0,0,0,0,0,0,0,0,0,0,0,0,0,0,{"$f":"SUM(X50:X54)","v":0},{"$f":"SUM(Y50:Y54)","v":0},0,0]
[]
["JUILLET"]
[null,"NOM","AC","MP","PSO","PFC","STA","ECH","ENV","NET","LIMS","PROJET","ESS","AQ","AQ BIL","AQ FORM","AQ INFO","AQ REDAC","AQ VERIF","AQ REACT","AQ LEAN","AQ MET","CAPACITE\nREELLE","CONGE","ABSENCES","CAPACITE\nTHEORIQUE","DONT HS\nindicatif"]
[null,null,null,null,null,null,null,null,null,null,null,null,null,{"$f":"SUM(O59:V59)","v":0},null,null,null,null,null,null,null,null,{"$f":"SUM(C59:N59)","v":0},null,null,{"$f":"SUM(W59:Y59)-AA59","v":0}]
[null,null,null,null,null,null,null,null,null,null,null,null,null,{"$f":"SUM(O60:V60)","v":0},null,null,null,null,null,null,null,null,{"$f":"SUM(C60:N60)","v":0},null,null,{"$f":"SUM(W60:Y60)-AA60","v":0}]
[null,null,null,null,null,null,null,null,null,null,null,null,null,{"$f":"SUM(O61:V61)","v":0},null,null,null,null,null,null,null,null,0,null,null,0]
[null,null,null,null,null,null,null,null,null,null,null,null,null,{"$f":"SUM(O62:V62)","v":0},null,null,null,null,null,null,null,null,0,null,null,0]
[null,null,null,null,null,null,null,null,null,null,null,null,null,{"$f":"SUM(O63:V63)","v":0},null,null,null,null,null,null,null,null,0,null,null,{"$f":"SUM(W63:Y63)-AA63","v":0}]
[null,"TOTAL",{"$f":"SUM(C59:C63)","v":0},{"$f":"SUM(D59:D63)","v":0},0,0,0,{"$f":"SUM(H59:H63)","v":0},{"$f":"SUM(I59:I63)","v":0},0,0,0,0,0,0,0,0,0,0,0,0,0,0,{"$f":"SUM(X59:X63)","v":0},{"$f":"SUM(Y59:Y63)","v":0},0,0]
[]
["AOUT"]
[null,"NOM","AC","MP","PSO","PFC","STA","ECH","ENV","NET","LIMS","PROJET","ESS","AQ","AQ BIL","AQ FORM","AQ INFO","AQ REDAC","AQ VERIF","AQ REACT","AQ LEAN","AQ MET","CAPACITE\nREELLE","CONGE","ABSENCES","CAPACITE\nTHEORIQUE","DONT HS\nindicatif"]
[null,null,null,null,null,null,null,null,null,null,null,null,null,{"$f":"SUM(O68:V68)","v":0},null,null,null,null,null,null,null,null,{"$f":"SUM(C68:N68)","v":0},null,null,{"$f":"SUM(W68:Y68)-AA68","v":0}]
[null,null,null,null,null,null,null,null,null,null,null,null,null,{"$f":"SUM(O69:V69)","v":0},null,null,null,null,null,null,null,null,{"$f":"SUM(C69:N69)","v":0},null,null,{"$f":"SUM(W69:Y69)-AA69","v":0}]
[null,null,null,null,null,null,null,null,null,null,null,null,null,{"$f":"SUM(O70:V70)","v":0},null,null,null,null,null,null,null,null,0,null,null,0]
[null,null,null,null,null,null,null,null,null,null,null,null,null,{"$f":"SUM(O71:V71)","v":0},null,null,null,null,null,null,null,null,0,null,null,0]
[null,null,null,null,null,null,null,null,null,null,null,null,null,{"$f":"SUM(O72:V72)","v":0},null,null,null,null,null,null,null,null,0,null,null,{"$f":"SUM(W72:Y72)-AA72","v":0}]
[null,"TOTAL",{"$f":"SUM(C68:C72)","v":0},{"$f":"SUM(D68:D72)","v":0},0,0,0,0,0,0,{"$f":"SUM(K68:K72)","v":0},{"$f":"SUM(L68:L72)","v":0},0,0,0,0,0,0,0,0,0,0,0,{"$f":"SUM(X68:X72)","v":0},{"$f":"SUM(Y68:Y72)","v":0},0,0]
[]
["SEPTEMBRE"]
[null,"NOM","AC","MP","PSO","PFC","STA","ECH","ENV","NET","LIMS","PROJET","ESS","AQ","AQ BIL","AQ FORM","AQ INFO","AQ REDAC","AQ VERIF","AQ REACT","AQ LEAN","AQ MET","CAPACITE\nREELLE","CONGE","ABSENCES","CAPACITE\nTHEORIQUE","DONT HS\nindicatif"]
[null,null,null,null,null,null,null,null,null,null,null,null,null,{"$f":"SUM(O77:V77)","v":0},null,null,null,null,null,null,null,null,{"$f":"SUM(C77:N77)","v":0},null,null,{"$f":"SUM(W77:Y77)-AA77","v":0}]
[null,null,null,null,null,null,null,null,null,null,null,null,null,{"$f":"SUM(O78:V78)","v":0},null,null,null,null,null,null,null,null,{"$f":"SUM(C78:N78)","v":0},null,null,{"$f":"SUM(W78:Y78)-AA78","v":0}]
[null,null,null,null,null,null,null,null,null,null,null,null,null,{"$f":"SUM(O79:V79)","v":0},null,null,null,null,null,null,null,null,0,null,null,0]
[null,null,null,null,null,null,null,null,null,null,null,null,null,{"$f":"SUM(O80:V80)","v":0},null,null,null,null,null,null,null,null,0,null,null,0]
[null,null,null,null,null,null,null,null,null,null,null,null,null,{"$f":"SUM(O81:V81)","v":0},null,null,null,null,null,null,null,null,0,null,null,{"$f":"SUM(W81:Y81)-AA81","v":0}]
[null,"TOTAL",{"$f":"SUM(C77:C81)","v":0},{"$f":"SUM(D77:D81)","v":0},0,0,0,0,0,0,0,0,0,0,0,0,0,0,0,0,0,0,0,{"$f":"SUM(X77:X81)","v":0},{"$f":"SUM(Y77:Y81)","v":0},0,0]
[]
["OCTOBRE"]
[null,"NOM","AC","MP","PSO","PFC","STA","ECH","ENV","NET","LIMS","PROJET","ESS","AQ","AQ BIL","AQ FORM","AQ INFO","AQ REDAC","AQ VERIF","AQ REACT","AQ LEAN","AQ MET","CAPACITE\nREELLE","CONGE","ABSENCES","CAPACITE\nTHEORIQUE","DONT HS\nindicatif"]
[null,null,null,null,null,null,null,null,null,null,null,null,null,{"$f":"SUM(O86:V86)","v":0},null,null,null,null,null,null,null,null,{"$f":"SUM(C86:N86)","v":0},null,null,{"$f":"SUM(W86:Y86)-AA86","v":0}]
[null,null,null,null,null,null,null,null,null,null,null,null,null,{"$f":"SUM(O87:V87)","v":0},null,null,null,null,null,null,null,null,{"$f":"SUM(C87:N87)","v":0},null,null,{"$f":"SUM(W87:Y87)-AA87","v":0}]
[null,null,null,null,null,null,null,null,null,null,null,null,null,{"$f":"SUM(O88:V88)","v":0},null,null,null,null,null,null,null,null,0,null,null,0]
[null,null,null,null,null,null,null,null,null,null,null,null,null,{"$f":"SUM(O89:V89)","v":0},null,null,null,null,null,null,null,null,0,null,null,0]
[null,null,null,null,null,null,null,null,null,null,null,null,null,{"$f":"SUM(O90:V90)","v":0},null,null,null,null,null,null,null,null,0,null,null,{"$f":"SUM(W90:Y90)-AA90","v":0}]
[null,"TOTAL",{"$f":"SUM(C86:C90)","v":0},{"$f":"SUM(D86:D90)","v":0},0,0,0,0,0,0,0,{"$f":"SUM(L86:L90)","v":0},{"$f":"SUM(M86:M90)","v":0},0,0,0,0,0,0,0,0,0,0,{"$f":"SUM(X86:X90)","v":0},{"$f":"SUM(Y86:Y90)","v":0},0,0]
[]
["NOVEMBRE"]
[null,"NOM","AC","MP","PSO","PFC","STA","ECH","ENV","NET","LIMS","PROJET","ESS","AQ","AQ BIL","AQ FORM","AQ INFO","AQ REDAC","AQ VERIF","AQ REACT","AQ LEAN","AQ MET","CAPACITE\nREELLE","CONGE","ABSENCES","CAPACITE\nTHEORIQUE","DONT HS\nindicatif"]
[null,null,null,null,null,null,null,null,null,null,null,null,null,{"$f":"SUM(O95:V95)","v":0},null,null,null,null,null,null,null,null,{"$f":"SUM(C95:N95)","v":0},null,null,{"$f":"SUM(W95:Y95)-AA95","v":0}]
[null,null,null,null,null,null,null,null,null,null,null,null,null,{"$f":"SUM(O96:V96)","v":0},null,null,null,null,null,null,null,null,{"$f":"SUM(C96:N96)","v":0},null,null,{"$f":"SUM(W96:Y96)-AA96","v":0}]
[null,null,null,null,null,null,null,null,null,null,null,null,null,{"$f":"SUM(O97:V97)","v":0},null,null,null,null,null,null,null,null,0,null,null,0]
[null,null,null,null,null,null,null,null,null,null,null,null,null,{"$f":"SUM(O98:V98)","v":0},null,null,null,null,null,null,null,null,0,null,null,0]
[null,null,null,null,null,null,null,null,null,null,null,null,null,{"$f":"SUM(O99:V99)","v":0},null,null,null,null,null,null,null,null,0,null,null,{"$f":"SUM(W99:Y99)-AA99","v":0}]
[null,"TOTAL",{"$f":"SUM(C95:C99)","v":0},{"$f":"SUM(D95:D99)","v":0},0,0,0,0,0,0,0,0,0,0,0,0,0,0,0,0,0,0,0,{"$f":"SUM(X95:X99)","v":0},{"$f":"SUM(Y95:Y99)","v":0},0,0]
[]
["DECEMBRE"]
[null,"NOM","AC","MP","PSO","PFC","STA","ECH","ENV","NET","LIMS","PROJET","ESS","AQ","AQ BIL","AQ FORM","AQ INFO","AQ REDAC","AQ VERIF","AQ REACT","AQ LEAN","AQ MET","CAPACITE\nREELLE","CONGE","ABSENCES","CAPACITE\nTHEORIQUE","DONT HS\nindicatif"]
[null,null,null,null,null,null,null,null,null,null,null,null,null,{"$f":"SUM(O104:V104)","v":0},null,null,null,null,null,null,null,null,{"$f":"SUM(C104:N104)","v":0},null,null,{"$f":"SUM(W104:Y104)-AA104","v":0}]
[null,null,null,null,null,null,null,null,null,null,null,null,null,{"$f":"SUM(O105:V105)","v":0},null,null,null,null,null,null,null,null,{"$f":"SUM(C105:N105)","v":0},null,null,{"$f":"SUM(W105:Y105)-AA105","v":0}]
[null,null,null,null,null,null,null,null,null,null,null,null,null,{"$f":"SUM(O106:V106)","v":0},null,null,null,null,null,null,null,null,0,null,null,{"$f":"SUM(W106:Y106)-AA106","v":0}]
[null,null,null,null,null,null,null,null,null,null,null,null,null,{"$f":"SUM(O107:V107)","v":0},null,null,null,null,null,null,null,null,0,null,null,0]
[null,null,null,null,null,null,null,null,null,null,null,null,null,{"$f":"SUM(O108:V108)","v":0},null,null,null,null,null,null,null,null,{"$f":"SUM(C108:N108)","v":0},null,null,{"$f":"SUM(W108:Y108)-AA108","v":0}]
[null,"TOTAL",{"$f":"SUM(C104:C108)","v":0},{"$f":"SUM(D104:D108)","v":0},0,0,0,0,0,0,{"$f":"SUM(K104:K108)","v":0},{"$f":"SUM(L104:L108)","v":0},0,0,0,0,0,0,0,0,0,0,0,{"$f":"SUM(X104:X108)","v":0},{"$f":"SUM(Y104:Y108)","v":0},0,0]
[]
[]
[]
[]
[null,"Etat global 2016"]
[]
[null,"AC","MP","PSO","PFC","STA","ECH","ENV","NET","LIMS","PROJET","ESS","AQ","AQ BIL","AQ FORM","AQ INFO","AQ REDAC","AQ VERIF","AQ REACT","AQ LEAN","AQ MET"]
[null,{"$f":"SUM(C10+C19+C28+C37+C46+C55+C64+C73+C82+C91+C100+C109)","v":1},{"$f":"SUM(D10+D19+D28+D37+D46+D55+D64+D73+D82+D91+D100+D109)","v":2},{"$f":"SUM(E10+E19+E28+E37+E46+E55+E64+E73+E82+E91+E100+E109)","v":3},{"$f":"SUM(F10+F19+F28+F37+F46+F55+F64+F73+F82+F91+F100+F109)","v":0},4,0,0,5,6,7,13.5,511.75,17.75,17,43.75,106.5,214,14.5,69.75,28.5]

{"sheet":"VIERGE","index":3,"n_rows":109,"n_cols":27,"rows_kept":109,"cut":false,"hidden":false,"merged":[]}
["…"]
[]
["JANVIER"]
[null,"NOM","AC","MP","PSO","PFC","STA","ECH","ENV/MAN DIV","NET","LIMS","PROJET","ESS","AQ","AQ BIL","AQ FORM","AQ INFO","AQ REDAC","AQ VERIF","AQ REACT","AQ LEAN","AQ MET","CAPACITE\nREELLE","CONGE","ABSENCES","CAPACITE\nTHEORIQUE","DONT HS\nindicatif"]
[null,"Semaine (../..)",null,null,null,null,null,null,null,null,null,null,null,{"$f":"SUM(O5:V5)","v":0},null,null,null,null,null,null,null,null,{"$f":"SUM(C5:N5)","v":0},null,null,{"$f":"SUM(W5:Y5)-AA5","v":0}]
[null,"Semaine (../..)",null,null,null,null,null,null,null,null,null,null,null,{"$f":"SUM(O6:V6)","v":0},null,null,null,null,null,null,null,null,{"$f":"SUM(C6:N6)","v":0},null,null,{"$f":"SUM(W6:Y6)-AA6","v":0}]
[null,"Semaine (../..)",null,null,null,null,null,null,null,null,null,null,null,0,null,null,null,null,null,null,null,null,{"$f":"SUM(C7:N7)","v":0},null,null,{"$f":"SUM(W7:Y7)-AA7","v":0}]
[null,"Semaine (../..)",null,null,null,null,null,null,null,null,null,null,null,{"$f":"SUM(O8:V8)","v":0},null,null,null,null,null,null,null,null,0,null,null,0]
[null,"Semaine (../..)",null,null,null,null,null,null,null,null,null,null,null,0,null,null,null,null,null,null,null,null,0,null,null,{"$f":"SUM(W9:Y9)-AA9","v":0}]
[null,"TOTAL",{"$f":"SUM(C5:C9)","v":0},{"$f":"SUM(D5:D9)","v":0},0,0,0,0,0,0,0,0,0,0,0,0,0,0,0,0,0,0,0,{"$f":"SUM(X5:X9)","v":0},0,0,0]
[]
["FEVRIER"]
[null,"NOM","AC","MP","PSO","PFC","STA","ECH","ENV/MAN DIV","NET","LIMS","PROJET","ESS","AQ","AQ BIL","AQ FORM","AQ INFO","AQ REDAC","AQ VERIF","AQ REACT","AQ LEAN","AQ MET","CAPACITE\nREELLE","CONGE","ABSENCES","CAPACITE\nTHEORIQUE","DONT HS\nindicatif"]
[null,"Semaine (../..)",null,null,null,null,null,null,null,null,null,null,null,{"$f":"SUM(O14:V14)","v":0},null,null,null,null,null,null,null,null,{"$f":"SUM(C14:N14)","v":0},null,null,{"$f":"SUM(W14:Y14)-AA14","v":0}]
[null,"Semaine (../..)",null,null,null,null,null,null,null,null,null,null,null,{"$f":"SUM(O15:V15)","v":0},null,null,null,null,null,null,null,null,{"$f":"SUM(C15:N15)","v":0},null,null,{"$f":"SUM(W15:Y15)-AA15","v":0}]
[null,"Semaine (../..)",null,null,null,null,null,null,null,null,null,null,null,{"$f":"SUM(O16:V16)","v":0},null,null,null,null,null,null,null,null,0,null,null,0]
[null,"Semaine (../..)",null,null,null,null,null,null,null,null,null,null,null,{"$f":"SUM(O17:V17)","v":0},null,null,null,null,null,null,null,null,0,null,null,0]
[null,"Semaine (../..)",null,null,null,null,null,null,null,null,null,null,null,0,null,null,null,null,null,null,null,null,0,null,null,{"$f":"SUM(W18:Y18)-AA18","v":0}]
[null,"TOTAL",{"$f":"SUM(C14:C18)","v":0},{"$f":"SUM(D14:D18)","v":0},0,0,0,0,0,0,0,0,0,0,0,0,0,0,0,0,0,0,0,{"$f":"SUM(X14:X18)","v":0},0,0,0]
[]
["MARS"]
[null,"NOM","AC","MP","PSO","PFC","STA","ECH","ENV/MAN DIV","NET","LIMS","PROJET","ESS","AQ","AQ BIL","AQ FORM","AQ INFO","AQ REDAC","AQ VERIF","AQ REACT","AQ LEAN","AQ MET","CAPACITE\nREELLE","CONGE","ABSENCES","CAPACITE\nTHEORIQUE","DONT HS\nindicatif"]
[null,"Semaine (../..)",null,null,null,null,null,null,null,null,null,null,null,{"$f":"SUM(O23:V23)","v":0},null,null,null,null,null,null,null,null,{"$f":"SUM(C23:N23)","v":0},null,null,{"$f":"SUM(W23:Y23)-AA23","v":0}]
[null,"Semaine (../..)",null,null,null,null,null,null,null,null,null,null,null,{"$f":"SUM(O24:V24)","v":0},null,null,null,null,null,null,null,null,{"$f":"SUM(C24:N24)","v":0},null,null,{"$f":"SUM(W24:Y24)-AA24","v":0}]
[null,"Semaine (../..)",null,null,null,null,null,null,null,null,null,null,null,{"$f":"SUM(O25:V25)","v":0},null,null,null,null,null,null,null,null,0,null,null,0]
[null,"Semaine (../..)",null,null,null,null,null,null,null,null,null,null,null,0,null,null,null,null,null,null,null,null,0,null,null,0]
[null,"Semaine (../..)",null,null,null,null,null,null,null,null,null,null,null,{"$f":"SUM(O27:V27)","v":0},null,null,null,null,null,null,null,null,0,null,null,{"$f":"SUM(W27:Y27)-AA27","v":0}]
[null,"TOTAL",{"$f":"SUM(C23:C27)","v":0},{"$f":"SUM(D23:D27)","v":0},{"$f":"SUM(E23:E27)","v":0},{"$f":"SUM(F23:F27)","v":0},0,0,0,0,0,0,0,0,0,0,0,0,0,0,0,0,0,{"$f":"SUM(X23:X27)","v":0},0,0,0]
[]
["AVRIL"]
[null,"NOM","AC","MP","PSO","PFC","STA","ECH","ENV/MAN DIV","NET","LIMS","PROJET","ESS","AQ","AQ BIL","AQ FORM","AQ INFO","AQ REDAC","AQ VERIF","AQ REACT","AQ LEAN","AQ MET","CAPACITE\nREELLE","CONGE","ABSENCES","CAPACITE\nTHEORIQUE","DONT HS\nindicatif"]
[null,"Semaine (../..)",null,null,null,null,null,null,null,null,null,null,null,{"$f":"SUM(O32:V32)","v":0},null,null,null,null,null,null,null,null,{"$f":"SUM(C32:N32)","v":0},null,null,{"$f":"SUM(W32:Y32)-AA32","v":0}]
[null,"Semaine (../..)",null,null,null,null,null,null,null,null,null,null,null,{"$f":"SUM(O33:V33)","v":0},null,null,null,null,null,null,null,null,{"$f":"SUM(C33:N33)","v":0},null,null,{"$f":"SUM(W33:Y33)-AA33","v":0}]
[null,"Semaine (../..)",null,null,null,null,null,null,null,null,null,null,null,{"$f":"SUM(O34:V34)","v":0},null,null,null,null,null,null,null,null,0,null,null,0]
[null,"Semaine (../..)",null,null,null,null,null,null,null,null,null,null,null,0,null,null,null,null,null,null,null,null,0,null,null,0]
[null,"Semaine (../..)",null,null,null,null,null,null,null,null,null,null,null,{"$f":"SUM(O36:V36)","v":0},null,null,null,null,null,null,null,null,0,null,null,{"$f":"SUM(W36:Y36)-AA36","v":0}]
[null,"TOTAL",{"$f":"SUM(C32:C36)","v":0},{"$f":"SUM(D32:D36)","v":0},0,0,0,0,0,0,0,0,0,0,0,0,0,0,0,0,0,0,0,{"$f":"SUM(X32:X36)","v":0},0,0,0]
[]
["MAI"]
[null,"NOM","AC","MP","PSO","PFC","STA","ECH","ENV/MAN DIV","NET","LIMS","PROJET","ESS","AQ","AQ BIL","AQ FORM","AQ INFO","AQ REDAC","AQ VERIF","AQ REACT","AQ LEAN","AQ MET","CAPACITE\nREELLE","CONGE","ABSENCES","CAPACITE\nTHEORIQUE","DONT HS\nindicatif"]
[null,"Semaine (../..)",null,null,null,null,null,null,null,null,null,null,null,{"$f":"SUM(O41:V41)","v":0},null,null,null,null,null,null,null,null,{"$f":"SUM(C41:N41)","v":0},null,null,{"$f":"SUM(W41:Y41)-AA41","v":0}]
[null,"Semaine (../..)",null,null,null,null,null,null,null,null,null,null,null,{"$f":"SUM(O42:V42)","v":0},null,null,null,null,null,null,null,null,{"$f":"SUM(C42:N42)","v":0},null,null,{"$f":"SUM(W42:Y42)-AA42","v":0}]
[null,"Semaine (../..)",null,null,null,null,null,null,null,null,null,null,null,{"$f":"SUM(O43:V43)","v":0},null,null,null,null,null,null,null,null,0,null,null,0]
[null,"Semaine (../..)",null,null,null,null,null,null,null,null,null,null,null,{"$f":"SUM(O44:V44)","v":0},null,null,null,null,null,null,null,null,0,null,null,0]
[null,"Semaine (../..)",null,null,null,null,null,null,null,null,null,null,null,{"$f":"SUM(O45:V45)","v":0},null,null,null,null,null,null,null,null,0,null,null,{"$f":"SUM(W45:Y45)-AA45","v":0}]
[null,"TOTAL",{"$f":"SUM(C41:C45)","v":0},{"$f":"SUM(D41:D45)","v":0},0,{"$f":"SUM(F41:F45)","v":0},{"$f":"SUM(G41:G45)","v":0},0,0,0,0,0,0,0,0,0,0,0,0,0,0,0,0,{"$f":"SUM(X41:X45)","v":0},0,0,0]
[]
["JUIN"]
[null,"NOM","AC","MP","PSO","PFC","STA","ECH","ENV/MAN DIV","NET","LIMS","PROJET","ESS","AQ","AQ BIL","AQ FORM","AQ INFO","AQ REDAC","AQ VERIF","AQ REACT","AQ LEAN","AQ MET","CAPACITE\nREELLE","CONGE","ABSENCES","CAPACITE\nTHEORIQUE","DONT HS\nindicatif"]
[null,"Semaine (../..)",null,null,null,null,null,null,null,null,null,null,null,{"$f":"SUM(O50:V50)","v":0},null,null,null,null,null,null,null,null,{"$f":"SUM(C50:N50)","v":0},null,null,{"$f":"SUM(W50:Y50)-AA50","v":0}]
[null,"Semaine (../..)",null,null,null,null,null,null,null,null,null,null,null,{"$f":"SUM(O51:V51)","v":0},null,null,null,null,null,null,null,null,{"$f":"SUM(C51:N51)","v":0},null,null,{"$f":"SUM(W51:Y51)-AA51","v":0}]
[null,"Semaine (../..)",null,null,null,null,null,null,null,null,null,null,null,{"$f":"SUM(O52:V52)","v":0},null,null,null,null,null,null,null,null,0,null,null,0]
[null,"Semaine (../..)",null,null,null,null,null,null,null,null,null,null,null,{"$f":"SUM(O53:V53)","v":0},null,null,null,null,null,null,null,null,0,null,null,0]
[null,"Semaine (../..)",null,null,null,null,null,null,null,null,null,null,null,{"$f":"SUM(O54:V54)","v":0},null,null,null,null,null,null,null,null,0,null,null,{"$f":"SUM(W54:Y54)-AA54","v":0}]
[null,"TOTAL",{"$f":"SUM(C50:C54)","v":0},{"$f":"SUM(D50:D54)","v":0},0,0,0,0,0,0,0,0,0,0,0,0,0,0,0,0,0,0,0,{"$f":"SUM(X50:X54)","v":0},0,0,0]
[]
["JUILLET"]
[null,"NOM","AC","MP","PSO","PFC","STA","ECH","ENV/MAN DIV","NET","LIMS","PROJET","ESS","AQ","AQ BIL","AQ FORM","AQ INFO","AQ REDAC","AQ VERIF","AQ REACT","AQ LEAN","AQ MET","CAPACITE\nREELLE","CONGE","ABSENCES","CAPACITE\nTHEORIQUE","DONT HS\nindicatif"]
[null,"Semaine (../..)",null,null,null,null,null,null,null,null,null,null,null,{"$f":"SUM(O59:V59)","v":0},null,null,null,null,null,null,null,null,{"$f":"SUM(C59:N59)","v":0},null,null,{"$f":"SUM(W59:Y59)-AA59","v":0}]
[null,"Semaine (../..)",null,null,null,null,null,null,null,null,null,null,null,{"$f":"SUM(O60:V60)","v":0},null,null,null,null,null,null,null,null,{"$f":"SUM(C60:N60)","v":0},null,null,{"$f":"SUM(W60:Y60)-AA60","v":0}]
[null,"Semaine (../..)",null,null,null,null,null,null,null,null,null,null,null,{"$f":"SUM(O61:V61)","v":0},null,null,null,null,null,null,null,null,0,null,null,0]
[null,"Semaine (../..)",null,null,null,null,null,null,null,null,null,null,null,{"$f":"SUM(O62:V62)","v":0},null,null,null,null,null,null,null,null,0,null,null,0]
[null,"Semaine (../..)",null,null,null,null,null,null,null,null,null,null,null,{"$f":"SUM(O63:V63)","v":0},null,null,null,null,null,null,null,null,0,null,null,{"$f":"SUM(W63:Y63)-AA63","v":0}]
[null,"TOTAL",{"$f":"SUM(C59:C63)","v":0},{"$f":"SUM(D59:D63)","v":0},0,0,0,{"$f":"SUM(H59:H63)","v":0},{"$f":"SUM(I59:I63)","v":0},0,0,0,0,0,0,0,0,0,0,0,0,0,0,{"$f":"SUM(X59:X63)","v":0},0,0,0]
[]
["AOUT"]
[null,"NOM","AC","MP","PSO","PFC","STA","ECH","ENV/MAN DIV","NET","LIMS","PROJET","ESS","AQ","AQ BIL","AQ FORM","AQ INFO","AQ REDAC","AQ VERIF","AQ REACT","AQ LEAN","AQ MET","CAPACITE\nREELLE","CONGE","ABSENCES","CAPACITE\nTHEORIQUE","DONT HS\nindicatif"]
[null,"Semaine (../..)",null,null,null,null,null,null,null,null,null,null,null,{"$f":"SUM(O68:V68)","v":0},null,null,null,null,null,null,null,null,{"$f":"SUM(C68:N68)","v":0},null,null,{"$f":"SUM(W68:Y68)-AA68","v":0}]
[null,"Semaine (../..)",null,null,null,null,null,null,null,null,null,null,null,{"$f":"SUM(O69:V69)","v":0},null,null,null,null,null,null,null,null,{"$f":"SUM(C69:N69)","v":0},null,null,{"$f":"SUM(W69:Y69)-AA69","v":0}]
[null,"Semaine (../..)",null,null,null,null,null,null,null,null,null,null,null,{"$f":"SUM(O70:V70)","v":0},null,null,null,null,null,null,null,null,0,null,null,0]
[null,"Semaine (../..)",null,null,null,null,null,null,null,null,null,null,null,{"$f":"SUM(O71:V71)","v":0},null,null,null,null,null,null,null,null,0,null,null,0]
[null,"Semaine (../..)",null,null,null,null,null,null,null,null,null,null,null,{"$f":"SUM(O72:V72)","v":0},null,null,null,null,null,null,null,null,0,null,null,{"$f":"SUM(W72:Y72)-AA72","v":0}]
[null,"TOTAL",{"$f":"SUM(C68:C72)","v":0},{"$f":"SUM(D68:D72)","v":0},0,0,0,0,0,0,{"$f":"SUM(K68:K72)","v":0},{"$f":"SUM(L68:L72)","v":0},0,0,0,0,0,0,0,0,0,0,0,{"$f":"SUM(X68:X72)","v":0},0,0,0]
[]
["SEPTEMBRE"]
[null,"NOM","AC","MP","PSO","PFC","STA","ECH","ENV/MAN DIV","NET","LIMS","PROJET","ESS","AQ","AQ BIL","AQ FORM","AQ INFO","AQ REDAC","AQ VERIF","AQ REACT","AQ LEAN","AQ MET","CAPACITE\nREELLE","CONGE","ABSENCES","CAPACITE\nTHEORIQUE","DONT HS\nindicatif"]
[null,"Semaine (../..)",null,null,null,null,null,null,null,null,null,null,null,{"$f":"SUM(O77:V77)","v":0},null,null,null,null,null,null,null,null,{"$f":"SUM(C77:N77)","v":0},null,null,{"$f":"SUM(W77:Y77)-AA77","v":0}]
[null,"Semaine (../..)",null,null,null,null,null,null,null,null,null,null,null,{"$f":"SUM(O78:V78)","v":0},null,null,null,null,null,null,null,null,{"$f":"SUM(C78:N78)","v":0},null,null,{"$f":"SUM(W78:Y78)-AA78","v":0}]
[null,"Semaine (../..)",null,null,null,null,null,null,null,null,null,null,null,{"$f":"SUM(O79:V79)","v":0},null,null,null,null,null,null,null,null,0,null,null,0]
[null,"Semaine (../..)",null,null,null,null,null,null,null,null,null,null,null,{"$f":"SUM(O80:V80)","v":0},null,null,null,null,null,null,null,null,0,null,null,0]
[null,"Semaine (../..)",null,null,null,null,null,null,null,null,null,null,null,{"$f":"SUM(O81:V81)","v":0},null,null,null,null,null,null,null,null,0,null,null,{"$f":"SUM(W81:Y81)-AA81","v":0}]
[null,"TOTAL",{"$f":"SUM(C77:C81)","v":0},{"$f":"SUM(D77:D81)","v":0},0,0,0,0,0,0,0,0,0,0,0,0,0,0,0,0,0,0,0,{"$f":"SUM(X77:X81)","v":0},0,0,0]
[]
["OCTOBRE"]
[null,"NOM","AC","MP","PSO","PFC","STA","ECH","ENV/MAN DIV","NET","LIMS","PROJET","ESS","AQ","AQ BIL","AQ FORM","AQ INFO","AQ REDAC","AQ VERIF","AQ REACT","AQ LEAN","AQ MET","CAPACITE\nREELLE","CONGE","ABSENCES","CAPACITE\nTHEORIQUE","DONT HS\nindicatif"]
[null,"Semaine (../..)",null,null,null,null,null,null,null,null,null,null,null,{"$f":"SUM(O86:V86)","v":0},null,null,null,null,null,null,null,null,{"$f":"SUM(C86:N86)","v":0},null,null,{"$f":"SUM(W86:Y86)-AA86","v":0}]
[null,"Semaine (../..)",null,null,null,null,null,null,null,null,null,null,null,{"$f":"SUM(O87:V87)","v":0},null,null,null,null,null,null,null,null,{"$f":"SUM(C87:N87)","v":0},null,null,{"$f":"SUM(W87:Y87)-AA87","v":0}]
[null,"Semaine (../..)",null,null,null,null,null,null,null,null,null,null,null,{"$f":"SUM(O88:V88)","v":0},null,null,null,null,null,null,null,null,0,null,null,0]
[null,"Semaine (../..)",null,null,null,null,null,null,null,null,null,null,null,{"$f":"SUM(O89:V89)","v":0},null,null,null,null,null,null,null,null,0,null,null,0]
[null,"Semaine (../..)",null,null,null,null,null,null,null,null,null,null,null,{"$f":"SUM(O90:V90)","v":0},null,null,null,null,null,null,null,null,0,null,null,{"$f":"SUM(W90:Y90)-AA90","v":0}]
[null,"TOTAL",{"$f":"SUM(C86:C90)","v":0},{"$f":"SUM(D86:D90)","v":0},0,0,0,0,0,0,0,{"$f":"SUM(L86:L90)","v":0},{"$f":"SUM(M86:M90)","v":0},0,0,0,0,0,0,0,0,0,0,{"$f":"SUM(X86:X90)","v":0},0,0,0]
[]
["NOVEMBRE"]
[null,"NOM","AC","MP","PSO","PFC","STA","ECH","ENV/MAN DIV","NET","LIMS","PROJET","ESS","AQ","AQ BIL","AQ FORM","AQ INFO","AQ REDAC","AQ VERIF","AQ REACT","AQ LEAN","AQ MET","CAPACITE\nREELLE","CONGE","ABSENCES","CAPACITE\nTHEORIQUE","DONT HS\nindicatif"]
[null,"Semaine (../..)",null,null,null,null,null,null,null,null,null,null,null,{"$f":"SUM(O95:V95)","v":0},null,null,null,null,null,null,null,null,{"$f":"SUM(C95:N95)","v":0},null,null,{"$f":"SUM(W95:Y95)-AA95","v":0}]
[null,"Semaine (../..)",null,null,null,null,null,null,null,null,null,null,null,{"$f":"SUM(O96:V96)","v":0},null,null,null,null,null,null,null,null,{"$f":"SUM(C96:N96)","v":0},null,null,{"$f":"SUM(W96:Y96)-AA96","v":0}]
[null,"Semaine (../..)",null,null,null,null,null,null,null,null,null,null,null,{"$f":"SUM(O97:V97)","v":0},null,null,null,null,null,null,null,null,0,null,null,0]
[null,"Semaine (../..)",null,null,null,null,null,null,null,null,null,null,null,{"$f":"SUM(O98:V98)","v":0},null,null,null,null,null,null,null,null,0,null,null,0]
[null,"Semaine (../..)",null,null,null,null,null,null,null,null,null,null,null,{"$f":"SUM(O99:V99)","v":0},null,null,null,null,null,null,null,null,0,null,null,{"$f":"SUM(W99:Y99)-AA99","v":0}]
[null,"TOTAL",{"$f":"SUM(C95:C99)","v":0},{"$f":"SUM(D95:D99)","v":0},0,0,0,0,0,0,0,0,0,0,0,0,0,0,0,0,0,0,0,{"$f":"SUM(X95:X99)","v":0},0,0,0]
[]
["DECEMBRE"]
[null,"NOM","AC","MP","PSO","PFC","STA","ECH","ENV/MAN DIV","NET","LIMS","PROJET","ESS","AQ","AQ BIL","AQ FORM","AQ INFO","AQ REDAC","AQ VERIF","AQ REACT","AQ LEAN","AQ MET","CAPACITE\nREELLE","CONGE","ABSENCES","CAPACITE\nTHEORIQUE","DONT HS\nindicatif"]
[null,"Semaine (../..)",null,null,null,null,null,null,null,null,null,null,null,{"$f":"SUM(O104:V104)","v":0},null,null,null,null,null,null,null,null,{"$f":"SUM(C104:N104)","v":0},null,null,{"$f":"SUM(W104:Y104)-AA104","v":0}]
[null,"Semaine (../..)",null,null,null,null,null,null,null,null,null,null,null,{"$f":"SUM(O105:V105)","v":0},null,null,null,null,null,null,null,null,{"$f":"SUM(C105:N105)","v":0},null,null,{"$f":"SUM(W105:Y105)-AA105","v":0}]
[null,"Semaine (../..)",null,null,null,null,null,null,null,null,null,null,null,{"$f":"SUM(O106:V106)","v":0},null,null,null,null,null,null,null,null,0,null,null,0]
[null,"Semaine (../..)",null,null,null,null,null,null,null,null,null,null,null,{"$f":"SUM(O107:V107)","v":0},null,null,null,null,null,null,null,null,0,null,null,0]
[null,"Semaine (../..)",null,null,null,null,null,null,null,null,null,null,null,{"$f":"SUM(O108:V108)","v":0},null,null,null,null,null,null,null,null,{"$f":"SUM(C108:N108)","v":0},null,null,{"$f":"SUM(W108:Y108)-AA108","v":0}]
[null,"TOTAL",{"$f":"SUM(C104:C108)","v":0},{"$f":"SUM(D104:D108)","v":0},0,0,0,0,0,0,{"$f":"SUM(K104:K108)","v":0},{"$f":"SUM(L104:L108)","v":0},0,0,0,0,0,0,0,0,0,0,0,{"$f":"SUM(X104:X108)","v":0},0,0,0]

{"sheet":"BILAN PC","index":4,"n_rows":61,"n_cols":26,"rows_kept":61,"cut":false,"hidden":false,"merged":[[12,0,12,2],[39,0,39,2],[45,4,58,7]]}
["Bilan Physico-Chimie"]
["(Sans JH / Sga / HG / SM / VM et CCE (CDD))"]
[null,null,"10 Titulaires + 2 Intérimaires + 1CDD= 13 personnes soit une capacité théorique de 2028 h"]
[null,null,"Capacité réelle: 1951h"]
[]
[null,"AC","MP","PSO","PFC","STA","ECH","ENV","NET","LIMS","PROJET","ESS","AQ","AQ BIL","AQ FORM","AQ INFO","AQ REDAC","AQ VERIF","AQ REACT","AQ LEAN","AQ MET","CAP REELLE","CONGE","ABSENCES","CAP. THEO.","HS"]
["JANVIER",{"$f":"SUM(#REF!+#REF!+#REF!+#REF!+#REF!+#REF!+#REF!+#REF!+#REF!+#REF!+#REF!+#REF!)","v":{"$error":"#REF!"}},{"$f":"SUM(#REF!+#REF!+#REF!+#REF!+#REF!+#REF!+#REF!+#REF!+#REF!+#REF!+#REF!+#REF!)","v":{"$error":"#REF!"}},{"$f":"SUM(#REF!+#REF!+#REF!+#REF!+#REF!+#REF!+#REF!+#REF!+#REF!+#REF!+#REF!+#REF!)","v":{"$error":"#REF!"}},{"$f":"SUM(#REF!+#REF!+#REF!+#REF!+#REF!+#REF!+#REF!+#REF!+#REF!+#REF!+#REF!+#REF!)","v":{"$error":"#REF!"}},{"$f":"SUM(#REF!+#REF!+#REF!+#REF!+#REF!+#REF!+#REF!+#REF!+#REF!+#REF!+#REF!+#REF!)","v":{"$error":"#REF!"}},{"$f":"SUM(#REF!+#REF!+#REF!+#REF!+#REF!+#REF!+#REF!+#REF!+#REF!+#REF!+#REF!+#REF!)","v":{"$error":"#REF!"}},{"$f":"SUM(#REF!+#REF!+#REF!+#REF!+#REF!+#REF!+#REF!+#REF!+#REF!+#REF!+#REF!+#REF!)","v":{"$error":"#REF!"}},{"$f":"SUM(#REF!+#REF!+#REF!+#REF!+#REF!+#REF!+#REF!+#REF!+#REF!+#REF!+#REF!+#REF!)","v":{"$error":"#REF!"}},{"$f":"SUM(#REF!+#REF!+#REF!+#REF!+#REF!+#REF!+#REF!+#REF!+#REF!+#REF!+#REF!+#REF!)","v":{"$error":"#REF!"}},{"$f":"SUM(#REF!+#REF!+#REF!+#REF!+#REF!+#REF!+#REF!+#REF!+#REF!+#REF!+#REF!+#REF!)","v":{"$error":"#REF!"}},{"$f":"SUM(#REF!+#REF!+#REF!+#REF!+#REF!+#REF!+#REF!+#REF!+#REF!+#REF!+#REF!+#REF!)","v":{"$error":"#REF!"}},{"$f":"SUM(#REF!+#REF!+#REF!+#REF!+#REF!+#REF!+#REF!+#REF!+#REF!+#REF!+#REF!+#REF!)","v":{"$error":"#REF!"}},{"$f":"SUM(#REF!+#REF!+#REF!+#REF!+#REF!+#REF!+#REF!+#REF!+#REF!+#REF!+#REF!+#REF!)","v":{"$error":"#REF!"}},{"$f":"SUM(#REF!+#REF!+#REF!+#REF!+#REF!+#REF!+#REF!+#REF!+#REF!+#REF!+#REF!+#REF!)","v":{"$error":"#REF!"}},{"$f":"SUM(#REF!+#REF!+#REF!+#REF!+#REF!+#REF!+#REF!+#REF!+#REF!+#REF!+#REF!+#REF!)","v":{"$error":"#REF!"}},{"$f":"SUM(#REF!+#REF!+#REF!+#REF!+#REF!+#REF!+#REF!+#REF!+#REF!+#REF!+#REF!+#REF!)","v":{"$error":"#REF!"}},{"$f":"SUM(#REF!+#REF!+#REF!+#REF!+#REF!+#REF!+#REF!+#REF!+#REF!+#REF!+#REF!+#REF!)","v":{"$error":"#REF!"}},{"$f":"SUM(#REF!+#REF!+#REF!+#REF!+#REF!+#REF!+#REF!+#REF!+#REF!+#REF!+#REF!+#REF!)","v":{"$error":"#REF!"}},{"$f":"SUM(#REF!+#REF!+#REF!+#REF!+#REF!+#REF!+#REF!+#REF!+#REF!+#REF!+#REF!+#REF!)","v":{"$error":"#REF!"}},{"$f":"SUM(#REF!+#REF!+#REF!+#REF!+#REF!+#REF!+#REF!+#REF!+#REF!+#REF!+#REF!+#REF!)","v":{"$error":"#REF!"}},{"$f":"SUM(#REF!+#REF!+#REF!+#REF!+#REF!+#REF!+#REF!+#REF!+#REF!+#REF!+#REF!+#REF!)","v":{"$error":"#REF!"}},{"$f":"SUM(#REF!+#REF!+#REF!+#REF!+#REF!+#REF!+#REF!+#REF!+#REF!+#REF!+#REF!+#REF!)","v":{"$error":"#REF!"}},{"$f":"SUM(#REF!+#REF!+#REF!+#REF!+#REF!+#REF!+#REF!+#REF!+#REF!+#REF!+#REF!+#REF!)","v":{"$error":"#REF!"}},{"$f":"SUM(#REF!+#REF!+#REF!+#REF!+#REF!+#REF!+#REF!+#REF!+#REF!+#REF!+#REF!+#REF!)","v":{"$error":"#REF!"}},{"$f":"SUM(#REF!+#REF!+#REF!+#REF!+#REF!+#REF!+#REF!+#REF!+#REF!+#REF!+#REF!+#REF!)","v":{"$error":"#REF!"}}]
["FEVRIER",{"$f":"#REF!+#REF!+#REF!+#REF!+#REF!+#REF!+#REF!+#REF!+#REF!+#REF!+#REF!+#REF!","v":{"$error":"#REF!"}},{"$f":"#REF!+#REF!+#REF!+#REF!+#REF!+#REF!+#REF!+#REF!+#REF!+#REF!+#REF!+#REF!","v":{"$error":"#REF!"}},{"$f":"#REF!+#REF!+#REF!+#REF!+#REF!+#REF!+#REF!+#REF!+#REF!+#REF!+#REF!+#REF!","v":{"$error":"#REF!"}},{"$f":"#REF!+#REF!+#REF!+#REF!+#REF!+#REF!+#REF!+#REF!+#REF!+#REF!+#REF!+#REF!","v":{"$error":"#REF!"}},{"$f":"#REF!+#REF!+#REF!+#REF!+#REF!+#REF!+#REF!+#REF!+#REF!+#REF!+#REF!+#REF!","v":{"$error":"#REF!"}},{"$f":"#REF!+#REF!+#REF!+#REF!+#REF!+#REF!+#REF!+#REF!+#REF!+#REF!+#REF!+#REF!","v":{"$error":"#REF!"}},{"$f":"#REF!+#REF!+#REF!+#REF!+#REF!+#REF!+#REF!+#REF!+#REF!+#REF!+#REF!+#REF!","v":{"$error":"#REF!"}},{"$f":"#REF!+#REF!+#REF!+#REF!+#REF!+#REF!+#REF!+#REF!+#REF!+#REF!+#REF!+#REF!","v":{"$error":"#REF!"}},{"$f":"#REF!+#REF!+#REF!+#REF!+#REF!+#REF!+#REF!+#REF!+#REF!+#REF!+#REF!+#REF!","v":{"$error":"#REF!"}},null,192.25,{"$f":"#REF!+#REF!+#REF!+#REF!+#REF!+#REF!+#REF!+#REF!+#REF!+#REF!+#REF!+#REF!","v":{"$error":"#REF!"}},{"$f":"#REF!+#REF!+#REF!+#REF!+#REF!+#REF!+#REF!+#REF!+#REF!+#REF!+#REF!+#REF!","v":{"$error":"#REF!"}},{"$f":"#REF!+#REF!+#REF!+#REF!+#REF!+#REF!+#REF!+#REF!+#REF!+#REF!+#REF!+#REF!","v":{"$error":"#REF!"}},{"$f":"#REF!+#REF!+#REF!+#REF!+#REF!+#REF!+#REF!+#REF!+#REF!+#REF!+#REF!+#REF!","v":{"$error":"#REF!"}},{"$f":"#REF!+#REF!+#REF!+#REF!+#REF!+#REF!+#REF!+#REF!+#REF!+#REF!+#REF!+#REF!","v":{"$error":"#REF!"}},{"$f":"#REF!+#REF!+#REF!+#REF!+#REF!+#REF!+#REF!+#REF!+#REF!+#REF!+#REF!+#REF!","v":{"$error":"#REF!"}},{"$f":"#REF!+#REF!+#REF!+#REF!+#REF!+#REF!+#REF!+#REF!+#REF!+#REF!+#REF!+#REF!","v":{"$error":"#REF!"}},{"$f":"#REF!+#REF!+#REF!+#REF!+#REF!+#REF!+#REF!+#REF!+#REF!+#REF!+#REF!+#REF!","v":{"$error":"#REF!"}},{"$f":"#REF!+#REF!+#REF!+#REF!+#REF!+#REF!+#REF!+#REF!+#REF!+#REF!+#REF!+#REF!","v":{"$error":"#REF!"}},{"$f":"#REF!+#REF!+#REF!+#REF!+#REF!+#REF!+#REF!+#REF!+#REF!+#REF!+#REF!+#REF!","v":{"$error":"#REF!"}},{"$f":"#REF!+#REF!+#REF!+#REF!+#REF!+#REF!+#REF!+#REF!+#REF!+#REF!+#REF!+#REF!","v":{"$error":"#REF!"}},{"$f":"#REF!+#REF!+#REF!+#REF!+#REF!+#REF!+#REF!+#REF!+#REF!+#REF!+#REF!+#REF!","v":{"$error":"#REF!"}},{"$f":"#REF!+#REF!+#REF!+#REF!+#REF!+#REF!+#REF!+#REF!+#REF!+#REF!+#REF!+#REF!","v":{"$error":"#REF!"}},{"$f":"#REF!+#REF!+#REF!+#REF!+#REF!+#REF!+#REF!+#REF!+#REF!+#REF!+#REF!+#REF!","v":{"$error":"#REF!"}}]
[]
[]
[]
[]
["BILAN ACTIVITE PHYSICO-CHIMIE JANVIER 2016"]
[]
["10 Titulaires + 2 Intérimaires = 12 techniciens"]
["soit une capacité théorique de 1872 h"]
["Capacité réelle: 1803 h"]
[]
[null,"Temps standards","Temps réels "]
["Matières Premières",569.5,476]
["Produits Finis",845,487]
["Assurance Qualité","600 (1806 × 0.333)",483]
["Articles de conditionnement",null,11.75]
["Nettoyage (aide laverie)",null,2.75]
["LIMS",null,55.25]
[null,null,{"$f":"SUM(C20:C25)","v":1515.75}]
[]
[null,"Ressources supplémentaires (Capacité réelle)",306]
["ESSAI",null,149]
["PROJ",null,58.75]
["STAB Elidel",null,79.5]
[null,"Activité hors routine (Fichier joint)",{"$f":"SUM(C29:C31)","v":287.25}]
[]
[]
[]
[null,"Somme des heures",{"$f":"SUM(C20:C25,C29:C31)","v":1803}]
[]
["SGA et JH le 08/02/2016"]
[]
["BILAN ACTIVITE PHYSICO-CHIMIE FEVRIER 2016"]
[]
["10 Titulaires + 2 Intérimaires = 12 techniciens"]
["soit une capacité théorique en H",1897]
["Capacité réelle: ",1647]
[]
[null,"Temps standards","Temps réels ",null,"Remarques:\nLes temps réels sont issus du déclaratif des feuilles d'imputation.\nLes différences observables entre les temps standards et les temps déclarés sont dus:\n-Au regroupement de lots pour les MP et pour les PF.\n-Aux sous traitances, les analyses au CQ sont faites sur un mois, la sous-traitance le mois suivant, la libération dans le mois de la réception de la sous traitance.\n-Les matières analysées  en fin de mois sont très souvent libérées sur le mois suivant.\n\nConclusion: Ce mois ci les ressources supplémentaires ont permis d'absorber le travail en dehors de la routine et à pallier aux heures de CP de l'équipe, ce qui nous a permis de pouvoir répondre à tous nos clients dans les délais.\n\n"]
["Matières Premières",458,350.75]
["Produits Finis",1141,667.75]
["Assurance Qualité","548.5 (1647 × 0.333)",390]
["Articles de conditionnement",null,9.75]
["Nettoyage (aide laverie)",null,0]
["LIMS",null,13]
[null,null,{"$f":"SUM(C47:C52)","v":1431.25}]
[]
[null,"Ressources supplémentaires (Capacité réelle)",306]
["ESSAI",null,192]
["STAB Elidel",null,24.25]
[null,"Activité hors routine (Fichier joint)",{"$f":"SUM(C56:C57)","v":216.25}]
[]
[null,null,{"$f":"C53+C58","v":1647.5}]
["SGA et JH le 03/03/2016"]

{"sheet":"Noms","index":5,"n_rows":32,"n_cols":4,"rows_kept":32,"cut":false,"hidden":false,"merged":[]}
["Nom","Activité",null,"Activites"]
["ABAD","PHYSICO-CHIMIE",null,"PRELEV. AC"]
["BAH","PHYSICO-CHIMIE",null,"PHYSICO-CHIMIE"]
["BARSACQ","MICROBIOLOGIE",null,"AGENT DE LAVERIE"]
["BERNADOU","PHYSICO-CHIMIE",null,"MICROBIOLOGIE"]
["BONNEMORE","PRELEV. AC",null,"CONT FINAL"]
["BOUGHIDAH","MICROBIOLOGIE"]
["BOULESTIN","PHYSICO-CHIMIE"]
["CAVAILLE","PHYSICO-CHIMIE"]
["CERVEAUX ","PHYSICO-CHIMIE"]
["CRON","PHYSICO-CHIMIE"]
["EPRON","PRELEV. AC"]
["GASNIER","PHYSICO-CHIMIE"]
["GROUT","MICROBIOLOGIE"]
["GUEGUEN","PHYSICO-CHIMIE"]
["HERVE","PHYSICO-CHIMIE"]
["LABEQUE","PHYSICO-CHIMIE"]
["LAFAYE","PHYSICO-CHIMIE"]
["MARCHETTI","MICROBIOLOGIE"]
["MARRON ","PHYSICO-CHIMIE"]
["MASSY","PHYSICO-CHIMIE"]
["MAUPEU","MICROBIOLOGIE"]
["MERCIER","PHYSICO-CHIMIE"]
["MICHELET","PHYSICO-CHIMIE"]
["MONGIE ","PHYSICO-CHIMIE"]
["MORNET","MICROBIOLOGIE"]
["PANATIER","MICROBIOLOGIE"]
["PIQUET","CONT FINAL"]
["QUESADA","PHYSICO-CHIMIE"]
["RODRIGUES","AGENT DE LAVERIE"]
["SAVINOT","MICROBIOLOGIE"]
["VEYSSIERE","PRELEV. AC"]